Workbook

Sheet FICHA
B1: SEGUIMIENTO AL CUMPLIMIENTO DE REGLAS FISCALES DE LOS GOBIERNOS REGIONALES Y GOBIERNOS LOCALES 2T2018 1/
B3: DEPARTAMENTO
B4: PROVINCIA
B5: ENTIDAD
B7: R1: Regla Fiscal de Saldo de Deuda Total | D7: =IFERROR( VLOOKUP($C$19,REGLAS!$A$1:$S$1901,14,FALSE)," ") ->  | E7: R2: Regla Fiscal de Ahorro en Cuenta Corriente | G7: =IFERROR( VLOOKUP($C$19,REGLAS!$A$1:$S$1901,19,FALSE)," ") -> 
B8: Saldo de Deuda Total | C8: =IFERROR( VLOOKUP($C$19,REGLAS!$A$1:$S$1901,6,FALSE), " ") ->  | D8: Miles | E8: Ingreso Corriente Total - ICT | F8: =IFERROR( VLOOKUP($C$19,REGLAS!$A$1:$S$1901,16,FALSE), " " ) ->  | G8: Miles
B9: Prom. ICT | C9: =IFERROR( VLOOKUP($C$19,REGLAS!$A$1:$S$1901,8,FALSE), " ") ->  | D9: Miles | E9: Gasto Corriente Total - GCT | F9: =IFERROR( VLOOKUP($C$19,REGLAS!$A$1:$S$1901,17,FALSE), " " ) ->  | G9: Miles
B10: Límite Ley N° 29230 2/ | C10: =IFERROR( VLOOKUP($C$19,REGLAS!$A$1:$S$1901,9,FALSE), " ") ->  | D10: Miles | E10: Ahorro en Cuenta Corriente - ACC | F10: =IFERROR( VLOOKUP($C$19,REGLAS!$A$1:$S$1901,18,FALSE), " ") ->  | G10: Miles
B12: SDT/Prom. ICT | C12: =IFERROR( VLOOKUP($C$19,REGLAS!$A$1:$S$1901,12,FALSE), " ") ->  | D12: Porcentaje
B13: }
L20: Zona de riesgo
L21: limite1 | M21: limite2 | N21: valor | P21: ICT | Q21: =IFERROR( VLOOKUP($C$19,REGLAS!$A$1:$S$1901,15,FALSE), " " ) -> 
L22: 0.8 | M22: 0.8 | N22: 0.8 | P22: GCT | Q22: =IFERROR( VLOOKUP($C$19,REGLAS!$A$1:$S$1901,16,FALSE), " " ) -> 
L23: 1 | M23: 1 | N23: 1 | P23: ACC | Q23: =IFERROR( VLOOKUP($C$19,REGLAS!$A$1:$S$1901,17,FALSE), " ") -> 
M24: =C12/100 -> 
P25: ICT | Q25: GCT | R25: ACC
P26: 0 | Q26: 0 | R26: 0 | S26: 0
P27: 0 | Q27: 0 | R27: 0
P28: =IFERROR( VLOOKUP($C$19,REGLAS!$A$1:$S$1901,16,FALSE), " " ) ->  | Q28: =IFERROR( VLOOKUP($C$19,REGLAS!$A$1:$S$1901,17,FALSE), " " ) ->  | R28: =IFERROR( VLOOKUP($C$19,REGLAS!$A$1:$S$1901,18,FALSE), " ") -> 
B30: 1/ El Decreto Legislativo 1275, que aprueba el Marco de la Responsabilidad y Transparencia Fiscal de los Gobiernos Regionales y Gobiernos Locales, deroga la Ley N° 30099, dejando sin efecto las reglas fiscales establecidas en el literal a) y b) del artículo 7°, así como las medidas correctivas establecidas en el numeral 8.4 del artículo 8° de la LFRTF y las metas de convergencia en adelante se aplicará lo establecido en el artículo 6° de dicho Decreto Legislativo.
B31: 2/ Corresponde a la suma de los flujos transferidos por concepto de Recursos Determinados provenientes de Canon, Sobrecanon, Regalías, Renta de Aduanas y Participaciones de los años 2016 y 2017, más el tope presupuestal por el mismo concepto incluido en el Presupuesto Institucional de Apertura 2018, aprobado mediante Ley N° 30693 – Ley de Presupuesto del Sector Público para el Año Fiscal 2018, informado a través de Memorando N° 179-2018-EF/50.03 por la Dirección General de Política de Presupuesto Público del Ministerio de Economía y Finanzas.
B33: Nota: En el caso de saldo de pasivos la información disponible es al 1er trimestre 2018, deuda exigible a junio 2018 y deuda real a abril 2018.
B34: Fuente: SICON-MEF, SIAF-MEF, SUNAT, SBS y AFP.

Sheet REGLAS (hidden)
A1: BUSQUEDA | B1: NRO | C1: Ubigeo | D1: Departamento | E1: Entidad | F1: SDT | G1: B01 | H1: PROM_ICT | I1: LIMITE_LEY | J1: Espacio Total | K1: B02 | L1: STD_PROM_ICT | M1: B03 | N1: Cumple_R1 | O1: B04 | P1: ICT | Q1: GCT | R1: ACC | S1: Cumple_R2
A2: 010000 : GOBIERNO REGIONAL DE AMAZONAS | B2: 1 | C2: 010000 | D2: AMAZONAS | E2: GOBIERNO REGIONAL AMAZONAS | F2: 412749.3512 | H2: 516868.6145 | I2: 4.56198 | L2: 79.85575825 | N2: Cumple | P2: 296636.0159 | Q2: 284681.1594 | R2: 11954.85642 | S2: Cumple
A3: 020000 : GOBIERNO REGIONAL DE ANCASH | B3: 2 | C3: 020000 | D3: ANCASH | E3: GOBIERNO REGIONAL ANCASH | F3: 405725.8513 | H3: 1216363.946 | I3: 324314.3632 | L3: 33.35562951 | N3: Cumple | P3: 648584.8031 | Q3: 629794.1857 | R3: 18790.61733 | S3: Cumple
A4: 030000 : GOBIERNO REGIONAL DE APURIMAC | B4: 3 | C4: 030000 | D4: APURIMAC | E4: GOBIERNO REGIONAL APURIMAC | F4: 532001.8872 | H4: 658509.4012 | I4: 64571.57428 | L4: 80.7888067 | N4: Cumple | P4: 363131.9571 | Q4: 335732.6117 | R4: 27399.34545 | S4: Cumple
A5: 040000 : GOBIERNO REGIONAL DE AREQUIPA | B5: 4 | C5: 040000 | D5: AREQUIPA | E5: GOBIERNO REGIONAL AREQUIPA | F5: 1252563.996 | H5: 1174412.895 | I5: 243356.3318 | L5: 106.6544826 | N5: No Cumple | P5: 650761.1919 | Q5: 571127.5942 | R5: 79633.59774 | S5: Cumple
A6: 050000 : GOBIERNO REGIONAL DE AYACUCHO | B6: 5 | C6: 050000 | D6: AYACUCHO | E6: GOBIERNO REGIONAL AYACUCHO | F6: 547355.6087 | H6: 939117.391 | I6: 78543.27508 | L6: 58.28404563 | N6: Cumple | P6: 528333.0969 | Q6: 480782.302 | R6: 47550.79496 | S6: Cumple
A7: 060000 : GOBIERNO REGIONAL DE CAJAMARCA | B7: 6 | C7: 060000 | D7: CAJAMARCA | E7: GOBIERNO REGIONAL CAJAMARCA | F7: 1355475.987 | H7: 1469225.621 | I7: 136385.8685 | L7: 92.25785121 | N7: Cumple | P7: 790117.5274 | Q7: 768283.2745 | R7: 21834.25285 | S7: Cumple
A8: 070000 : GOBIERNO REGIONAL DEL CALLAO | B8: 7 | C8: 070000 | D8: CALLAO | E8: GOBIERNO REGIONAL CALLAO | F8: 531067.4 | H8: 900685.6945 | I8: 683824.6884 | L8: 58.96256633 | N8: Cumple | P8: 493801.9919 | Q8: 425696.0035 | R8: 68105.98834 | S8: Cumple
A9: 080000 : GOBIERNO REGIONAL DE CUSCO | B9: 8 | C9: 080000 | D9: CUSCO | E9: GOBIERNO REGIONAL CUSCO | F9: 1033630.1 | H9: 1564399.775 | I9: 880874.3049 | L9: 66.07199236 | N9: Cumple | P9: 837518.0666 | Q9: 644959.4189 | R9: 192558.6478 | S9: Cumple
A10: 090000 : GOBIERNO REGIONAL DE HUANCAVELICA | B10: 9 | C10: 090000 | D10: HUANCAVELICA | E10: GOBIERNO REGIONAL HUANCAVELICA | F10: 219249.5946 | H10: 696926.0649 | I10: 93945.67433 | L10: 31.45951997 | N10: Cumple | P10: 380612.483 | Q10: 352644.0882 | R10: 27968.39476 | S10: Cumple
A11: 100000 : GOBIERNO REGIONAL DE HUANUCO | B11: 10 | C11: 100000 | D11: HUANUCO | E11: GOBIERNO REGIONAL HUANUCO | F11: 214573.9647 | H11: 759539.4211 | I11: 2148.02378 | L11: 28.25053693 | N11: Cumple | P11: 429414.8432 | Q11: 408716.4791 | R11: 20698.36413 | S11: Cumple
A12: 110000 : GOBIERNO REGIONAL DE ICA | B12: 11 | C12: 110000 | D12: ICA | E12: GOBIERNO REGIONAL ICA | F12: 220792.9684 | H12: 786346.2311 | I12: 111349.0152 | L12: 28.07834001 | N12: Cumple | P12: 424183.3318 | Q12: 393399.9815 | R12: 30783.35033 | S12: Cumple
A13: 120000 : GOBIERNO REGIONAL DE JUNIN | B13: 12 | C13: 120000 | D13: JUNIN | E13: GOBIERNO REGIONAL JUNIN | F13: 643817.113 | H13: 1201509.958 | I13: 44458.64268 | L13: 53.58400144 | N13: Cumple | P13: 689436.8368 | Q13: 647130.9845 | R13: 42305.85231 | S13: Cumple
A14: 130000 : GOBIERNO REGIONAL DE LA LIBERTAD | B14: 13 | C14: 130000 | D14: LA LIBERTAD | E14: GOBIERNO REGIONAL LA LIBERTAD | F14: 1438180.833 | H14: 1468828.7 | I14: 163627.1163 | L14: 97.91344852 | N14: Cumple | P14: 837355.5258 | Q14: 758250.8786 | R14: 79104.64716 | S14: Cumple
A15: 140000 : GOBIERNO REGIONAL DE LAMBAYEQUE | B15: 14 | C15: 140000 | D15: LAMBAYEQUE | E15: GOBIERNO REGIONAL LAMBAYEQUE | F15: 429580.7308 | H15: 885881.7622 | I15: 7.75708 | L15: 48.4918811 | N15: Cumple | P15: 495953.5764 | Q15: 456703.6422 | R15: 39249.9342 | S15: Cumple
A16: 150000 : GOBIERNO REGIONAL DE LIMA | B16: 15 | C16: 150000 | D16: LIMA | E16: GOBIERNO REGIONAL LIMA | F16: 175967.0006 | H16: 989316.1687 | I16: 123361.3261 | L16: 17.78673049 | N16: Cumple | P16: 517103.9793 | Q16: 522284.4456 | R16: -5180.46634 | S16: No Cumple
A17: 160000 : GOBIERNO REGIONAL DE LORETO | B17: 16 | C17: 160000 | D17: LORETO | E17: GOBIERNO REGIONAL LORETO | F17: 476398.9165 | H17: 1201934.89 | I17: 68078.28517 | L17: 39.63600028 | N17: Cumple | P17: 730048.1294 | Q17: 686755.3609 | R17: 43292.76855 | S17: Cumple
A18: 170000 : GOBIERNO REGIONAL DE MADRE DE DIOS | B18: 17 | C18: 170000 | D18: MADRE DE DIOS | E18: GOBIERNO REGIONAL MADRE DE DIOS | F18: 118354.2397 | H18: 193221.3102 | I18: 461.36884 | L18: 61.25320212 | N18: Cumple | P18: 105966.1962 | Q18: 102055.5288 | R18: 3910.66733 | S18: Cumple
A19: 180000 : GOBIERNO REGIONAL DE MOQUEGUA | B19: 18 | C19: 180000 | D19: MOQUEGUA | E19: GOBIERNO REGIONAL MOQUEGUA | F19: 372658.6443 | H19: 289298.1467 | I19: 90747.22613 | L19: 128.8147361 | N19: No Cumple | P19: 148059.8077 | Q19: 140379.9433 | R19: 7679.86431 | S19: Cumple
A20: 190000 : GOBIERNO REGIONAL DE PASCO | B20: 19 | C20: 190000 | D20: PASCO | E20: GOBIERNO REGIONAL PASCO | F20: 254762.8073 | H20: 344834.972 | I20: 28508.24556 | L20: 73.87963171 | N20: Cumple | P20: 192242.9171 | Q20: 182396.9512 | R20: 9845.96589 | S20: Cumple
A21: 200000 : GOBIERNO REGIONAL DE PIURA | B21: 20 | C21: 200000 | D21: PIURA | E21: GOBIERNO REGIONAL PIURA | F21: 1366156.284 | H21: 1445535.595 | I21: 195954.8462 | L21: 94.50865751 | N21: Cumple | P21: 801216.8436 | Q21: 736346.7646 | R21: 64870.07892 | S21: Cumple
A22: 210000 : GOBIERNO REGIONAL DE PUNO | B22: 21 | C22: 210000 | D22: PUNO | E22: GOBIERNO REGIONAL PUNO | F22: 1190500.784 | H22: 1267250.948 | I22: 66805.87353 | L22: 93.9435702 | N22: Cumple | P22: 695340.1033 | Q22: 668822.8689 | R22: 26517.23442 | S22: Cumple
A23: 220000 : GOBIERNO REGIONAL DE SAN MARTIN | B23: 22 | C23: 220000 | D23: SAN MARTIN | E23: GOBIERNO REGIONAL SAN MARTIN | F23: 542563.781 | H23: 878212.5557 | I23: 1198.14807 | L23: 61.78046276 | N23: Cumple | P23: 492647.632 | Q23: 432946.203 | R23: 59701.42903 | S23: Cumple
A24: 230000 : GOBIERNO REGIONAL DE TACNA | B24: 23 | C24: 230000 | D24: TACNA | E24: GOBIERNO REGIONAL TACNA | F24: 323159.2302 | H24: 405306.2592 | I24: 89307.64346 | L24: 79.73210944 | N24: Cumple | P24: 212495.9148 | Q24: 192437.4846 | R24: 20058.4302 | S24: Cumple
A25: 240000 : GOBIERNO REGIONAL DE TUMBES | B25: 24 | C25: 240000 | D25: TUMBES | E25: GOBIERNO REGIONAL TUMBES | F25: 182179.4165 | H25: 366414.5027 | I25: 72768.68037 | L25: 49.71948849 | N25: Cumple | P25: 197826.2058 | Q25: 182938.4169 | R25: 14887.78895 | S25: Cumple
A26: 250000 : GOBIERNO REGIONAL DE UCAYALI | B26: 25 | C26: 250000 | D26: UCAYALI | E26: GOBIERNO REGIONAL UCAYALI | F26: 334167.1936 | H26: 540559.7849 | I26: 51203.07898 | L26: 61.81872993 | N26: Cumple | P26: 336279.5794 | Q26: 306272.8606 | R26: 30006.71882 | S26: Cumple
A27: 260000 : REGION LIMA METROPOLITANA | B27: 26 | C27: 260000 | D27: MM LIMA | E27: REGION LIMA METROPOLITANA | F27: 2932.59987 | H27: 21517.37254 | I27: 7106.95294 | L27: 13.62898683 | N27: Cumple | P27: 6980.02859 | Q27: 6023.8384 | R27: 956.19019 | S27: Cumple
A28: 010101 : MP DE CHACHAPOYAS | B28: 1 | C28: 010101 | D28: AMAZONAS | E28: MP DE CHACHAPOYAS | F28: =VLOOKUP(C28,'Anexo_GL '!$B$9:$N$1882,4,FALSE) -> 2628.33293 | H28: =VLOOKUP(C28,'Anexo_GL '!$B$9:$N$1882,5,FALSE) -> 14041.66114 | I28: =VLOOKUP(C28,'Anexo_GL '!$B$9:$N$1882,6,FALSE) -> 0.93111 | L28: =VLOOKUP(C28,'Anexo_GL '!$B$9:$N$1882,7,FALSE) -> 18.71810539 | N28: =VLOOKUP(C28,'Anexo_GL '!$B$9:$N$1882,8,FALSE) -> Cumple | P28: =VLOOKUP(C28,'Anexo_GL '!$B$9:$N$1882,10,FALSE) -> 7088.89285 | Q28: =VLOOKUP(C28,'Anexo_GL '!$B$9:$N$1882,11,FALSE) -> 5274.33761 | R28: =VLOOKUP(C28,'Anexo_GL '!$B$9:$N$1882,12,FALSE) -> 1814.55524 | S28: =VLOOKUP(C28,'Anexo_GL '!$B$9:$N$1882,13,FALSE) -> Cumple
A29: 010102 : MD DE ASUNCION | B29: 2 | C29: 010102 | D29: AMAZONAS | E29: MD DE ASUNCION | F29: =VLOOKUP(C29,'Anexo_GL '!$B$9:$N$1882,4,FALSE) -> 44.98163 | H29: =VLOOKUP(C29,'Anexo_GL '!$B$9:$N$1882,5,FALSE) -> 693.3305475 | I29: =VLOOKUP(C29,'Anexo_GL '!$B$9:$N$1882,6,FALSE) -> 0.00032 | L29: =VLOOKUP(C29,'Anexo_GL '!$B$9:$N$1882,7,FALSE) -> 6.487761164 | N29: =VLOOKUP(C29,'Anexo_GL '!$B$9:$N$1882,8,FALSE) -> Cumple | P29: =VLOOKUP(C29,'Anexo_GL '!$B$9:$N$1882,10,FALSE) -> 215.85564 | Q29: =VLOOKUP(C29,'Anexo_GL '!$B$9:$N$1882,11,FALSE) -> 213.37429 | R29: =VLOOKUP(C29,'Anexo_GL '!$B$9:$N$1882,12,FALSE) -> 2.48135 | S29: =VLOOKUP(C29,'Anexo_GL '!$B$9:$N$1882,13,FALSE) -> Cumple
A30: 010103 : MD DE BALSAS | B30: 3 | C30: 010103 | D30: AMAZONAS | E30: MD DE BALSAS | F30: =VLOOKUP(C30,'Anexo_GL '!$B$9:$N$1882,4,FALSE) -> 8.61174 | H30: =VLOOKUP(C30,'Anexo_GL '!$B$9:$N$1882,5,FALSE) -> 669.4000825 | I30: =VLOOKUP(C30,'Anexo_GL '!$B$9:$N$1882,6,FALSE) -> 0.02982 | L30: =VLOOKUP(C30,'Anexo_GL '!$B$9:$N$1882,7,FALSE) -> 1.286486247 | N30: =VLOOKUP(C30,'Anexo_GL '!$B$9:$N$1882,8,FALSE) -> Cumple | P30: =VLOOKUP(C30,'Anexo_GL '!$B$9:$N$1882,10,FALSE) -> 419.11824 | Q30: =VLOOKUP(C30,'Anexo_GL '!$B$9:$N$1882,11,FALSE) -> 165.56178 | R30: =VLOOKUP(C30,'Anexo_GL '!$B$9:$N$1882,12,FALSE) -> 253.55646 | S30: =VLOOKUP(C30,'Anexo_GL '!$B$9:$N$1882,13,FALSE) -> Cumple
A31: 010104 : MD DE CHETO | B31: 4 | C31: 010104 | D31: AMAZONAS | E31: MD DE CHETO | F31: =VLOOKUP(C31,'Anexo_GL '!$B$9:$N$1882,4,FALSE) -> 208.57645 | H31: =VLOOKUP(C31,'Anexo_GL '!$B$9:$N$1882,5,FALSE) -> 490.7131925 | I31: =VLOOKUP(C31,'Anexo_GL '!$B$9:$N$1882,6,FALSE) -> 0.00075 | L31: =VLOOKUP(C31,'Anexo_GL '!$B$9:$N$1882,7,FALSE) -> 42.50475699 | N31: =VLOOKUP(C31,'Anexo_GL '!$B$9:$N$1882,8,FALSE) -> Cumple | P31: =VLOOKUP(C31,'Anexo_GL '!$B$9:$N$1882,10,FALSE) -> 234.79965 | Q31: =VLOOKUP(C31,'Anexo_GL '!$B$9:$N$1882,11,FALSE) -> 129.86704 | R31: =VLOOKUP(C31,'Anexo_GL '!$B$9:$N$1882,12,FALSE) -> 104.93261 | S31: =VLOOKUP(C31,'Anexo_GL '!$B$9:$N$1882,13,FALSE) -> Cumple
A32: 010105 : MD DE CHILIQUIN | B32: 5 | C32: 010105 | D32: AMAZONAS | E32: MD DE CHILIQUIN | F32: =VLOOKUP(C32,'Anexo_GL '!$B$9:$N$1882,4,FALSE) -> 9.36822 | H32: =VLOOKUP(C32,'Anexo_GL '!$B$9:$N$1882,5,FALSE) -> 831.7046875 | I32: =VLOOKUP(C32,'Anexo_GL '!$B$9:$N$1882,6,FALSE) -> 0.0008 | L32: =VLOOKUP(C32,'Anexo_GL '!$B$9:$N$1882,7,FALSE) -> 1.126387784 | N32: =VLOOKUP(C32,'Anexo_GL '!$B$9:$N$1882,8,FALSE) -> Cumple | P32: =VLOOKUP(C32,'Anexo_GL '!$B$9:$N$1882,10,FALSE) -> 233.80182 | Q32: =VLOOKUP(C32,'Anexo_GL '!$B$9:$N$1882,11,FALSE) -> 130.31821 | R32: =VLOOKUP(C32,'Anexo_GL '!$B$9:$N$1882,12,FALSE) -> 103.48361 | S32: =VLOOKUP(C32,'Anexo_GL '!$B$9:$N$1882,13,FALSE) -> Cumple
A33: 010106 : MD DE CHUQUIBAMBA | B33: 6 | C33: 010106 | D33: AMAZONAS | E33: MD DE CHUQUIBAMBA | F33: =VLOOKUP(C33,'Anexo_GL '!$B$9:$N$1882,4,FALSE) -> 159.6409 | H33: =VLOOKUP(C33,'Anexo_GL '!$B$9:$N$1882,5,FALSE) -> 583.28581 | I33: =VLOOKUP(C33,'Anexo_GL '!$B$9:$N$1882,6,FALSE) -> 0.00138 | L33: =VLOOKUP(C33,'Anexo_GL '!$B$9:$N$1882,7,FALSE) -> 27.36924116 | N33: =VLOOKUP(C33,'Anexo_GL '!$B$9:$N$1882,8,FALSE) -> Cumple | P33: =VLOOKUP(C33,'Anexo_GL '!$B$9:$N$1882,10,FALSE) -> 263.19026 | Q33: =VLOOKUP(C33,'Anexo_GL '!$B$9:$N$1882,11,FALSE) -> 237.86468 | R33: =VLOOKUP(C33,'Anexo_GL '!$B$9:$N$1882,12,FALSE) -> 25.32558 | S33: =VLOOKUP(C33,'Anexo_GL '!$B$9:$N$1882,13,FALSE) -> Cumple
A34: 010107 : MD DE GRANADA | B34: 7 | C34: 010107 | D34: AMAZONAS | E34: MD DE GRANADA | F34: =VLOOKUP(C34,'Anexo_GL '!$B$9:$N$1882,4,FALSE) -> 244.40624 | H34: =VLOOKUP(C34,'Anexo_GL '!$B$9:$N$1882,5,FALSE) -> 554.949855 | I34: =VLOOKUP(C34,'Anexo_GL '!$B$9:$N$1882,6,FALSE) -> 0.0004 | L34: =VLOOKUP(C34,'Anexo_GL '!$B$9:$N$1882,7,FALSE) -> 44.04113954 | N34: =VLOOKUP(C34,'Anexo_GL '!$B$9:$N$1882,8,FALSE) -> Cumple | P34: =VLOOKUP(C34,'Anexo_GL '!$B$9:$N$1882,10,FALSE) -> 245.69872 | Q34: =VLOOKUP(C34,'Anexo_GL '!$B$9:$N$1882,11,FALSE) -> 205.25411 | R34: =VLOOKUP(C34,'Anexo_GL '!$B$9:$N$1882,12,FALSE) -> 40.44461 | S34: =VLOOKUP(C34,'Anexo_GL '!$B$9:$N$1882,13,FALSE) -> Cumple
A35: 010108 : MD DE HUANCAS | B35: 8 | C35: 010108 | D35: AMAZONAS | E35: MD DE HUANCAS | F35: =VLOOKUP(C35,'Anexo_GL '!$B$9:$N$1882,4,FALSE) -> 129.64614 | H35: =VLOOKUP(C35,'Anexo_GL '!$B$9:$N$1882,5,FALSE) -> 721.3720525 | I35: =VLOOKUP(C35,'Anexo_GL '!$B$9:$N$1882,6,FALSE) -> 0.00155 | L35: =VLOOKUP(C35,'Anexo_GL '!$B$9:$N$1882,7,FALSE) -> 17.97216007 | N35: =VLOOKUP(C35,'Anexo_GL '!$B$9:$N$1882,8,FALSE) -> Cumple | P35: =VLOOKUP(C35,'Anexo_GL '!$B$9:$N$1882,10,FALSE) -> 336.98263 | Q35: =VLOOKUP(C35,'Anexo_GL '!$B$9:$N$1882,11,FALSE) -> 234.8089 | R35: =VLOOKUP(C35,'Anexo_GL '!$B$9:$N$1882,12,FALSE) -> 102.17373 | S35: =VLOOKUP(C35,'Anexo_GL '!$B$9:$N$1882,13,FALSE) -> Cumple
A36: 010109 : MD DE JALCA GRANDE | B36: 9 | C36: 010109 | D36: AMAZONAS | E36: MD DE JALCA GRANDE | F36: =VLOOKUP(C36,'Anexo_GL '!$B$9:$N$1882,4,FALSE) -> 17.35097 | H36: =VLOOKUP(C36,'Anexo_GL '!$B$9:$N$1882,5,FALSE) -> 1242.155137 | I36: =VLOOKUP(C36,'Anexo_GL '!$B$9:$N$1882,6,FALSE) -> 0.97817 | L36: =VLOOKUP(C36,'Anexo_GL '!$B$9:$N$1882,7,FALSE) -> 1.39684404 | N36: =VLOOKUP(C36,'Anexo_GL '!$B$9:$N$1882,8,FALSE) -> Cumple | P36: =VLOOKUP(C36,'Anexo_GL '!$B$9:$N$1882,10,FALSE) -> 614.32016 | Q36: =VLOOKUP(C36,'Anexo_GL '!$B$9:$N$1882,11,FALSE) -> 362.9568 | R36: =VLOOKUP(C36,'Anexo_GL '!$B$9:$N$1882,12,FALSE) -> 251.36336 | S36: =VLOOKUP(C36,'Anexo_GL '!$B$9:$N$1882,13,FALSE) -> Cumple
A37: 010110 : MD DE LEIMEBAMBA | B37: 10 | C37: 010110 | D37: AMAZONAS | E37: MD DE LEIMEBAMBA | F37: =VLOOKUP(C37,'Anexo_GL '!$B$9:$N$1882,4,FALSE) -> 106.86096 | H37: =VLOOKUP(C37,'Anexo_GL '!$B$9:$N$1882,5,FALSE) -> 991.27949 | I37: =VLOOKUP(C37,'Anexo_GL '!$B$9:$N$1882,6,FALSE) -> 0.00213 | L37: =VLOOKUP(C37,'Anexo_GL '!$B$9:$N$1882,7,FALSE) -> 10.780104 | N37: =VLOOKUP(C37,'Anexo_GL '!$B$9:$N$1882,8,FALSE) -> Cumple | P37: =VLOOKUP(C37,'Anexo_GL '!$B$9:$N$1882,10,FALSE) -> 501.337 | Q37: =VLOOKUP(C37,'Anexo_GL '!$B$9:$N$1882,11,FALSE) -> 335.91606 | R37: =VLOOKUP(C37,'Anexo_GL '!$B$9:$N$1882,12,FALSE) -> 165.42094 | S37: =VLOOKUP(C37,'Anexo_GL '!$B$9:$N$1882,13,FALSE) -> Cumple
A38: 010111 : MD DE LEVANTO | B38: 11 | C38: 010111 | D38: AMAZONAS | E38: MD DE LEVANTO | F38: =VLOOKUP(C38,'Anexo_GL '!$B$9:$N$1882,4,FALSE) -> 27.53634 | H38: =VLOOKUP(C38,'Anexo_GL '!$B$9:$N$1882,5,FALSE) -> 702.140895 | I38: =VLOOKUP(C38,'Anexo_GL '!$B$9:$N$1882,6,FALSE) -> 0.00106 | L38: =VLOOKUP(C38,'Anexo_GL '!$B$9:$N$1882,7,FALSE) -> 3.921768437 | N38: =VLOOKUP(C38,'Anexo_GL '!$B$9:$N$1882,8,FALSE) -> Cumple | P38: =VLOOKUP(C38,'Anexo_GL '!$B$9:$N$1882,10,FALSE) -> 273.49035 | Q38: =VLOOKUP(C38,'Anexo_GL '!$B$9:$N$1882,11,FALSE) -> 230.7913 | R38: =VLOOKUP(C38,'Anexo_GL '!$B$9:$N$1882,12,FALSE) -> 42.69905 | S38: =VLOOKUP(C38,'Anexo_GL '!$B$9:$N$1882,13,FALSE) -> Cumple
A39: 010112 : MD DE MAGDALENA | B39: 12 | C39: 010112 | D39: AMAZONAS | E39: MD DE MAGDALENA | F39: =VLOOKUP(C39,'Anexo_GL '!$B$9:$N$1882,4,FALSE) -> 21.8642 | H39: =VLOOKUP(C39,'Anexo_GL '!$B$9:$N$1882,5,FALSE) -> 671.0857025 | I39: =VLOOKUP(C39,'Anexo_GL '!$B$9:$N$1882,6,FALSE) -> 0.00098 | L39: =VLOOKUP(C39,'Anexo_GL '!$B$9:$N$1882,7,FALSE) -> 3.258033947 | N39: =VLOOKUP(C39,'Anexo_GL '!$B$9:$N$1882,8,FALSE) -> Cumple | P39: =VLOOKUP(C39,'Anexo_GL '!$B$9:$N$1882,10,FALSE) -> 245.89523 | Q39: =VLOOKUP(C39,'Anexo_GL '!$B$9:$N$1882,11,FALSE) -> 242.51285 | R39: =VLOOKUP(C39,'Anexo_GL '!$B$9:$N$1882,12,FALSE) -> 3.38238 | S39: =VLOOKUP(C39,'Anexo_GL '!$B$9:$N$1882,13,FALSE) -> Cumple
A40: 010113 : MD DE MARISCAL CASTILLA | B40: 13 | C40: 010113 | D40: AMAZONAS | E40: MD DE MARISCAL CASTILLA | F40: =VLOOKUP(C40,'Anexo_GL '!$B$9:$N$1882,4,FALSE) -> 13.0493 | H40: =VLOOKUP(C40,'Anexo_GL '!$B$9:$N$1882,5,FALSE) -> 606.6565875 | I40: =VLOOKUP(C40,'Anexo_GL '!$B$9:$N$1882,6,FALSE) -> 0.00044 | L40: =VLOOKUP(C40,'Anexo_GL '!$B$9:$N$1882,7,FALSE) -> 2.151019254 | N40: =VLOOKUP(C40,'Anexo_GL '!$B$9:$N$1882,8,FALSE) -> Cumple | P40: =VLOOKUP(C40,'Anexo_GL '!$B$9:$N$1882,10,FALSE) -> 253.59826 | Q40: =VLOOKUP(C40,'Anexo_GL '!$B$9:$N$1882,11,FALSE) -> 109.71954 | R40: =VLOOKUP(C40,'Anexo_GL '!$B$9:$N$1882,12,FALSE) -> 143.87872 | S40: =VLOOKUP(C40,'Anexo_GL '!$B$9:$N$1882,13,FALSE) -> Cumple
A41: 010114 : MD DE MOLINOPAMPA | B41: 14 | C41: 010114 | D41: AMAZONAS | E41: MD DE MOLINOPAMPA | F41: =VLOOKUP(C41,'Anexo_GL '!$B$9:$N$1882,4,FALSE) -> 55.24168 | H41: =VLOOKUP(C41,'Anexo_GL '!$B$9:$N$1882,5,FALSE) -> 947.2887575 | I41: =VLOOKUP(C41,'Anexo_GL '!$B$9:$N$1882,6,FALSE) -> 0.00231 | L41: =VLOOKUP(C41,'Anexo_GL '!$B$9:$N$1882,7,FALSE) -> 5.831556594 | N41: =VLOOKUP(C41,'Anexo_GL '!$B$9:$N$1882,8,FALSE) -> Cumple | P41: =VLOOKUP(C41,'Anexo_GL '!$B$9:$N$1882,10,FALSE) -> 577.21533 | Q41: =VLOOKUP(C41,'Anexo_GL '!$B$9:$N$1882,11,FALSE) -> 266.09919 | R41: =VLOOKUP(C41,'Anexo_GL '!$B$9:$N$1882,12,FALSE) -> 311.11614 | S41: =VLOOKUP(C41,'Anexo_GL '!$B$9:$N$1882,13,FALSE) -> Cumple
A42: 010115 : MD DE MONTEVIDEO | B42: 15 | C42: 010115 | D42: AMAZONAS | E42: MD DE MONTEVIDEO | F42: =VLOOKUP(C42,'Anexo_GL '!$B$9:$N$1882,4,FALSE) -> 15.45755 | H42: =VLOOKUP(C42,'Anexo_GL '!$B$9:$N$1882,5,FALSE) -> 545.9117925 | I42: =VLOOKUP(C42,'Anexo_GL '!$B$9:$N$1882,6,FALSE) -> 0.00074 | L42: =VLOOKUP(C42,'Anexo_GL '!$B$9:$N$1882,7,FALSE) -> 2.83151055 | N42: =VLOOKUP(C42,'Anexo_GL '!$B$9:$N$1882,8,FALSE) -> Cumple | P42: =VLOOKUP(C42,'Anexo_GL '!$B$9:$N$1882,10,FALSE) -> 249.04212 | Q42: =VLOOKUP(C42,'Anexo_GL '!$B$9:$N$1882,11,FALSE) -> 209.6764 | R42: =VLOOKUP(C42,'Anexo_GL '!$B$9:$N$1882,12,FALSE) -> 39.36572 | S42: =VLOOKUP(C42,'Anexo_GL '!$B$9:$N$1882,13,FALSE) -> Cumple
A43: 010116 : MD DE OLLEROS | B43: 16 | C43: 010116 | D43: AMAZONAS | E43: MD DE OLLEROS | F43: =VLOOKUP(C43,'Anexo_GL '!$B$9:$N$1882,4,FALSE) -> 331.27592 | H43: =VLOOKUP(C43,'Anexo_GL '!$B$9:$N$1882,5,FALSE) -> 527.4611575 | I43: =VLOOKUP(C43,'Anexo_GL '!$B$9:$N$1882,6,FALSE) -> 0.00036 | L43: =VLOOKUP(C43,'Anexo_GL '!$B$9:$N$1882,7,FALSE) -> 62.80574698 | N43: =VLOOKUP(C43,'Anexo_GL '!$B$9:$N$1882,8,FALSE) -> Cumple | P43: =VLOOKUP(C43,'Anexo_GL '!$B$9:$N$1882,10,FALSE) -> 236.58962 | Q43: =VLOOKUP(C43,'Anexo_GL '!$B$9:$N$1882,11,FALSE) -> 163.13783 | R43: =VLOOKUP(C43,'Anexo_GL '!$B$9:$N$1882,12,FALSE) -> 73.45179 | S43: =VLOOKUP(C43,'Anexo_GL '!$B$9:$N$1882,13,FALSE) -> Cumple
A44: 010117 : MD DE QUINJALCA | B44: 17 | C44: 010117 | D44: AMAZONAS | E44: MD DE QUINJALCA | F44: =VLOOKUP(C44,'Anexo_GL '!$B$9:$N$1882,4,FALSE) -> 50.84225 | H44: =VLOOKUP(C44,'Anexo_GL '!$B$9:$N$1882,5,FALSE) -> 568.658355 | I44: =VLOOKUP(C44,'Anexo_GL '!$B$9:$N$1882,6,FALSE) -> 0.0009 | L44: =VLOOKUP(C44,'Anexo_GL '!$B$9:$N$1882,7,FALSE) -> 8.940737361 | N44: =VLOOKUP(C44,'Anexo_GL '!$B$9:$N$1882,8,FALSE) -> Cumple | P44: =VLOOKUP(C44,'Anexo_GL '!$B$9:$N$1882,10,FALSE) -> 289.42755 | Q44: =VLOOKUP(C44,'Anexo_GL '!$B$9:$N$1882,11,FALSE) -> 120.549 | R44: =VLOOKUP(C44,'Anexo_GL '!$B$9:$N$1882,12,FALSE) -> 168.87855 | S44: =VLOOKUP(C44,'Anexo_GL '!$B$9:$N$1882,13,FALSE) -> Cumple
A45: 010118 : MD DE SAN FRANCISCO DE DAGUAS | B45: 18 | C45: 010118 | D45: AMAZONAS | E45: MD DE SAN FRANCISCO DE DAGUAS | F45: =VLOOKUP(C45,'Anexo_GL '!$B$9:$N$1882,4,FALSE) -> 47.35381 | H45: =VLOOKUP(C45,'Anexo_GL '!$B$9:$N$1882,5,FALSE) -> 549.143075 | I45: =VLOOKUP(C45,'Anexo_GL '!$B$9:$N$1882,6,FALSE) -> 0.00034 | L45: =VLOOKUP(C45,'Anexo_GL '!$B$9:$N$1882,7,FALSE) -> 8.623219004 | N45: =VLOOKUP(C45,'Anexo_GL '!$B$9:$N$1882,8,FALSE) -> Cumple | P45: =VLOOKUP(C45,'Anexo_GL '!$B$9:$N$1882,10,FALSE) -> 244.19845 | Q45: =VLOOKUP(C45,'Anexo_GL '!$B$9:$N$1882,11,FALSE) -> 122.70346 | R45: =VLOOKUP(C45,'Anexo_GL '!$B$9:$N$1882,12,FALSE) -> 121.49499 | S45: =VLOOKUP(C45,'Anexo_GL '!$B$9:$N$1882,13,FALSE) -> Cumple
A46: 010119 : MD DE SAN ISIDRO DE MAYNO | B46: 19 | C46: 010119 | D46: AMAZONAS | E46: MD DE SAN ISIDRO DE MAYNO | F46: =VLOOKUP(C46,'Anexo_GL '!$B$9:$N$1882,4,FALSE) -> 17.06291 | H46: =VLOOKUP(C46,'Anexo_GL '!$B$9:$N$1882,5,FALSE) -> 511.3299875 | I46: =VLOOKUP(C46,'Anexo_GL '!$B$9:$N$1882,6,FALSE) -> 0.00088 | L46: =VLOOKUP(C46,'Anexo_GL '!$B$9:$N$1882,7,FALSE) -> 3.336966424 | N46: =VLOOKUP(C46,'Anexo_GL '!$B$9:$N$1882,8,FALSE) -> Cumple | P46: =VLOOKUP(C46,'Anexo_GL '!$B$9:$N$1882,10,FALSE) -> 269.01577 | Q46: =VLOOKUP(C46,'Anexo_GL '!$B$9:$N$1882,11,FALSE) -> 102.10258 | R46: =VLOOKUP(C46,'Anexo_GL '!$B$9:$N$1882,12,FALSE) -> 166.91319 | S46: =VLOOKUP(C46,'Anexo_GL '!$B$9:$N$1882,13,FALSE) -> Cumple
A47: 010120 : MD DE SOLOCO | B47: 20 | C47: 010120 | D47: AMAZONAS | E47: MD DE SOLOCO | F47: =VLOOKUP(C47,'Anexo_GL '!$B$9:$N$1882,4,FALSE) -> 933.1806 | H47: =VLOOKUP(C47,'Anexo_GL '!$B$9:$N$1882,5,FALSE) -> 892.15255 | I47: =VLOOKUP(C47,'Anexo_GL '!$B$9:$N$1882,6,FALSE) -> 0.00084 | L47: =VLOOKUP(C47,'Anexo_GL '!$B$9:$N$1882,7,FALSE) -> 104.5987707 | N47: =VLOOKUP(C47,'Anexo_GL '!$B$9:$N$1882,8,FALSE) -> No Cumple | P47: =VLOOKUP(C47,'Anexo_GL '!$B$9:$N$1882,10,FALSE) -> 266.47122 | Q47: =VLOOKUP(C47,'Anexo_GL '!$B$9:$N$1882,11,FALSE) -> 132.5765 | R47: =VLOOKUP(C47,'Anexo_GL '!$B$9:$N$1882,12,FALSE) -> 133.89472 | S47: =VLOOKUP(C47,'Anexo_GL '!$B$9:$N$1882,13,FALSE) -> Cumple
A48: 010121 : MD DE SONCHE | B48: 21 | C48: 010121 | D48: AMAZONAS | E48: MD DE SONCHE | F48: =VLOOKUP(C48,'Anexo_GL '!$B$9:$N$1882,4,FALSE) -> 17.55418 | H48: =VLOOKUP(C48,'Anexo_GL '!$B$9:$N$1882,5,FALSE) -> 467.093525 | I48: =VLOOKUP(C48,'Anexo_GL '!$B$9:$N$1882,6,FALSE) -> 0.00022 | L48: =VLOOKUP(C48,'Anexo_GL '!$B$9:$N$1882,7,FALSE) -> 3.758172413 | N48: =VLOOKUP(C48,'Anexo_GL '!$B$9:$N$1882,8,FALSE) -> Cumple | P48: =VLOOKUP(C48,'Anexo_GL '!$B$9:$N$1882,10,FALSE) -> 228.59031 | Q48: =VLOOKUP(C48,'Anexo_GL '!$B$9:$N$1882,11,FALSE) -> 120.61823 | R48: =VLOOKUP(C48,'Anexo_GL '!$B$9:$N$1882,12,FALSE) -> 107.97208 | S48: =VLOOKUP(C48,'Anexo_GL '!$B$9:$N$1882,13,FALSE) -> Cumple
A49: 010201 : MP DE BAGUA - LA PECA | B49: 22 | C49: 010201 | D49: AMAZONAS | E49: MP DE BAGUA - LA PECA | F49: =VLOOKUP(C49,'Anexo_GL '!$B$9:$N$1882,4,FALSE) -> 1226.21239 | H49: =VLOOKUP(C49,'Anexo_GL '!$B$9:$N$1882,5,FALSE) -> 11842.5577 | I49: =VLOOKUP(C49,'Anexo_GL '!$B$9:$N$1882,6,FALSE) -> 0.79891 | L49: =VLOOKUP(C49,'Anexo_GL '!$B$9:$N$1882,7,FALSE) -> 10.35428681 | N49: =VLOOKUP(C49,'Anexo_GL '!$B$9:$N$1882,8,FALSE) -> Cumple | P49: =VLOOKUP(C49,'Anexo_GL '!$B$9:$N$1882,10,FALSE) -> 6270.07408 | Q49: =VLOOKUP(C49,'Anexo_GL '!$B$9:$N$1882,11,FALSE) -> 4973.50648 | R49: =VLOOKUP(C49,'Anexo_GL '!$B$9:$N$1882,12,FALSE) -> 1296.5676 | S49: =VLOOKUP(C49,'Anexo_GL '!$B$9:$N$1882,13,FALSE) -> Cumple
A50: 010202 : MD DE ARAMANGO | B50: 23 | C50: 010202 | D50: AMAZONAS | E50: MD DE ARAMANGO | F50: =VLOOKUP(C50,'Anexo_GL '!$B$9:$N$1882,4,FALSE) -> 1031.92653 | H50: =VLOOKUP(C50,'Anexo_GL '!$B$9:$N$1882,5,FALSE) -> 3780.197648 | I50: =VLOOKUP(C50,'Anexo_GL '!$B$9:$N$1882,6,FALSE) -> 1.10553 | L50: =VLOOKUP(C50,'Anexo_GL '!$B$9:$N$1882,7,FALSE) -> 27.29821629 | N50: =VLOOKUP(C50,'Anexo_GL '!$B$9:$N$1882,8,FALSE) -> Cumple | P50: =VLOOKUP(C50,'Anexo_GL '!$B$9:$N$1882,10,FALSE) -> 1898.88526 | Q50: =VLOOKUP(C50,'Anexo_GL '!$B$9:$N$1882,11,FALSE) -> 1062.65556 | R50: =VLOOKUP(C50,'Anexo_GL '!$B$9:$N$1882,12,FALSE) -> 836.2297 | S50: =VLOOKUP(C50,'Anexo_GL '!$B$9:$N$1882,13,FALSE) -> Cumple
A51: 010203 : MD DE COPALLIN | B51: 24 | C51: 010203 | D51: AMAZONAS | E51: MD DE COPALLIN | F51: =VLOOKUP(C51,'Anexo_GL '!$B$9:$N$1882,4,FALSE) -> 398.35887 | H51: =VLOOKUP(C51,'Anexo_GL '!$B$9:$N$1882,5,FALSE) -> 1905.33045 | I51: =VLOOKUP(C51,'Anexo_GL '!$B$9:$N$1882,6,FALSE) -> 0.00088 | L51: =VLOOKUP(C51,'Anexo_GL '!$B$9:$N$1882,7,FALSE) -> 20.90760004 | N51: =VLOOKUP(C51,'Anexo_GL '!$B$9:$N$1882,8,FALSE) -> Cumple | P51: =VLOOKUP(C51,'Anexo_GL '!$B$9:$N$1882,10,FALSE) -> 1003.88377 | Q51: =VLOOKUP(C51,'Anexo_GL '!$B$9:$N$1882,11,FALSE) -> 867.81751 | R51: =VLOOKUP(C51,'Anexo_GL '!$B$9:$N$1882,12,FALSE) -> 136.06626 | S51: =VLOOKUP(C51,'Anexo_GL '!$B$9:$N$1882,13,FALSE) -> Cumple
A52: 010204 : MD DE EL PARCO | B52: 25 | C52: 010204 | D52: AMAZONAS | E52: MD DE EL PARCO | F52: =VLOOKUP(C52,'Anexo_GL '!$B$9:$N$1882,4,FALSE) -> 124.14113 | H52: =VLOOKUP(C52,'Anexo_GL '!$B$9:$N$1882,5,FALSE) -> 655.9308075 | I52: =VLOOKUP(C52,'Anexo_GL '!$B$9:$N$1882,6,FALSE) -> 0.00023 | L52: =VLOOKUP(C52,'Anexo_GL '!$B$9:$N$1882,7,FALSE) -> 18.92594898 | N52: =VLOOKUP(C52,'Anexo_GL '!$B$9:$N$1882,8,FALSE) -> Cumple | P52: =VLOOKUP(C52,'Anexo_GL '!$B$9:$N$1882,10,FALSE) -> 312.48318 | Q52: =VLOOKUP(C52,'Anexo_GL '!$B$9:$N$1882,11,FALSE) -> 277.21169 | R52: =VLOOKUP(C52,'Anexo_GL '!$B$9:$N$1882,12,FALSE) -> 35.27149 | S52: =VLOOKUP(C52,'Anexo_GL '!$B$9:$N$1882,13,FALSE) -> Cumple
A53: 010205 : MD DE IMAZA | B53: 26 | C53: 010205 | D53: AMAZONAS | E53: MD DE IMAZA | F53: =VLOOKUP(C53,'Anexo_GL '!$B$9:$N$1882,4,FALSE) -> 6435.92796 | H53: =VLOOKUP(C53,'Anexo_GL '!$B$9:$N$1882,5,FALSE) -> 8081.602818 | I53: =VLOOKUP(C53,'Anexo_GL '!$B$9:$N$1882,6,FALSE) -> 2.1932 | L53: =VLOOKUP(C53,'Anexo_GL '!$B$9:$N$1882,7,FALSE) -> 79.63677633 | N53: =VLOOKUP(C53,'Anexo_GL '!$B$9:$N$1882,8,FALSE) -> Cumple | P53: =VLOOKUP(C53,'Anexo_GL '!$B$9:$N$1882,10,FALSE) -> 4457.57185 | Q53: =VLOOKUP(C53,'Anexo_GL '!$B$9:$N$1882,11,FALSE) -> 2255.71618 | R53: =VLOOKUP(C53,'Anexo_GL '!$B$9:$N$1882,12,FALSE) -> 2201.85567 | S53: =VLOOKUP(C53,'Anexo_GL '!$B$9:$N$1882,13,FALSE) -> Cumple
A54: 010206 : MD DE LA PECA | B54: 27 | C54: 010206 | D54: AMAZONAS | E54: MD DE LA PECA | F54: =VLOOKUP(C54,'Anexo_GL '!$B$9:$N$1882,4,FALSE) -> 114.29337 | H54: =VLOOKUP(C54,'Anexo_GL '!$B$9:$N$1882,5,FALSE) -> 2206.427067 | I54: =VLOOKUP(C54,'Anexo_GL '!$B$9:$N$1882,6,FALSE) -> 0.00127 | L54: =VLOOKUP(C54,'Anexo_GL '!$B$9:$N$1882,7,FALSE) -> 5.1800203 | N54: =VLOOKUP(C54,'Anexo_GL '!$B$9:$N$1882,8,FALSE) -> Cumple | P54: =VLOOKUP(C54,'Anexo_GL '!$B$9:$N$1882,10,FALSE) -> 1154.86732 | Q54: =VLOOKUP(C54,'Anexo_GL '!$B$9:$N$1882,11,FALSE) -> 755.44119 | R54: =VLOOKUP(C54,'Anexo_GL '!$B$9:$N$1882,12,FALSE) -> 399.42613 | S54: =VLOOKUP(C54,'Anexo_GL '!$B$9:$N$1882,13,FALSE) -> Cumple
A55: 010301 : MP DE BONGARA - JUMBILLA | B55: 28 | C55: 010301 | D55: AMAZONAS | E55: MP DE BONGARA - JUMBILLA | F55: =VLOOKUP(C55,'Anexo_GL '!$B$9:$N$1882,4,FALSE) -> 1668.35319 | H55: =VLOOKUP(C55,'Anexo_GL '!$B$9:$N$1882,5,FALSE) -> 3138.213195 | I55: =VLOOKUP(C55,'Anexo_GL '!$B$9:$N$1882,6,FALSE) -> 0.00029 | L55: =VLOOKUP(C55,'Anexo_GL '!$B$9:$N$1882,7,FALSE) -> 53.16251913 | N55: =VLOOKUP(C55,'Anexo_GL '!$B$9:$N$1882,8,FALSE) -> Cumple | P55: =VLOOKUP(C55,'Anexo_GL '!$B$9:$N$1882,10,FALSE) -> 1515.17291 | Q55: =VLOOKUP(C55,'Anexo_GL '!$B$9:$N$1882,11,FALSE) -> 973.46897 | R55: =VLOOKUP(C55,'Anexo_GL '!$B$9:$N$1882,12,FALSE) -> 541.70394 | S55: =VLOOKUP(C55,'Anexo_GL '!$B$9:$N$1882,13,FALSE) -> Cumple
A56: 010302 : MD DE CHISQUILLA | B56: 29 | C56: 010302 | D56: AMAZONAS | E56: MD DE CHISQUILLA | F56: =VLOOKUP(C56,'Anexo_GL '!$B$9:$N$1882,4,FALSE) -> 21.35196 | H56: =VLOOKUP(C56,'Anexo_GL '!$B$9:$N$1882,5,FALSE) -> 1006.885702 | I56: =VLOOKUP(C56,'Anexo_GL '!$B$9:$N$1882,6,FALSE) -> 2e-05 | L56: =VLOOKUP(C56,'Anexo_GL '!$B$9:$N$1882,7,FALSE) -> 2.120594219 | N56: =VLOOKUP(C56,'Anexo_GL '!$B$9:$N$1882,8,FALSE) -> Cumple | P56: =VLOOKUP(C56,'Anexo_GL '!$B$9:$N$1882,10,FALSE) -> 221.8053 | Q56: =VLOOKUP(C56,'Anexo_GL '!$B$9:$N$1882,11,FALSE) -> 286.49759 | R56: =VLOOKUP(C56,'Anexo_GL '!$B$9:$N$1882,12,FALSE) -> -64.69229 | S56: =VLOOKUP(C56,'Anexo_GL '!$B$9:$N$1882,13,FALSE) -> No Cumple
A57: 010303 : MD DE CHURUJA | B57: 30 | C57: 010303 | D57: AMAZONAS | E57: MD DE CHURUJA | F57: =VLOOKUP(C57,'Anexo_GL '!$B$9:$N$1882,4,FALSE) -> 6.88126 | H57: =VLOOKUP(C57,'Anexo_GL '!$B$9:$N$1882,5,FALSE) -> 3631.87939 | I57: =VLOOKUP(C57,'Anexo_GL '!$B$9:$N$1882,6,FALSE) -> 2e-05 | L57: =VLOOKUP(C57,'Anexo_GL '!$B$9:$N$1882,7,FALSE) -> 0.1894682962 | N57: =VLOOKUP(C57,'Anexo_GL '!$B$9:$N$1882,8,FALSE) -> Cumple | P57: =VLOOKUP(C57,'Anexo_GL '!$B$9:$N$1882,10,FALSE) -> 244.40024 | Q57: =VLOOKUP(C57,'Anexo_GL '!$B$9:$N$1882,11,FALSE) -> 154.26468 | R57: =VLOOKUP(C57,'Anexo_GL '!$B$9:$N$1882,12,FALSE) -> 90.13556 | S57: =VLOOKUP(C57,'Anexo_GL '!$B$9:$N$1882,13,FALSE) -> Cumple
A58: 010304 : MD DE COROSHA | B58: 31 | C58: 010304 | D58: AMAZONAS | E58: MD DE COROSHA | F58: =VLOOKUP(C58,'Anexo_GL '!$B$9:$N$1882,4,FALSE) -> 42.5049 | H58: =VLOOKUP(C58,'Anexo_GL '!$B$9:$N$1882,5,FALSE) -> 720.1897575 | I58: =VLOOKUP(C58,'Anexo_GL '!$B$9:$N$1882,6,FALSE) -> 0.00018 | L58: =VLOOKUP(C58,'Anexo_GL '!$B$9:$N$1882,7,FALSE) -> 5.901902875 | N58: =VLOOKUP(C58,'Anexo_GL '!$B$9:$N$1882,8,FALSE) -> Cumple | P58: =VLOOKUP(C58,'Anexo_GL '!$B$9:$N$1882,10,FALSE) -> 106.47804 | Q58: =VLOOKUP(C58,'Anexo_GL '!$B$9:$N$1882,11,FALSE) -> 156.34806 | R58: =VLOOKUP(C58,'Anexo_GL '!$B$9:$N$1882,12,FALSE) -> -49.87002 | S58: =VLOOKUP(C58,'Anexo_GL '!$B$9:$N$1882,13,FALSE) -> No Cumple
A59: 010305 : MD DE CUISPES | B59: 32 | C59: 010305 | D59: AMAZONAS | E59: MD DE CUISPES | F59: =VLOOKUP(C59,'Anexo_GL '!$B$9:$N$1882,4,FALSE) -> 20.4596 | H59: =VLOOKUP(C59,'Anexo_GL '!$B$9:$N$1882,5,FALSE) -> 567.910055 | I59: =VLOOKUP(C59,'Anexo_GL '!$B$9:$N$1882,6,FALSE) -> 0.00012 | L59: =VLOOKUP(C59,'Anexo_GL '!$B$9:$N$1882,7,FALSE) -> 3.602612741 | N59: =VLOOKUP(C59,'Anexo_GL '!$B$9:$N$1882,8,FALSE) -> Cumple | P59: =VLOOKUP(C59,'Anexo_GL '!$B$9:$N$1882,10,FALSE) -> 284.83148 | Q59: =VLOOKUP(C59,'Anexo_GL '!$B$9:$N$1882,11,FALSE) -> 125.70328 | R59: =VLOOKUP(C59,'Anexo_GL '!$B$9:$N$1882,12,FALSE) -> 159.1282 | S59: =VLOOKUP(C59,'Anexo_GL '!$B$9:$N$1882,13,FALSE) -> Cumple
A60: 010306 : MD DE FLORIDA | B60: 33 | C60: 010306 | D60: AMAZONAS | E60: MD DE FLORIDA | F60: =VLOOKUP(C60,'Anexo_GL '!$B$9:$N$1882,4,FALSE) -> 273.25723 | H60: =VLOOKUP(C60,'Anexo_GL '!$B$9:$N$1882,5,FALSE) -> 1914.36955 | I60: =VLOOKUP(C60,'Anexo_GL '!$B$9:$N$1882,6,FALSE) -> 0.00122 | L60: =VLOOKUP(C60,'Anexo_GL '!$B$9:$N$1882,7,FALSE) -> 14.27400629 | N60: =VLOOKUP(C60,'Anexo_GL '!$B$9:$N$1882,8,FALSE) -> Cumple | P60: =VLOOKUP(C60,'Anexo_GL '!$B$9:$N$1882,10,FALSE) -> 960.58853 | Q60: =VLOOKUP(C60,'Anexo_GL '!$B$9:$N$1882,11,FALSE) -> 837.45884 | R60: =VLOOKUP(C60,'Anexo_GL '!$B$9:$N$1882,12,FALSE) -> 123.12969 | S60: =VLOOKUP(C60,'Anexo_GL '!$B$9:$N$1882,13,FALSE) -> Cumple
A61: 010307 : MD DE JAZAN | B61: 34 | C61: 010307 | D61: AMAZONAS | E61: MD DE JAZAN | F61: =VLOOKUP(C61,'Anexo_GL '!$B$9:$N$1882,4,FALSE) -> 1086.47722 | H61: =VLOOKUP(C61,'Anexo_GL '!$B$9:$N$1882,5,FALSE) -> 2366.347078 | I61: =VLOOKUP(C61,'Anexo_GL '!$B$9:$N$1882,6,FALSE) -> 0.00078 | L61: =VLOOKUP(C61,'Anexo_GL '!$B$9:$N$1882,7,FALSE) -> 45.91368825 | N61: =VLOOKUP(C61,'Anexo_GL '!$B$9:$N$1882,8,FALSE) -> Cumple | P61: =VLOOKUP(C61,'Anexo_GL '!$B$9:$N$1882,10,FALSE) -> 1261.68817 | Q61: =VLOOKUP(C61,'Anexo_GL '!$B$9:$N$1882,11,FALSE) -> 823.44634 | R61: =VLOOKUP(C61,'Anexo_GL '!$B$9:$N$1882,12,FALSE) -> 438.24183 | S61: =VLOOKUP(C61,'Anexo_GL '!$B$9:$N$1882,13,FALSE) -> Cumple
A62: 010308 : MD DE RECTA | B62: 35 | C62: 010308 | D62: AMAZONAS | E62: MD DE RECTA | F62: =VLOOKUP(C62,'Anexo_GL '!$B$9:$N$1882,4,FALSE) -> 11.9162 | H62: =VLOOKUP(C62,'Anexo_GL '!$B$9:$N$1882,5,FALSE) -> 429.18529 | I62: =VLOOKUP(C62,'Anexo_GL '!$B$9:$N$1882,6,FALSE) -> 1e-05 | L62: =VLOOKUP(C62,'Anexo_GL '!$B$9:$N$1882,7,FALSE) -> 2.776469809 | N62: =VLOOKUP(C62,'Anexo_GL '!$B$9:$N$1882,8,FALSE) -> Cumple | P62: =VLOOKUP(C62,'Anexo_GL '!$B$9:$N$1882,10,FALSE) -> 217.10396 | Q62: =VLOOKUP(C62,'Anexo_GL '!$B$9:$N$1882,11,FALSE) -> 115.7504 | R62: =VLOOKUP(C62,'Anexo_GL '!$B$9:$N$1882,12,FALSE) -> 101.35356 | S62: =VLOOKUP(C62,'Anexo_GL '!$B$9:$N$1882,13,FALSE) -> Cumple
A63: 010309 : MD DE SAN CARLOS | B63: 36 | C63: 010309 | D63: AMAZONAS | E63: MD DE SAN CARLOS | F63: =VLOOKUP(C63,'Anexo_GL '!$B$9:$N$1882,4,FALSE) -> 68.71667 | H63: =VLOOKUP(C63,'Anexo_GL '!$B$9:$N$1882,5,FALSE) -> 1665.3887 | I63: =VLOOKUP(C63,'Anexo_GL '!$B$9:$N$1882,6,FALSE) -> 1e-05 | L63: =VLOOKUP(C63,'Anexo_GL '!$B$9:$N$1882,7,FALSE) -> 4.12616406 | N63: =VLOOKUP(C63,'Anexo_GL '!$B$9:$N$1882,8,FALSE) -> Cumple | P63: =VLOOKUP(C63,'Anexo_GL '!$B$9:$N$1882,10,FALSE) -> 210.99351 | Q63: =VLOOKUP(C63,'Anexo_GL '!$B$9:$N$1882,11,FALSE) -> 131.69442 | R63: =VLOOKUP(C63,'Anexo_GL '!$B$9:$N$1882,12,FALSE) -> 79.29909 | S63: =VLOOKUP(C63,'Anexo_GL '!$B$9:$N$1882,13,FALSE) -> Cumple
A64: 010310 : MD DE SHIPASBAMBA | B64: 37 | C64: 010310 | D64: AMAZONAS | E64: MD DE SHIPASBAMBA | F64: =VLOOKUP(C64,'Anexo_GL '!$B$9:$N$1882,4,FALSE) -> 13.01644 | H64: =VLOOKUP(C64,'Anexo_GL '!$B$9:$N$1882,5,FALSE) -> 753.01309 | I64: =VLOOKUP(C64,'Anexo_GL '!$B$9:$N$1882,6,FALSE) -> 0.00029 | L64: =VLOOKUP(C64,'Anexo_GL '!$B$9:$N$1882,7,FALSE) -> 1.72858084 | N64: =VLOOKUP(C64,'Anexo_GL '!$B$9:$N$1882,8,FALSE) -> Cumple | P64: =VLOOKUP(C64,'Anexo_GL '!$B$9:$N$1882,10,FALSE) -> 379.49585 | Q64: =VLOOKUP(C64,'Anexo_GL '!$B$9:$N$1882,11,FALSE) -> 233.62187 | R64: =VLOOKUP(C64,'Anexo_GL '!$B$9:$N$1882,12,FALSE) -> 145.87398 | S64: =VLOOKUP(C64,'Anexo_GL '!$B$9:$N$1882,13,FALSE) -> Cumple
A65: 010311 : MD DE VALERA | B65: 38 | C65: 010311 | D65: AMAZONAS | E65: MD DE VALERA | F65: =VLOOKUP(C65,'Anexo_GL '!$B$9:$N$1882,4,FALSE) -> 22.25288 | H65: =VLOOKUP(C65,'Anexo_GL '!$B$9:$N$1882,5,FALSE) -> 598.61904 | I65: =VLOOKUP(C65,'Anexo_GL '!$B$9:$N$1882,6,FALSE) -> 0.00021 | L65: =VLOOKUP(C65,'Anexo_GL '!$B$9:$N$1882,7,FALSE) -> 3.71736923 | N65: =VLOOKUP(C65,'Anexo_GL '!$B$9:$N$1882,8,FALSE) -> Cumple | P65: =VLOOKUP(C65,'Anexo_GL '!$B$9:$N$1882,10,FALSE) -> 311.2484 | Q65: =VLOOKUP(C65,'Anexo_GL '!$B$9:$N$1882,11,FALSE) -> 184.24416 | R65: =VLOOKUP(C65,'Anexo_GL '!$B$9:$N$1882,12,FALSE) -> 127.00424 | S65: =VLOOKUP(C65,'Anexo_GL '!$B$9:$N$1882,13,FALSE) -> Cumple
A66: 010312 : MD DE YAMBRASBAMBA | B66: 39 | C66: 010312 | D66: AMAZONAS | E66: MD DE YAMBRASBAMBA | F66: =VLOOKUP(C66,'Anexo_GL '!$B$9:$N$1882,4,FALSE) -> 407.13243 | H66: =VLOOKUP(C66,'Anexo_GL '!$B$9:$N$1882,5,FALSE) -> 2488.200142 | I66: =VLOOKUP(C66,'Anexo_GL '!$B$9:$N$1882,6,FALSE) -> 0.00145 | L66: =VLOOKUP(C66,'Anexo_GL '!$B$9:$N$1882,7,FALSE) -> 16.3625274 | N66: =VLOOKUP(C66,'Anexo_GL '!$B$9:$N$1882,8,FALSE) -> Cumple | P66: =VLOOKUP(C66,'Anexo_GL '!$B$9:$N$1882,10,FALSE) -> 1228.71161 | Q66: =VLOOKUP(C66,'Anexo_GL '!$B$9:$N$1882,11,FALSE) -> 810.06341 | R66: =VLOOKUP(C66,'Anexo_GL '!$B$9:$N$1882,12,FALSE) -> 418.6482 | S66: =VLOOKUP(C66,'Anexo_GL '!$B$9:$N$1882,13,FALSE) -> Cumple
A67: 010401 : MP DE CONDORCANQUI - NIEVA | B67: 40 | C67: 010401 | D67: AMAZONAS | E67: MP DE CONDORCANQUI - NIEVA | F67: =VLOOKUP(C67,'Anexo_GL '!$B$9:$N$1882,4,FALSE) -> 1306.06279 | H67: =VLOOKUP(C67,'Anexo_GL '!$B$9:$N$1882,5,FALSE) -> 16552.32116 | I67: =VLOOKUP(C67,'Anexo_GL '!$B$9:$N$1882,6,FALSE) -> 2.38616 | L67: =VLOOKUP(C67,'Anexo_GL '!$B$9:$N$1882,7,FALSE) -> 7.890511412 | N67: =VLOOKUP(C67,'Anexo_GL '!$B$9:$N$1882,8,FALSE) -> Cumple | P67: =VLOOKUP(C67,'Anexo_GL '!$B$9:$N$1882,10,FALSE) -> 9256.19688 | Q67: =VLOOKUP(C67,'Anexo_GL '!$B$9:$N$1882,11,FALSE) -> 5291.26161 | R67: =VLOOKUP(C67,'Anexo_GL '!$B$9:$N$1882,12,FALSE) -> 3964.93527 | S67: =VLOOKUP(C67,'Anexo_GL '!$B$9:$N$1882,13,FALSE) -> Cumple
A68: 010402 : MD DE EL CENEPA | B68: 41 | C68: 010402 | D68: AMAZONAS | E68: MD DE EL CENEPA | F68: =VLOOKUP(C68,'Anexo_GL '!$B$9:$N$1882,4,FALSE) -> 1140.39632 | H68: =VLOOKUP(C68,'Anexo_GL '!$B$9:$N$1882,5,FALSE) -> 4066.637915 | I68: =VLOOKUP(C68,'Anexo_GL '!$B$9:$N$1882,6,FALSE) -> 0.60467 | L68: =VLOOKUP(C68,'Anexo_GL '!$B$9:$N$1882,7,FALSE) -> 28.04273072 | N68: =VLOOKUP(C68,'Anexo_GL '!$B$9:$N$1882,8,FALSE) -> Cumple | P68: =VLOOKUP(C68,'Anexo_GL '!$B$9:$N$1882,10,FALSE) -> 2063.90369 | Q68: =VLOOKUP(C68,'Anexo_GL '!$B$9:$N$1882,11,FALSE) -> 1498.19301 | R68: =VLOOKUP(C68,'Anexo_GL '!$B$9:$N$1882,12,FALSE) -> 565.71068 | S68: =VLOOKUP(C68,'Anexo_GL '!$B$9:$N$1882,13,FALSE) -> Cumple
A69: 010403 : MD DE RIO SANTIAGO | B69: 42 | C69: 010403 | D69: AMAZONAS | E69: MD DE RIO SANTIAGO | F69: =VLOOKUP(C69,'Anexo_GL '!$B$9:$N$1882,4,FALSE) -> 2368.42343 | H69: =VLOOKUP(C69,'Anexo_GL '!$B$9:$N$1882,5,FALSE) -> 6927.47881 | I69: =VLOOKUP(C69,'Anexo_GL '!$B$9:$N$1882,6,FALSE) -> 1.03501 | L69: =VLOOKUP(C69,'Anexo_GL '!$B$9:$N$1882,7,FALSE) -> 34.18882244 | N69: =VLOOKUP(C69,'Anexo_GL '!$B$9:$N$1882,8,FALSE) -> Cumple | P69: =VLOOKUP(C69,'Anexo_GL '!$B$9:$N$1882,10,FALSE) -> 4574.99008 | Q69: =VLOOKUP(C69,'Anexo_GL '!$B$9:$N$1882,11,FALSE) -> 2463.3963 | R69: =VLOOKUP(C69,'Anexo_GL '!$B$9:$N$1882,12,FALSE) -> 2111.59378 | S69: =VLOOKUP(C69,'Anexo_GL '!$B$9:$N$1882,13,FALSE) -> Cumple
A70: 010501 : MP DE LUYA - LAMUD | B70: 43 | C70: 010501 | D70: AMAZONAS | E70: MP DE LUYA - LAMUD | F70: =VLOOKUP(C70,'Anexo_GL '!$B$9:$N$1882,4,FALSE) -> 2316.46329 | H70: =VLOOKUP(C70,'Anexo_GL '!$B$9:$N$1882,5,FALSE) -> 6087.06507 | I70: =VLOOKUP(C70,'Anexo_GL '!$B$9:$N$1882,6,FALSE) -> 0.00021 | L70: =VLOOKUP(C70,'Anexo_GL '!$B$9:$N$1882,7,FALSE) -> 38.05550398 | N70: =VLOOKUP(C70,'Anexo_GL '!$B$9:$N$1882,8,FALSE) -> Cumple | P70: =VLOOKUP(C70,'Anexo_GL '!$B$9:$N$1882,10,FALSE) -> 3256.1599 | Q70: =VLOOKUP(C70,'Anexo_GL '!$B$9:$N$1882,11,FALSE) -> 1221.40659 | R70: =VLOOKUP(C70,'Anexo_GL '!$B$9:$N$1882,12,FALSE) -> 2034.75331 | S70: =VLOOKUP(C70,'Anexo_GL '!$B$9:$N$1882,13,FALSE) -> Cumple
A71: 010502 : MD DE CAMPORREDONDO | B71: 44 | C71: 010502 | D71: AMAZONAS | E71: MD DE CAMPORREDONDO | F71: =VLOOKUP(C71,'Anexo_GL '!$B$9:$N$1882,4,FALSE) -> 55.43512 | H71: =VLOOKUP(C71,'Anexo_GL '!$B$9:$N$1882,5,FALSE) -> 1987.869505 | I71: =VLOOKUP(C71,'Anexo_GL '!$B$9:$N$1882,6,FALSE) -> 0.00126 | L71: =VLOOKUP(C71,'Anexo_GL '!$B$9:$N$1882,7,FALSE) -> 2.788669974 | N71: =VLOOKUP(C71,'Anexo_GL '!$B$9:$N$1882,8,FALSE) -> Cumple | P71: =VLOOKUP(C71,'Anexo_GL '!$B$9:$N$1882,10,FALSE) -> 912.40052 | Q71: =VLOOKUP(C71,'Anexo_GL '!$B$9:$N$1882,11,FALSE) -> 641.95013 | R71: =VLOOKUP(C71,'Anexo_GL '!$B$9:$N$1882,12,FALSE) -> 270.45039 | S71: =VLOOKUP(C71,'Anexo_GL '!$B$9:$N$1882,13,FALSE) -> Cumple
A72: 010503 : MD DE COCABAMBA | B72: 45 | C72: 010503 | D72: AMAZONAS | E72: MD DE COCABAMBA | F72: =VLOOKUP(C72,'Anexo_GL '!$B$9:$N$1882,4,FALSE) -> 597.52342 | H72: =VLOOKUP(C72,'Anexo_GL '!$B$9:$N$1882,5,FALSE) -> 952.44303 | I72: =VLOOKUP(C72,'Anexo_GL '!$B$9:$N$1882,6,FALSE) -> 0.00041 | L72: =VLOOKUP(C72,'Anexo_GL '!$B$9:$N$1882,7,FALSE) -> 62.73586988 | N72: =VLOOKUP(C72,'Anexo_GL '!$B$9:$N$1882,8,FALSE) -> Cumple | P72: =VLOOKUP(C72,'Anexo_GL '!$B$9:$N$1882,10,FALSE) -> 500.73897 | Q72: =VLOOKUP(C72,'Anexo_GL '!$B$9:$N$1882,11,FALSE) -> 186.72086 | R72: =VLOOKUP(C72,'Anexo_GL '!$B$9:$N$1882,12,FALSE) -> 314.01811 | S72: =VLOOKUP(C72,'Anexo_GL '!$B$9:$N$1882,13,FALSE) -> Cumple
A73: 010504 : MD DE COLCAMAR | B73: 46 | C73: 010504 | D73: AMAZONAS | E73: MD DE COLCAMAR | F73: =VLOOKUP(C73,'Anexo_GL '!$B$9:$N$1882,4,FALSE) -> 217.84289 | H73: =VLOOKUP(C73,'Anexo_GL '!$B$9:$N$1882,5,FALSE) -> 689.32245 | I73: =VLOOKUP(C73,'Anexo_GL '!$B$9:$N$1882,6,FALSE) -> 0.00024 | L73: =VLOOKUP(C73,'Anexo_GL '!$B$9:$N$1882,7,FALSE) -> 31.60246558 | N73: =VLOOKUP(C73,'Anexo_GL '!$B$9:$N$1882,8,FALSE) -> Cumple | P73: =VLOOKUP(C73,'Anexo_GL '!$B$9:$N$1882,10,FALSE) -> 340.68858 | Q73: =VLOOKUP(C73,'Anexo_GL '!$B$9:$N$1882,11,FALSE) -> 179.13715 | R73: =VLOOKUP(C73,'Anexo_GL '!$B$9:$N$1882,12,FALSE) -> 161.55143 | S73: =VLOOKUP(C73,'Anexo_GL '!$B$9:$N$1882,13,FALSE) -> Cumple
A74: 010505 : MD DE CONILA | B74: 47 | C74: 010505 | D74: AMAZONAS | E74: MD DE CONILA | F74: =VLOOKUP(C74,'Anexo_GL '!$B$9:$N$1882,4,FALSE) -> 389.02572 | H74: =VLOOKUP(C74,'Anexo_GL '!$B$9:$N$1882,5,FALSE) -> 922.67554 | I74: =VLOOKUP(C74,'Anexo_GL '!$B$9:$N$1882,6,FALSE) -> 0.00032 | L74: =VLOOKUP(C74,'Anexo_GL '!$B$9:$N$1882,7,FALSE) -> 42.16278671 | N74: =VLOOKUP(C74,'Anexo_GL '!$B$9:$N$1882,8,FALSE) -> Cumple | P74: =VLOOKUP(C74,'Anexo_GL '!$B$9:$N$1882,10,FALSE) -> 337.65471 | Q74: =VLOOKUP(C74,'Anexo_GL '!$B$9:$N$1882,11,FALSE) -> 261.90371 | R74: =VLOOKUP(C74,'Anexo_GL '!$B$9:$N$1882,12,FALSE) -> 75.751 | S74: =VLOOKUP(C74,'Anexo_GL '!$B$9:$N$1882,13,FALSE) -> Cumple
A75: 010506 : MD DE INGUILPATA | B75: 48 | C75: 010506 | D75: AMAZONAS | E75: MD DE INGUILPATA | F75: =VLOOKUP(C75,'Anexo_GL '!$B$9:$N$1882,4,FALSE) -> 36.79207 | H75: =VLOOKUP(C75,'Anexo_GL '!$B$9:$N$1882,5,FALSE) -> 552.5593175 | I75: =VLOOKUP(C75,'Anexo_GL '!$B$9:$N$1882,6,FALSE) -> 4e-05 | L75: =VLOOKUP(C75,'Anexo_GL '!$B$9:$N$1882,7,FALSE) -> 6.658483322 | N75: =VLOOKUP(C75,'Anexo_GL '!$B$9:$N$1882,8,FALSE) -> Cumple | P75: =VLOOKUP(C75,'Anexo_GL '!$B$9:$N$1882,10,FALSE) -> 242.46733 | Q75: =VLOOKUP(C75,'Anexo_GL '!$B$9:$N$1882,11,FALSE) -> 129.40301 | R75: =VLOOKUP(C75,'Anexo_GL '!$B$9:$N$1882,12,FALSE) -> 113.06432 | S75: =VLOOKUP(C75,'Anexo_GL '!$B$9:$N$1882,13,FALSE) -> Cumple
A76: 010507 : MD DE LONGUITA | B76: 49 | C76: 010507 | D76: AMAZONAS | E76: MD DE LONGUITA | F76: =VLOOKUP(C76,'Anexo_GL '!$B$9:$N$1882,4,FALSE) -> 188.17699 | H76: =VLOOKUP(C76,'Anexo_GL '!$B$9:$N$1882,5,FALSE) -> 597.371515 | I76: =VLOOKUP(C76,'Anexo_GL '!$B$9:$N$1882,6,FALSE) -> 0.00021 | L76: =VLOOKUP(C76,'Anexo_GL '!$B$9:$N$1882,7,FALSE) -> 31.50083077 | N76: =VLOOKUP(C76,'Anexo_GL '!$B$9:$N$1882,8,FALSE) -> Cumple | P76: =VLOOKUP(C76,'Anexo_GL '!$B$9:$N$1882,10,FALSE) -> 258.09202 | Q76: =VLOOKUP(C76,'Anexo_GL '!$B$9:$N$1882,11,FALSE) -> 184.78788 | R76: =VLOOKUP(C76,'Anexo_GL '!$B$9:$N$1882,12,FALSE) -> 73.30414 | S76: =VLOOKUP(C76,'Anexo_GL '!$B$9:$N$1882,13,FALSE) -> Cumple
A77: 010508 : MD DE LONYA CHICO | B77: 50 | C77: 010508 | D77: AMAZONAS | E77: MD DE LONYA CHICO | F77: =VLOOKUP(C77,'Anexo_GL '!$B$9:$N$1882,4,FALSE) -> 3.75973 | H77: =VLOOKUP(C77,'Anexo_GL '!$B$9:$N$1882,5,FALSE) -> 721.4358225 | I77: =VLOOKUP(C77,'Anexo_GL '!$B$9:$N$1882,6,FALSE) -> 8e-05 | L77: =VLOOKUP(C77,'Anexo_GL '!$B$9:$N$1882,7,FALSE) -> 0.521145455 | N77: =VLOOKUP(C77,'Anexo_GL '!$B$9:$N$1882,8,FALSE) -> Cumple | P77: =VLOOKUP(C77,'Anexo_GL '!$B$9:$N$1882,10,FALSE) -> 356.4821 | Q77: =VLOOKUP(C77,'Anexo_GL '!$B$9:$N$1882,11,FALSE) -> 195.12227 | R77: =VLOOKUP(C77,'Anexo_GL '!$B$9:$N$1882,12,FALSE) -> 161.35983 | S77: =VLOOKUP(C77,'Anexo_GL '!$B$9:$N$1882,13,FALSE) -> Cumple
A78: 010509 : MD DE LUYA | B78: 51 | C78: 010509 | D78: AMAZONAS | E78: MD DE LUYA | F78: =VLOOKUP(C78,'Anexo_GL '!$B$9:$N$1882,4,FALSE) -> 167.06604 | H78: =VLOOKUP(C78,'Anexo_GL '!$B$9:$N$1882,5,FALSE) -> 1253.782238 | I78: =VLOOKUP(C78,'Anexo_GL '!$B$9:$N$1882,6,FALSE) -> 0.00041 | L78: =VLOOKUP(C78,'Anexo_GL '!$B$9:$N$1882,7,FALSE) -> 13.32496466 | N78: =VLOOKUP(C78,'Anexo_GL '!$B$9:$N$1882,8,FALSE) -> Cumple | P78: =VLOOKUP(C78,'Anexo_GL '!$B$9:$N$1882,10,FALSE) -> 825.12473 | Q78: =VLOOKUP(C78,'Anexo_GL '!$B$9:$N$1882,11,FALSE) -> 399.46635 | R78: =VLOOKUP(C78,'Anexo_GL '!$B$9:$N$1882,12,FALSE) -> 425.65838 | S78: =VLOOKUP(C78,'Anexo_GL '!$B$9:$N$1882,13,FALSE) -> Cumple
A79: 010510 : MD DE LUYA VIEJO | B79: 52 | C79: 010510 | D79: AMAZONAS | E79: MD DE LUYA VIEJO | F79: =VLOOKUP(C79,'Anexo_GL '!$B$9:$N$1882,4,FALSE) -> 47.04112 | H79: =VLOOKUP(C79,'Anexo_GL '!$B$9:$N$1882,5,FALSE) -> 496.69758 | I79: =VLOOKUP(C79,'Anexo_GL '!$B$9:$N$1882,6,FALSE) -> 6e-05 | L79: =VLOOKUP(C79,'Anexo_GL '!$B$9:$N$1882,7,FALSE) -> 9.470776967 | N79: =VLOOKUP(C79,'Anexo_GL '!$B$9:$N$1882,8,FALSE) -> Cumple | P79: =VLOOKUP(C79,'Anexo_GL '!$B$9:$N$1882,10,FALSE) -> 241.75956 | Q79: =VLOOKUP(C79,'Anexo_GL '!$B$9:$N$1882,11,FALSE) -> 120.50008 | R79: =VLOOKUP(C79,'Anexo_GL '!$B$9:$N$1882,12,FALSE) -> 121.25948 | S79: =VLOOKUP(C79,'Anexo_GL '!$B$9:$N$1882,13,FALSE) -> Cumple
A80: 010511 : MD DE MARIA | B80: 53 | C80: 010511 | D80: AMAZONAS | E80: MD DE MARIA | F80: =VLOOKUP(C80,'Anexo_GL '!$B$9:$N$1882,4,FALSE) -> 23.99311 | H80: =VLOOKUP(C80,'Anexo_GL '!$B$9:$N$1882,5,FALSE) -> 564.4197375 | I80: =VLOOKUP(C80,'Anexo_GL '!$B$9:$N$1882,6,FALSE) -> 6e-05 | L80: =VLOOKUP(C80,'Anexo_GL '!$B$9:$N$1882,7,FALSE) -> 4.250933907 | N80: =VLOOKUP(C80,'Anexo_GL '!$B$9:$N$1882,8,FALSE) -> Cumple | P80: =VLOOKUP(C80,'Anexo_GL '!$B$9:$N$1882,10,FALSE) -> 243.23363 | Q80: =VLOOKUP(C80,'Anexo_GL '!$B$9:$N$1882,11,FALSE) -> 120.11408 | R80: =VLOOKUP(C80,'Anexo_GL '!$B$9:$N$1882,12,FALSE) -> 123.11955 | S80: =VLOOKUP(C80,'Anexo_GL '!$B$9:$N$1882,13,FALSE) -> Cumple
A81: 010512 : MD DE OCALLI | B81: 54 | C81: 010512 | D81: AMAZONAS | E81: MD DE OCALLI | F81: =VLOOKUP(C81,'Anexo_GL '!$B$9:$N$1882,4,FALSE) -> 107.40126 | H81: =VLOOKUP(C81,'Anexo_GL '!$B$9:$N$1882,5,FALSE) -> 1301.168802 | I81: =VLOOKUP(C81,'Anexo_GL '!$B$9:$N$1882,6,FALSE) -> 0.00082 | L81: =VLOOKUP(C81,'Anexo_GL '!$B$9:$N$1882,7,FALSE) -> 8.254214195 | N81: =VLOOKUP(C81,'Anexo_GL '!$B$9:$N$1882,8,FALSE) -> Cumple | P81: =VLOOKUP(C81,'Anexo_GL '!$B$9:$N$1882,10,FALSE) -> 677.09322 | Q81: =VLOOKUP(C81,'Anexo_GL '!$B$9:$N$1882,11,FALSE) -> 344.61229 | R81: =VLOOKUP(C81,'Anexo_GL '!$B$9:$N$1882,12,FALSE) -> 332.48093 | S81: =VLOOKUP(C81,'Anexo_GL '!$B$9:$N$1882,13,FALSE) -> Cumple
A82: 010513 : MD DE OCUMAL | B82: 55 | C82: 010513 | D82: AMAZONAS | E82: MD DE OCUMAL | F82: =VLOOKUP(C82,'Anexo_GL '!$B$9:$N$1882,4,FALSE) -> 73.16577 | H82: =VLOOKUP(C82,'Anexo_GL '!$B$9:$N$1882,5,FALSE) -> 1402.112655 | I82: =VLOOKUP(C82,'Anexo_GL '!$B$9:$N$1882,6,FALSE) -> 0.00078 | L82: =VLOOKUP(C82,'Anexo_GL '!$B$9:$N$1882,7,FALSE) -> 5.218251881 | N82: =VLOOKUP(C82,'Anexo_GL '!$B$9:$N$1882,8,FALSE) -> Cumple | P82: =VLOOKUP(C82,'Anexo_GL '!$B$9:$N$1882,10,FALSE) -> 724.25028 | Q82: =VLOOKUP(C82,'Anexo_GL '!$B$9:$N$1882,11,FALSE) -> 332.03529 | R82: =VLOOKUP(C82,'Anexo_GL '!$B$9:$N$1882,12,FALSE) -> 392.21499 | S82: =VLOOKUP(C82,'Anexo_GL '!$B$9:$N$1882,13,FALSE) -> Cumple
A83: 010514 : MD DE PIZUQUIA | B83: 56 | C83: 010514 | D83: AMAZONAS | E83: MD DE PIZUQUIA | F83: =VLOOKUP(C83,'Anexo_GL '!$B$9:$N$1882,4,FALSE) -> 929.17653 | H83: =VLOOKUP(C83,'Anexo_GL '!$B$9:$N$1882,5,FALSE) -> 2074.228627 | I83: =VLOOKUP(C83,'Anexo_GL '!$B$9:$N$1882,6,FALSE) -> 0.00095 | L83: =VLOOKUP(C83,'Anexo_GL '!$B$9:$N$1882,7,FALSE) -> 44.79624462 | N83: =VLOOKUP(C83,'Anexo_GL '!$B$9:$N$1882,8,FALSE) -> Cumple | P83: =VLOOKUP(C83,'Anexo_GL '!$B$9:$N$1882,10,FALSE) -> 1043.25627 | Q83: =VLOOKUP(C83,'Anexo_GL '!$B$9:$N$1882,11,FALSE) -> 580.06083 | R83: =VLOOKUP(C83,'Anexo_GL '!$B$9:$N$1882,12,FALSE) -> 463.19544 | S83: =VLOOKUP(C83,'Anexo_GL '!$B$9:$N$1882,13,FALSE) -> Cumple
A84: 010515 : MD DE PROVIDENCIA | B84: 57 | C84: 010515 | D84: AMAZONAS | E84: MD DE PROVIDENCIA | F84: =VLOOKUP(C84,'Anexo_GL '!$B$9:$N$1882,4,FALSE) -> 100.71411 | H84: =VLOOKUP(C84,'Anexo_GL '!$B$9:$N$1882,5,FALSE) -> 623.1306325 | I84: =VLOOKUP(C84,'Anexo_GL '!$B$9:$N$1882,6,FALSE) -> 0.00023 | L84: =VLOOKUP(C84,'Anexo_GL '!$B$9:$N$1882,7,FALSE) -> 16.16259974 | N84: =VLOOKUP(C84,'Anexo_GL '!$B$9:$N$1882,8,FALSE) -> Cumple | P84: =VLOOKUP(C84,'Anexo_GL '!$B$9:$N$1882,10,FALSE) -> 266.99803 | Q84: =VLOOKUP(C84,'Anexo_GL '!$B$9:$N$1882,11,FALSE) -> 253.91136 | R84: =VLOOKUP(C84,'Anexo_GL '!$B$9:$N$1882,12,FALSE) -> 13.08667 | S84: =VLOOKUP(C84,'Anexo_GL '!$B$9:$N$1882,13,FALSE) -> Cumple
A85: 010516 : MD DE SAN CRISTOBAL DE OLTO | B85: 58 | C85: 010516 | D85: AMAZONAS | E85: MD DE SAN CRISTOBAL DE OLTO | F85: =VLOOKUP(C85,'Anexo_GL '!$B$9:$N$1882,4,FALSE) -> 31.18566 | H85: =VLOOKUP(C85,'Anexo_GL '!$B$9:$N$1882,5,FALSE) -> 549.0248875 | I85: =VLOOKUP(C85,'Anexo_GL '!$B$9:$N$1882,6,FALSE) -> 0.00012 | L85: =VLOOKUP(C85,'Anexo_GL '!$B$9:$N$1882,7,FALSE) -> 5.680190591 | N85: =VLOOKUP(C85,'Anexo_GL '!$B$9:$N$1882,8,FALSE) -> Cumple | P85: =VLOOKUP(C85,'Anexo_GL '!$B$9:$N$1882,10,FALSE) -> 244.78539 | Q85: =VLOOKUP(C85,'Anexo_GL '!$B$9:$N$1882,11,FALSE) -> 146.03757 | R85: =VLOOKUP(C85,'Anexo_GL '!$B$9:$N$1882,12,FALSE) -> 98.74782 | S85: =VLOOKUP(C85,'Anexo_GL '!$B$9:$N$1882,13,FALSE) -> Cumple
A86: 010517 : MD DE SAN FRANCISCO DE YESO | B86: 59 | C86: 010517 | D86: AMAZONAS | E86: MD DE SAN FRANCISCO DE YESO | F86: =VLOOKUP(C86,'Anexo_GL '!$B$9:$N$1882,4,FALSE) -> 287.57521 | H86: =VLOOKUP(C86,'Anexo_GL '!$B$9:$N$1882,5,FALSE) -> 520.653275 | I86: =VLOOKUP(C86,'Anexo_GL '!$B$9:$N$1882,6,FALSE) -> 0.00014 | L86: =VLOOKUP(C86,'Anexo_GL '!$B$9:$N$1882,7,FALSE) -> 55.23353522 | N86: =VLOOKUP(C86,'Anexo_GL '!$B$9:$N$1882,8,FALSE) -> Cumple | P86: =VLOOKUP(C86,'Anexo_GL '!$B$9:$N$1882,10,FALSE) -> 247.42551 | Q86: =VLOOKUP(C86,'Anexo_GL '!$B$9:$N$1882,11,FALSE) -> 163.3427 | R86: =VLOOKUP(C86,'Anexo_GL '!$B$9:$N$1882,12,FALSE) -> 84.08281 | S86: =VLOOKUP(C86,'Anexo_GL '!$B$9:$N$1882,13,FALSE) -> Cumple
A87: 010518 : MD DE SAN JERONIMO DE PACLAS | B87: 60 | C87: 010518 | D87: AMAZONAS | E87: MD DE SAN JERONIMO DE PACLAS | F87: =VLOOKUP(C87,'Anexo_GL '!$B$9:$N$1882,4,FALSE) -> 38.0043 | H87: =VLOOKUP(C87,'Anexo_GL '!$B$9:$N$1882,5,FALSE) -> 536.8402575 | I87: =VLOOKUP(C87,'Anexo_GL '!$B$9:$N$1882,6,FALSE) -> 0.00014 | L87: =VLOOKUP(C87,'Anexo_GL '!$B$9:$N$1882,7,FALSE) -> 7.079256719 | N87: =VLOOKUP(C87,'Anexo_GL '!$B$9:$N$1882,8,FALSE) -> Cumple | P87: =VLOOKUP(C87,'Anexo_GL '!$B$9:$N$1882,10,FALSE) -> 227.22231 | Q87: =VLOOKUP(C87,'Anexo_GL '!$B$9:$N$1882,11,FALSE) -> 145.08285 | R87: =VLOOKUP(C87,'Anexo_GL '!$B$9:$N$1882,12,FALSE) -> 82.13946 | S87: =VLOOKUP(C87,'Anexo_GL '!$B$9:$N$1882,13,FALSE) -> Cumple
A88: 010519 : MD DE SAN JUAN DE LOPECANCHA | B88: 61 | C88: 010519 | D88: AMAZONAS | E88: MD DE SAN JUAN DE LOPECANCHA | F88: =VLOOKUP(C88,'Anexo_GL '!$B$9:$N$1882,4,FALSE) -> 75.66778 | H88: =VLOOKUP(C88,'Anexo_GL '!$B$9:$N$1882,5,FALSE) -> 650.002835 | I88: =VLOOKUP(C88,'Anexo_GL '!$B$9:$N$1882,6,FALSE) -> 8e-05 | L88: =VLOOKUP(C88,'Anexo_GL '!$B$9:$N$1882,7,FALSE) -> 11.64114615 | N88: =VLOOKUP(C88,'Anexo_GL '!$B$9:$N$1882,8,FALSE) -> Cumple | P88: =VLOOKUP(C88,'Anexo_GL '!$B$9:$N$1882,10,FALSE) -> 246.46983 | Q88: =VLOOKUP(C88,'Anexo_GL '!$B$9:$N$1882,11,FALSE) -> 144.11131 | R88: =VLOOKUP(C88,'Anexo_GL '!$B$9:$N$1882,12,FALSE) -> 102.35852 | S88: =VLOOKUP(C88,'Anexo_GL '!$B$9:$N$1882,13,FALSE) -> Cumple
A89: 010520 : MD DE SANTA CATALINA | B89: 62 | C89: 010520 | D89: AMAZONAS | E89: MD DE SANTA CATALINA | F89: =VLOOKUP(C89,'Anexo_GL '!$B$9:$N$1882,4,FALSE) -> 49.8758 | H89: =VLOOKUP(C89,'Anexo_GL '!$B$9:$N$1882,5,FALSE) -> 803.84016 | I89: =VLOOKUP(C89,'Anexo_GL '!$B$9:$N$1882,6,FALSE) -> 0.00023 | L89: =VLOOKUP(C89,'Anexo_GL '!$B$9:$N$1882,7,FALSE) -> 6.204691241 | N89: =VLOOKUP(C89,'Anexo_GL '!$B$9:$N$1882,8,FALSE) -> Cumple | P89: =VLOOKUP(C89,'Anexo_GL '!$B$9:$N$1882,10,FALSE) -> 342.56467 | Q89: =VLOOKUP(C89,'Anexo_GL '!$B$9:$N$1882,11,FALSE) -> 189.44089 | R89: =VLOOKUP(C89,'Anexo_GL '!$B$9:$N$1882,12,FALSE) -> 153.12378 | S89: =VLOOKUP(C89,'Anexo_GL '!$B$9:$N$1882,13,FALSE) -> Cumple
A90: 010521 : MD DE SANTO TOMAS | B90: 63 | C90: 010521 | D90: AMAZONAS | E90: MD DE SANTO TOMAS | F90: =VLOOKUP(C90,'Anexo_GL '!$B$9:$N$1882,4,FALSE) -> 68.32813 | H90: =VLOOKUP(C90,'Anexo_GL '!$B$9:$N$1882,5,FALSE) -> 1323.043272 | I90: =VLOOKUP(C90,'Anexo_GL '!$B$9:$N$1882,6,FALSE) -> 0.00057 | L90: =VLOOKUP(C90,'Anexo_GL '!$B$9:$N$1882,7,FALSE) -> 5.164466758 | N90: =VLOOKUP(C90,'Anexo_GL '!$B$9:$N$1882,8,FALSE) -> Cumple | P90: =VLOOKUP(C90,'Anexo_GL '!$B$9:$N$1882,10,FALSE) -> 641.41306 | Q90: =VLOOKUP(C90,'Anexo_GL '!$B$9:$N$1882,11,FALSE) -> 436.22864 | R90: =VLOOKUP(C90,'Anexo_GL '!$B$9:$N$1882,12,FALSE) -> 205.18442 | S90: =VLOOKUP(C90,'Anexo_GL '!$B$9:$N$1882,13,FALSE) -> Cumple
A91: 010522 : MD DE TINGO | B91: 64 | C91: 010522 | D91: AMAZONAS | E91: MD DE TINGO | F91: =VLOOKUP(C91,'Anexo_GL '!$B$9:$N$1882,4,FALSE) -> 33.83518 | H91: =VLOOKUP(C91,'Anexo_GL '!$B$9:$N$1882,5,FALSE) -> 577.68597 | I91: =VLOOKUP(C91,'Anexo_GL '!$B$9:$N$1882,6,FALSE) -> 0.00014 | L91: =VLOOKUP(C91,'Anexo_GL '!$B$9:$N$1882,7,FALSE) -> 5.857019515 | N91: =VLOOKUP(C91,'Anexo_GL '!$B$9:$N$1882,8,FALSE) -> Cumple | P91: =VLOOKUP(C91,'Anexo_GL '!$B$9:$N$1882,10,FALSE) -> 250.37397 | Q91: =VLOOKUP(C91,'Anexo_GL '!$B$9:$N$1882,11,FALSE) -> 261.18074 | R91: =VLOOKUP(C91,'Anexo_GL '!$B$9:$N$1882,12,FALSE) -> -10.80677 | S91: =VLOOKUP(C91,'Anexo_GL '!$B$9:$N$1882,13,FALSE) -> No Cumple
A92: 010523 : MD DE TRITA | B92: 65 | C92: 010523 | D92: AMAZONAS | E92: MD DE TRITA | F92: =VLOOKUP(C92,'Anexo_GL '!$B$9:$N$1882,4,FALSE) -> 11.70533 | H92: =VLOOKUP(C92,'Anexo_GL '!$B$9:$N$1882,5,FALSE) -> 506.1017825 | I92: =VLOOKUP(C92,'Anexo_GL '!$B$9:$N$1882,6,FALSE) -> 0.00021 | L92: =VLOOKUP(C92,'Anexo_GL '!$B$9:$N$1882,7,FALSE) -> 2.312841093 | N92: =VLOOKUP(C92,'Anexo_GL '!$B$9:$N$1882,8,FALSE) -> Cumple | P92: =VLOOKUP(C92,'Anexo_GL '!$B$9:$N$1882,10,FALSE) -> 244.57567 | Q92: =VLOOKUP(C92,'Anexo_GL '!$B$9:$N$1882,11,FALSE) -> 156.11772 | R92: =VLOOKUP(C92,'Anexo_GL '!$B$9:$N$1882,12,FALSE) -> 88.45795 | S92: =VLOOKUP(C92,'Anexo_GL '!$B$9:$N$1882,13,FALSE) -> Cumple
A93: 010601 : MP DE RODRIGUEZ DE MENDOZA - SAN NICOLAS | B93: 66 | C93: 010601 | D93: AMAZONAS | E93: MP DE RODRIGUEZ DE MENDOZA - SAN NICOLAS | F93: =VLOOKUP(C93,'Anexo_GL '!$B$9:$N$1882,4,FALSE) -> 5710.37363 | H93: =VLOOKUP(C93,'Anexo_GL '!$B$9:$N$1882,5,FALSE) -> 5696.385222 | I93: =VLOOKUP(C93,'Anexo_GL '!$B$9:$N$1882,6,FALSE) -> 0.00029 | L93: =VLOOKUP(C93,'Anexo_GL '!$B$9:$N$1882,7,FALSE) -> 100.2455664 | N93: =VLOOKUP(C93,'Anexo_GL '!$B$9:$N$1882,8,FALSE) -> No Cumple | P93: =VLOOKUP(C93,'Anexo_GL '!$B$9:$N$1882,10,FALSE) -> 1862.34473 | Q93: =VLOOKUP(C93,'Anexo_GL '!$B$9:$N$1882,11,FALSE) -> 1470.67507 | R93: =VLOOKUP(C93,'Anexo_GL '!$B$9:$N$1882,12,FALSE) -> 391.66966 | S93: =VLOOKUP(C93,'Anexo_GL '!$B$9:$N$1882,13,FALSE) -> Cumple
A94: 010602 : MD DE CHIRIMOTO | B94: 67 | C94: 010602 | D94: AMAZONAS | E94: MD DE CHIRIMOTO | F94: =VLOOKUP(C94,'Anexo_GL '!$B$9:$N$1882,4,FALSE) -> 2094.32743 | H94: =VLOOKUP(C94,'Anexo_GL '!$B$9:$N$1882,5,FALSE) -> 900.40088 | I94: =VLOOKUP(C94,'Anexo_GL '!$B$9:$N$1882,6,FALSE) -> 0.00032 | L94: =VLOOKUP(C94,'Anexo_GL '!$B$9:$N$1882,7,FALSE) -> 232.5994428 | N94: =VLOOKUP(C94,'Anexo_GL '!$B$9:$N$1882,8,FALSE) -> No Cumple | P94: =VLOOKUP(C94,'Anexo_GL '!$B$9:$N$1882,10,FALSE) -> 347.83926 | Q94: =VLOOKUP(C94,'Anexo_GL '!$B$9:$N$1882,11,FALSE) -> 269.16971 | R94: =VLOOKUP(C94,'Anexo_GL '!$B$9:$N$1882,12,FALSE) -> 78.66955 | S94: =VLOOKUP(C94,'Anexo_GL '!$B$9:$N$1882,13,FALSE) -> Cumple
A95: 010603 : MD DE COCHAMAL | B95: 68 | C95: 010603 | D95: AMAZONAS | E95: MD DE COCHAMAL | F95: =VLOOKUP(C95,'Anexo_GL '!$B$9:$N$1882,4,FALSE) -> 5.78632 | H95: =VLOOKUP(C95,'Anexo_GL '!$B$9:$N$1882,5,FALSE) -> 457.133605 | I95: =VLOOKUP(C95,'Anexo_GL '!$B$9:$N$1882,6,FALSE) -> 8e-05 | L95: =VLOOKUP(C95,'Anexo_GL '!$B$9:$N$1882,7,FALSE) -> 1.265783118 | N95: =VLOOKUP(C95,'Anexo_GL '!$B$9:$N$1882,8,FALSE) -> Cumple | P95: =VLOOKUP(C95,'Anexo_GL '!$B$9:$N$1882,10,FALSE) -> 240.95873 | Q95: =VLOOKUP(C95,'Anexo_GL '!$B$9:$N$1882,11,FALSE) -> 139.89963 | R95: =VLOOKUP(C95,'Anexo_GL '!$B$9:$N$1882,12,FALSE) -> 101.0591 | S95: =VLOOKUP(C95,'Anexo_GL '!$B$9:$N$1882,13,FALSE) -> Cumple
A96: 010604 : MD DE HUAMBO | B96: 69 | C96: 010604 | D96: AMAZONAS | E96: MD DE HUAMBO | F96: =VLOOKUP(C96,'Anexo_GL '!$B$9:$N$1882,4,FALSE) -> 167.56003 | H96: =VLOOKUP(C96,'Anexo_GL '!$B$9:$N$1882,5,FALSE) -> 719.320365 | I96: =VLOOKUP(C96,'Anexo_GL '!$B$9:$N$1882,6,FALSE) -> 0.00041 | L96: =VLOOKUP(C96,'Anexo_GL '!$B$9:$N$1882,7,FALSE) -> 23.29421467 | N96: =VLOOKUP(C96,'Anexo_GL '!$B$9:$N$1882,8,FALSE) -> Cumple | P96: =VLOOKUP(C96,'Anexo_GL '!$B$9:$N$1882,10,FALSE) -> 370.23128 | Q96: =VLOOKUP(C96,'Anexo_GL '!$B$9:$N$1882,11,FALSE) -> 243.34281 | R96: =VLOOKUP(C96,'Anexo_GL '!$B$9:$N$1882,12,FALSE) -> 126.88847 | S96: =VLOOKUP(C96,'Anexo_GL '!$B$9:$N$1882,13,FALSE) -> Cumple
A97: 010605 : MD DE LIMABAMBA | B97: 70 | C97: 010605 | D97: AMAZONAS | E97: MD DE LIMABAMBA | F97: =VLOOKUP(C97,'Anexo_GL '!$B$9:$N$1882,4,FALSE) -> 2207.95968 | H97: =VLOOKUP(C97,'Anexo_GL '!$B$9:$N$1882,5,FALSE) -> 964.1846825 | I97: =VLOOKUP(C97,'Anexo_GL '!$B$9:$N$1882,6,FALSE) -> 0.00049 | L97: =VLOOKUP(C97,'Anexo_GL '!$B$9:$N$1882,7,FALSE) -> 228.9975894 | N97: =VLOOKUP(C97,'Anexo_GL '!$B$9:$N$1882,8,FALSE) -> No Cumple | P97: =VLOOKUP(C97,'Anexo_GL '!$B$9:$N$1882,10,FALSE) -> 479.28549 | Q97: =VLOOKUP(C97,'Anexo_GL '!$B$9:$N$1882,11,FALSE) -> 256.80498 | R97: =VLOOKUP(C97,'Anexo_GL '!$B$9:$N$1882,12,FALSE) -> 222.48051 | S97: =VLOOKUP(C97,'Anexo_GL '!$B$9:$N$1882,13,FALSE) -> Cumple
A98: 010606 : MD DE LONGAR | B98: 71 | C98: 010606 | D98: AMAZONAS | E98: MD DE LONGAR | F98: =VLOOKUP(C98,'Anexo_GL '!$B$9:$N$1882,4,FALSE) -> 85.53662 | H98: =VLOOKUP(C98,'Anexo_GL '!$B$9:$N$1882,5,FALSE) -> 546.77058 | I98: =VLOOKUP(C98,'Anexo_GL '!$B$9:$N$1882,6,FALSE) -> 0.00017 | L98: =VLOOKUP(C98,'Anexo_GL '!$B$9:$N$1882,7,FALSE) -> 15.64396899 | N98: =VLOOKUP(C98,'Anexo_GL '!$B$9:$N$1882,8,FALSE) -> Cumple | P98: =VLOOKUP(C98,'Anexo_GL '!$B$9:$N$1882,10,FALSE) -> 258.3075 | Q98: =VLOOKUP(C98,'Anexo_GL '!$B$9:$N$1882,11,FALSE) -> 210.54613 | R98: =VLOOKUP(C98,'Anexo_GL '!$B$9:$N$1882,12,FALSE) -> 47.76137 | S98: =VLOOKUP(C98,'Anexo_GL '!$B$9:$N$1882,13,FALSE) -> Cumple
A99: 010607 : MD DE MARISCAL BENAVIDES | B99: 72 | C99: 010607 | D99: AMAZONAS | E99: MD DE MARISCAL BENAVIDES | F99: =VLOOKUP(C99,'Anexo_GL '!$B$9:$N$1882,4,FALSE) -> 797.92424 | H99: =VLOOKUP(C99,'Anexo_GL '!$B$9:$N$1882,5,FALSE) -> 1003.71195 | I99: =VLOOKUP(C99,'Anexo_GL '!$B$9:$N$1882,6,FALSE) -> 8e-05 | L99: =VLOOKUP(C99,'Anexo_GL '!$B$9:$N$1882,7,FALSE) -> 79.49733387 | N99: =VLOOKUP(C99,'Anexo_GL '!$B$9:$N$1882,8,FALSE) -> Cumple | P99: =VLOOKUP(C99,'Anexo_GL '!$B$9:$N$1882,10,FALSE) -> 274.64598 | Q99: =VLOOKUP(C99,'Anexo_GL '!$B$9:$N$1882,11,FALSE) -> 164.55784 | R99: =VLOOKUP(C99,'Anexo_GL '!$B$9:$N$1882,12,FALSE) -> 110.08814 | S99: =VLOOKUP(C99,'Anexo_GL '!$B$9:$N$1882,13,FALSE) -> Cumple
A100: 010608 : MD DE MILPUC | B100: 73 | C100: 010608 | D100: AMAZONAS | E100: MD DE MILPUC | F100: =VLOOKUP(C100,'Anexo_GL '!$B$9:$N$1882,4,FALSE) -> 99.02723 | H100: =VLOOKUP(C100,'Anexo_GL '!$B$9:$N$1882,5,FALSE) -> 503.3148675 | I100: =VLOOKUP(C100,'Anexo_GL '!$B$9:$N$1882,6,FALSE) -> 0.0001 | L100: =VLOOKUP(C100,'Anexo_GL '!$B$9:$N$1882,7,FALSE) -> 19.67500592 | N100: =VLOOKUP(C100,'Anexo_GL '!$B$9:$N$1882,8,FALSE) -> Cumple | P100: =VLOOKUP(C100,'Anexo_GL '!$B$9:$N$1882,10,FALSE) -> 240.62976 | Q100: =VLOOKUP(C100,'Anexo_GL '!$B$9:$N$1882,11,FALSE) -> 163.5375 | R100: =VLOOKUP(C100,'Anexo_GL '!$B$9:$N$1882,12,FALSE) -> 77.09226 | S100: =VLOOKUP(C100,'Anexo_GL '!$B$9:$N$1882,13,FALSE) -> Cumple
A101: 010609 : MD DE OMIA | B101: 74 | C101: 010609 | D101: AMAZONAS | E101: MD DE OMIA | F101: =VLOOKUP(C101,'Anexo_GL '!$B$9:$N$1882,4,FALSE) -> 59.49447 | H101: =VLOOKUP(C101,'Anexo_GL '!$B$9:$N$1882,5,FALSE) -> 3952.503533 | I101: =VLOOKUP(C101,'Anexo_GL '!$B$9:$N$1882,6,FALSE) -> 0.0015 | L101: =VLOOKUP(C101,'Anexo_GL '!$B$9:$N$1882,7,FALSE) -> 1.505235087 | N101: =VLOOKUP(C101,'Anexo_GL '!$B$9:$N$1882,8,FALSE) -> Cumple | P101: =VLOOKUP(C101,'Anexo_GL '!$B$9:$N$1882,10,FALSE) -> 3087.87405 | Q101: =VLOOKUP(C101,'Anexo_GL '!$B$9:$N$1882,11,FALSE) -> 1145.55022 | R101: =VLOOKUP(C101,'Anexo_GL '!$B$9:$N$1882,12,FALSE) -> 1942.32383 | S101: =VLOOKUP(C101,'Anexo_GL '!$B$9:$N$1882,13,FALSE) -> Cumple
A102: 010610 : MD DE SANTA ROSA | B102: 75 | C102: 010610 | D102: AMAZONAS | E102: MD DE SANTA ROSA | F102: =VLOOKUP(C102,'Anexo_GL '!$B$9:$N$1882,4,FALSE) -> 87.53874 | H102: =VLOOKUP(C102,'Anexo_GL '!$B$9:$N$1882,5,FALSE) -> 509.7853 | I102: =VLOOKUP(C102,'Anexo_GL '!$B$9:$N$1882,6,FALSE) -> 6e-05 | L102: =VLOOKUP(C102,'Anexo_GL '!$B$9:$N$1882,7,FALSE) -> 17.17168777 | N102: =VLOOKUP(C102,'Anexo_GL '!$B$9:$N$1882,8,FALSE) -> Cumple | P102: =VLOOKUP(C102,'Anexo_GL '!$B$9:$N$1882,10,FALSE) -> 293.25976 | Q102: =VLOOKUP(C102,'Anexo_GL '!$B$9:$N$1882,11,FALSE) -> 158.54743 | R102: =VLOOKUP(C102,'Anexo_GL '!$B$9:$N$1882,12,FALSE) -> 134.71233 | S102: =VLOOKUP(C102,'Anexo_GL '!$B$9:$N$1882,13,FALSE) -> Cumple
A103: 010611 : MD DE TOTORA | B103: 76 | C103: 010611 | D103: AMAZONAS | E103: MD DE TOTORA | F103: =VLOOKUP(C103,'Anexo_GL '!$B$9:$N$1882,4,FALSE) -> 83.5984 | H103: =VLOOKUP(C103,'Anexo_GL '!$B$9:$N$1882,5,FALSE) -> 554.2917875 | I103: =VLOOKUP(C103,'Anexo_GL '!$B$9:$N$1882,6,FALSE) -> 6e-05 | L103: =VLOOKUP(C103,'Anexo_GL '!$B$9:$N$1882,7,FALSE) -> 15.08202032 | N103: =VLOOKUP(C103,'Anexo_GL '!$B$9:$N$1882,8,FALSE) -> Cumple | P103: =VLOOKUP(C103,'Anexo_GL '!$B$9:$N$1882,10,FALSE) -> 258.97063 | Q103: =VLOOKUP(C103,'Anexo_GL '!$B$9:$N$1882,11,FALSE) -> 128.54237 | R103: =VLOOKUP(C103,'Anexo_GL '!$B$9:$N$1882,12,FALSE) -> 130.42826 | S103: =VLOOKUP(C103,'Anexo_GL '!$B$9:$N$1882,13,FALSE) -> Cumple
A104: 010612 : MD DE VISTA ALEGRE | B104: 77 | C104: 010612 | D104: AMAZONAS | E104: MD DE VISTA ALEGRE | F104: =VLOOKUP(C104,'Anexo_GL '!$B$9:$N$1882,4,FALSE) -> 618.3694 | H104: =VLOOKUP(C104,'Anexo_GL '!$B$9:$N$1882,5,FALSE) -> 1050.211715 | I104: =VLOOKUP(C104,'Anexo_GL '!$B$9:$N$1882,6,FALSE) -> 0.00061 | L104: =VLOOKUP(C104,'Anexo_GL '!$B$9:$N$1882,7,FALSE) -> 58.88045155 | N104: =VLOOKUP(C104,'Anexo_GL '!$B$9:$N$1882,8,FALSE) -> Cumple | P104: =VLOOKUP(C104,'Anexo_GL '!$B$9:$N$1882,10,FALSE) -> 290.15852 | Q104: =VLOOKUP(C104,'Anexo_GL '!$B$9:$N$1882,11,FALSE) -> 207.42499 | R104: =VLOOKUP(C104,'Anexo_GL '!$B$9:$N$1882,12,FALSE) -> 82.73353 | S104: =VLOOKUP(C104,'Anexo_GL '!$B$9:$N$1882,13,FALSE) -> Cumple
A105: 010701 : MUNICIPALIDAD PROVINCIA DE UTCUBAMBA - BAGUA GRANDE | B105: 78 | C105: 010701 | D105: AMAZONAS | E105: MUNICIPALIDAD PROVINCIA DE UTCUBAMBA - BAGUA GRANDE | F105: =VLOOKUP(C105,'Anexo_GL '!$B$9:$N$1882,4,FALSE) -> 3091.89543 | H105: =VLOOKUP(C105,'Anexo_GL '!$B$9:$N$1882,5,FALSE) -> 25820.08166 | I105: =VLOOKUP(C105,'Anexo_GL '!$B$9:$N$1882,6,FALSE) -> 0.98475 | L105: =VLOOKUP(C105,'Anexo_GL '!$B$9:$N$1882,7,FALSE) -> 11.97477015 | N105: =VLOOKUP(C105,'Anexo_GL '!$B$9:$N$1882,8,FALSE) -> Cumple | P105: =VLOOKUP(C105,'Anexo_GL '!$B$9:$N$1882,10,FALSE) -> 12641.15593 | Q105: =VLOOKUP(C105,'Anexo_GL '!$B$9:$N$1882,11,FALSE) -> 5954.35917 | R105: =VLOOKUP(C105,'Anexo_GL '!$B$9:$N$1882,12,FALSE) -> 6686.79676 | S105: =VLOOKUP(C105,'Anexo_GL '!$B$9:$N$1882,13,FALSE) -> Cumple
A106: 010702 : MD DE CAJARURO | B106: 79 | C106: 010702 | D106: AMAZONAS | E106: MD DE CAJARURO | F106: =VLOOKUP(C106,'Anexo_GL '!$B$9:$N$1882,4,FALSE) -> 1926.77812 | H106: =VLOOKUP(C106,'Anexo_GL '!$B$9:$N$1882,5,FALSE) -> 9718.152232 | I106: =VLOOKUP(C106,'Anexo_GL '!$B$9:$N$1882,6,FALSE) -> 0.79954 | L106: =VLOOKUP(C106,'Anexo_GL '!$B$9:$N$1882,7,FALSE) -> 19.82658919 | N106: =VLOOKUP(C106,'Anexo_GL '!$B$9:$N$1882,8,FALSE) -> Cumple | P106: =VLOOKUP(C106,'Anexo_GL '!$B$9:$N$1882,10,FALSE) -> 5237.61014 | Q106: =VLOOKUP(C106,'Anexo_GL '!$B$9:$N$1882,11,FALSE) -> 2461.98413 | R106: =VLOOKUP(C106,'Anexo_GL '!$B$9:$N$1882,12,FALSE) -> 2775.62601 | S106: =VLOOKUP(C106,'Anexo_GL '!$B$9:$N$1882,13,FALSE) -> Cumple
A107: 010703 : MD DE CUMBA | B107: 80 | C107: 010703 | D107: AMAZONAS | E107: MD DE CUMBA | F107: =VLOOKUP(C107,'Anexo_GL '!$B$9:$N$1882,4,FALSE) -> 62.93849 | H107: =VLOOKUP(C107,'Anexo_GL '!$B$9:$N$1882,5,FALSE) -> 3205.72384 | I107: =VLOOKUP(C107,'Anexo_GL '!$B$9:$N$1882,6,FALSE) -> 0.00157 | L107: =VLOOKUP(C107,'Anexo_GL '!$B$9:$N$1882,7,FALSE) -> 1.963316029 | N107: =VLOOKUP(C107,'Anexo_GL '!$B$9:$N$1882,8,FALSE) -> Cumple | P107: =VLOOKUP(C107,'Anexo_GL '!$B$9:$N$1882,10,FALSE) -> 1571.55106 | Q107: =VLOOKUP(C107,'Anexo_GL '!$B$9:$N$1882,11,FALSE) -> 866.27427 | R107: =VLOOKUP(C107,'Anexo_GL '!$B$9:$N$1882,12,FALSE) -> 705.27679 | S107: =VLOOKUP(C107,'Anexo_GL '!$B$9:$N$1882,13,FALSE) -> Cumple
A108: 010704 : MD DE EL MILAGRO | B108: 81 | C108: 010704 | D108: AMAZONAS | E108: MD DE EL MILAGRO | F108: =VLOOKUP(C108,'Anexo_GL '!$B$9:$N$1882,4,FALSE) -> 594.5666 | H108: =VLOOKUP(C108,'Anexo_GL '!$B$9:$N$1882,5,FALSE) -> 2649.176733 | I108: =VLOOKUP(C108,'Anexo_GL '!$B$9:$N$1882,6,FALSE) -> 0.0009 | L108: =VLOOKUP(C108,'Anexo_GL '!$B$9:$N$1882,7,FALSE) -> 22.44344791 | N108: =VLOOKUP(C108,'Anexo_GL '!$B$9:$N$1882,8,FALSE) -> Cumple | P108: =VLOOKUP(C108,'Anexo_GL '!$B$9:$N$1882,10,FALSE) -> 1593.01499 | Q108: =VLOOKUP(C108,'Anexo_GL '!$B$9:$N$1882,11,FALSE) -> 982.8664 | R108: =VLOOKUP(C108,'Anexo_GL '!$B$9:$N$1882,12,FALSE) -> 610.14859 | S108: =VLOOKUP(C108,'Anexo_GL '!$B$9:$N$1882,13,FALSE) -> Cumple
A109: 010705 : MD DE JAMALCA | B109: 82 | C109: 010705 | D109: AMAZONAS | E109: MD DE JAMALCA | F109: =VLOOKUP(C109,'Anexo_GL '!$B$9:$N$1882,4,FALSE) -> 714.58139 | H109: =VLOOKUP(C109,'Anexo_GL '!$B$9:$N$1882,5,FALSE) -> 3450.1252 | I109: =VLOOKUP(C109,'Anexo_GL '!$B$9:$N$1882,6,FALSE) -> 0.00138 | L109: =VLOOKUP(C109,'Anexo_GL '!$B$9:$N$1882,7,FALSE) -> 20.71175243 | N109: =VLOOKUP(C109,'Anexo_GL '!$B$9:$N$1882,8,FALSE) -> Cumple | P109: =VLOOKUP(C109,'Anexo_GL '!$B$9:$N$1882,10,FALSE) -> 1573.64277 | Q109: =VLOOKUP(C109,'Anexo_GL '!$B$9:$N$1882,11,FALSE) -> 909.75256 | R109: =VLOOKUP(C109,'Anexo_GL '!$B$9:$N$1882,12,FALSE) -> 663.89021 | S109: =VLOOKUP(C109,'Anexo_GL '!$B$9:$N$1882,13,FALSE) -> Cumple
A110: 010706 : MD DE LONYA GRANDE | B110: 83 | C110: 010706 | D110: AMAZONAS | E110: MD DE LONYA GRANDE | F110: =VLOOKUP(C110,'Anexo_GL '!$B$9:$N$1882,4,FALSE) -> 132.75884 | H110: =VLOOKUP(C110,'Anexo_GL '!$B$9:$N$1882,5,FALSE) -> 3365.748335 | I110: =VLOOKUP(C110,'Anexo_GL '!$B$9:$N$1882,6,FALSE) -> 0.00179 | L110: =VLOOKUP(C110,'Anexo_GL '!$B$9:$N$1882,7,FALSE) -> 3.944407804 | N110: =VLOOKUP(C110,'Anexo_GL '!$B$9:$N$1882,8,FALSE) -> Cumple | P110: =VLOOKUP(C110,'Anexo_GL '!$B$9:$N$1882,10,FALSE) -> 1889.57141 | Q110: =VLOOKUP(C110,'Anexo_GL '!$B$9:$N$1882,11,FALSE) -> 1029.69887 | R110: =VLOOKUP(C110,'Anexo_GL '!$B$9:$N$1882,12,FALSE) -> 859.87254 | S110: =VLOOKUP(C110,'Anexo_GL '!$B$9:$N$1882,13,FALSE) -> Cumple
A111: 010707 : MD DE YAMON | B111: 84 | C111: 010707 | D111: AMAZONAS | E111: MD DE YAMON | F111: =VLOOKUP(C111,'Anexo_GL '!$B$9:$N$1882,4,FALSE) -> 1159.3367 | H111: =VLOOKUP(C111,'Anexo_GL '!$B$9:$N$1882,5,FALSE) -> 1564.024548 | I111: =VLOOKUP(C111,'Anexo_GL '!$B$9:$N$1882,6,FALSE) -> 0.00044 | L111: =VLOOKUP(C111,'Anexo_GL '!$B$9:$N$1882,7,FALSE) -> 74.12522405 | N111: =VLOOKUP(C111,'Anexo_GL '!$B$9:$N$1882,8,FALSE) -> Cumple | P111: =VLOOKUP(C111,'Anexo_GL '!$B$9:$N$1882,10,FALSE) -> 706.97585 | Q111: =VLOOKUP(C111,'Anexo_GL '!$B$9:$N$1882,11,FALSE) -> 522.01921 | R111: =VLOOKUP(C111,'Anexo_GL '!$B$9:$N$1882,12,FALSE) -> 184.95664 | S111: =VLOOKUP(C111,'Anexo_GL '!$B$9:$N$1882,13,FALSE) -> Cumple
A112: 020101 : MP DE HUARAZ | B112: 85 | C112: 020101 | D112: ANCASH | E112: MP DE HUARAZ | F112: =VLOOKUP(C112,'Anexo_GL '!$B$9:$N$1882,4,FALSE) -> 19355.3883 | H112: =VLOOKUP(C112,'Anexo_GL '!$B$9:$N$1882,5,FALSE) -> 32194.78489 | I112: =VLOOKUP(C112,'Anexo_GL '!$B$9:$N$1882,6,FALSE) -> 26591.10715 | L112: =VLOOKUP(C112,'Anexo_GL '!$B$9:$N$1882,7,FALSE) -> 60.11963852 | N112: =VLOOKUP(C112,'Anexo_GL '!$B$9:$N$1882,8,FALSE) -> Cumple | P112: =VLOOKUP(C112,'Anexo_GL '!$B$9:$N$1882,10,FALSE) -> 15962.57053 | Q112: =VLOOKUP(C112,'Anexo_GL '!$B$9:$N$1882,11,FALSE) -> 13162.39664 | R112: =VLOOKUP(C112,'Anexo_GL '!$B$9:$N$1882,12,FALSE) -> 2800.17389 | S112: =VLOOKUP(C112,'Anexo_GL '!$B$9:$N$1882,13,FALSE) -> Cumple
A113: 020102 : MD DE COCHABAMBA | B113: 86 | C113: 020102 | D113: ANCASH | E113: MD DE COCHABAMBA | F113: =VLOOKUP(C113,'Anexo_GL '!$B$9:$N$1882,4,FALSE) -> 221.52684 | H113: =VLOOKUP(C113,'Anexo_GL '!$B$9:$N$1882,5,FALSE) -> 1379.55233 | I113: =VLOOKUP(C113,'Anexo_GL '!$B$9:$N$1882,6,FALSE) -> 2558.84951 | L113: =VLOOKUP(C113,'Anexo_GL '!$B$9:$N$1882,7,FALSE) -> 8.657282858 | N113: =VLOOKUP(C113,'Anexo_GL '!$B$9:$N$1882,8,FALSE) -> Cumple | P113: =VLOOKUP(C113,'Anexo_GL '!$B$9:$N$1882,10,FALSE) -> 679.18955 | Q113: =VLOOKUP(C113,'Anexo_GL '!$B$9:$N$1882,11,FALSE) -> 366.67282 | R113: =VLOOKUP(C113,'Anexo_GL '!$B$9:$N$1882,12,FALSE) -> 312.51673 | S113: =VLOOKUP(C113,'Anexo_GL '!$B$9:$N$1882,13,FALSE) -> Cumple
A114: 020103 : MD DE COLCABAMBA | B114: 87 | C114: 020103 | D114: ANCASH | E114: MD DE COLCABAMBA | F114: =VLOOKUP(C114,'Anexo_GL '!$B$9:$N$1882,4,FALSE) -> 81.67895 | H114: =VLOOKUP(C114,'Anexo_GL '!$B$9:$N$1882,5,FALSE) -> 671.8305525 | I114: =VLOOKUP(C114,'Anexo_GL '!$B$9:$N$1882,6,FALSE) -> 773.51017 | L114: =VLOOKUP(C114,'Anexo_GL '!$B$9:$N$1882,7,FALSE) -> 10.55951856 | N114: =VLOOKUP(C114,'Anexo_GL '!$B$9:$N$1882,8,FALSE) -> Cumple | P114: =VLOOKUP(C114,'Anexo_GL '!$B$9:$N$1882,10,FALSE) -> 321.44751 | Q114: =VLOOKUP(C114,'Anexo_GL '!$B$9:$N$1882,11,FALSE) -> 261.48404 | R114: =VLOOKUP(C114,'Anexo_GL '!$B$9:$N$1882,12,FALSE) -> 59.96347 | S114: =VLOOKUP(C114,'Anexo_GL '!$B$9:$N$1882,13,FALSE) -> Cumple
A115: 020104 : MD DE HUANCHAY | B115: 88 | C115: 020104 | D115: ANCASH | E115: MD DE HUANCHAY | F115: =VLOOKUP(C115,'Anexo_GL '!$B$9:$N$1882,4,FALSE) -> 63.71827 | H115: =VLOOKUP(C115,'Anexo_GL '!$B$9:$N$1882,5,FALSE) -> 1296.81631 | I115: =VLOOKUP(C115,'Anexo_GL '!$B$9:$N$1882,6,FALSE) -> 2226.51157 | L115: =VLOOKUP(C115,'Anexo_GL '!$B$9:$N$1882,7,FALSE) -> 2.861798288 | N115: =VLOOKUP(C115,'Anexo_GL '!$B$9:$N$1882,8,FALSE) -> Cumple | P115: =VLOOKUP(C115,'Anexo_GL '!$B$9:$N$1882,10,FALSE) -> 566.04489 | Q115: =VLOOKUP(C115,'Anexo_GL '!$B$9:$N$1882,11,FALSE) -> 321.78187 | R115: =VLOOKUP(C115,'Anexo_GL '!$B$9:$N$1882,12,FALSE) -> 244.26302 | S115: =VLOOKUP(C115,'Anexo_GL '!$B$9:$N$1882,13,FALSE) -> Cumple
A116: 020105 : MD DE INDEPENDENCIA | B116: 89 | C116: 020105 | D116: ANCASH | E116: MD DE INDEPENDENCIA | F116: =VLOOKUP(C116,'Anexo_GL '!$B$9:$N$1882,4,FALSE) -> 13262.03312 | H116: =VLOOKUP(C116,'Anexo_GL '!$B$9:$N$1882,5,FALSE) -> 23564.83238 | I116: =VLOOKUP(C116,'Anexo_GL '!$B$9:$N$1882,6,FALSE) -> 39138.78392 | L116: =VLOOKUP(C116,'Anexo_GL '!$B$9:$N$1882,7,FALSE) -> 33.88463256 | N116: =VLOOKUP(C116,'Anexo_GL '!$B$9:$N$1882,8,FALSE) -> Cumple | P116: =VLOOKUP(C116,'Anexo_GL '!$B$9:$N$1882,10,FALSE) -> 11929.82678 | Q116: =VLOOKUP(C116,'Anexo_GL '!$B$9:$N$1882,11,FALSE) -> 5239.4929 | R116: =VLOOKUP(C116,'Anexo_GL '!$B$9:$N$1882,12,FALSE) -> 6690.33388 | S116: =VLOOKUP(C116,'Anexo_GL '!$B$9:$N$1882,13,FALSE) -> Cumple
A117: 020106 : MD DE JANGAS | B117: 90 | C117: 020106 | D117: ANCASH | E117: MD DE JANGAS | F117: =VLOOKUP(C117,'Anexo_GL '!$B$9:$N$1882,4,FALSE) -> 97.63586 | H117: =VLOOKUP(C117,'Anexo_GL '!$B$9:$N$1882,5,FALSE) -> 2564.556905 | I117: =VLOOKUP(C117,'Anexo_GL '!$B$9:$N$1882,6,FALSE) -> 6326.31549 | L117: =VLOOKUP(C117,'Anexo_GL '!$B$9:$N$1882,7,FALSE) -> 1.543328975 | N117: =VLOOKUP(C117,'Anexo_GL '!$B$9:$N$1882,8,FALSE) -> Cumple | P117: =VLOOKUP(C117,'Anexo_GL '!$B$9:$N$1882,10,FALSE) -> 407.4286 | Q117: =VLOOKUP(C117,'Anexo_GL '!$B$9:$N$1882,11,FALSE) -> 609.60716 | R117: =VLOOKUP(C117,'Anexo_GL '!$B$9:$N$1882,12,FALSE) -> -202.17856 | S117: =VLOOKUP(C117,'Anexo_GL '!$B$9:$N$1882,13,FALSE) -> No Cumple
A118: 020107 : MD DE LA LIBERTAD | B118: 91 | C118: 020107 | D118: ANCASH | E118: MD DE LA LIBERTAD | F118: =VLOOKUP(C118,'Anexo_GL '!$B$9:$N$1882,4,FALSE) -> 137.44731 | H118: =VLOOKUP(C118,'Anexo_GL '!$B$9:$N$1882,5,FALSE) -> 1098.048403 | I118: =VLOOKUP(C118,'Anexo_GL '!$B$9:$N$1882,6,FALSE) -> 1153.4342 | L118: =VLOOKUP(C118,'Anexo_GL '!$B$9:$N$1882,7,FALSE) -> 11.91635466 | N118: =VLOOKUP(C118,'Anexo_GL '!$B$9:$N$1882,8,FALSE) -> Cumple | P118: =VLOOKUP(C118,'Anexo_GL '!$B$9:$N$1882,10,FALSE) -> 392.65939 | Q118: =VLOOKUP(C118,'Anexo_GL '!$B$9:$N$1882,11,FALSE) -> 322.78382 | R118: =VLOOKUP(C118,'Anexo_GL '!$B$9:$N$1882,12,FALSE) -> 69.87557 | S118: =VLOOKUP(C118,'Anexo_GL '!$B$9:$N$1882,13,FALSE) -> Cumple
A119: 020108 : MD DE OLLEROS | B119: 92 | C119: 020108 | D119: ANCASH | E119: MD DE OLLEROS | F119: =VLOOKUP(C119,'Anexo_GL '!$B$9:$N$1882,4,FALSE) -> 849.16845 | H119: =VLOOKUP(C119,'Anexo_GL '!$B$9:$N$1882,5,FALSE) -> 1093.661042 | I119: =VLOOKUP(C119,'Anexo_GL '!$B$9:$N$1882,6,FALSE) -> 1730.49839 | L119: =VLOOKUP(C119,'Anexo_GL '!$B$9:$N$1882,7,FALSE) -> 49.07074487 | N119: =VLOOKUP(C119,'Anexo_GL '!$B$9:$N$1882,8,FALSE) -> Cumple | P119: =VLOOKUP(C119,'Anexo_GL '!$B$9:$N$1882,10,FALSE) -> 510.84636 | Q119: =VLOOKUP(C119,'Anexo_GL '!$B$9:$N$1882,11,FALSE) -> 325.18082 | R119: =VLOOKUP(C119,'Anexo_GL '!$B$9:$N$1882,12,FALSE) -> 185.66554 | S119: =VLOOKUP(C119,'Anexo_GL '!$B$9:$N$1882,13,FALSE) -> Cumple
A120: 020109 : MD DE PAMPAS | B120: 93 | C120: 020109 | D120: ANCASH | E120: MD DE PAMPAS | F120: =VLOOKUP(C120,'Anexo_GL '!$B$9:$N$1882,4,FALSE) -> 7.52317 | H120: =VLOOKUP(C120,'Anexo_GL '!$B$9:$N$1882,5,FALSE) -> 1235.213583 | I120: =VLOOKUP(C120,'Anexo_GL '!$B$9:$N$1882,6,FALSE) -> 1499.92944 | L120: =VLOOKUP(C120,'Anexo_GL '!$B$9:$N$1882,7,FALSE) -> 0.5015682604 | N120: =VLOOKUP(C120,'Anexo_GL '!$B$9:$N$1882,8,FALSE) -> Cumple | P120: =VLOOKUP(C120,'Anexo_GL '!$B$9:$N$1882,10,FALSE) -> 403.3317 | Q120: =VLOOKUP(C120,'Anexo_GL '!$B$9:$N$1882,11,FALSE) -> 286.28711 | R120: =VLOOKUP(C120,'Anexo_GL '!$B$9:$N$1882,12,FALSE) -> 117.04459 | S120: =VLOOKUP(C120,'Anexo_GL '!$B$9:$N$1882,13,FALSE) -> Cumple
A121: 020110 : MD DE PARIACOTO | B121: 94 | C121: 020110 | D121: ANCASH | E121: MD DE PARIACOTO | F121: =VLOOKUP(C121,'Anexo_GL '!$B$9:$N$1882,4,FALSE) -> 333.3524 | H121: =VLOOKUP(C121,'Anexo_GL '!$B$9:$N$1882,5,FALSE) -> 2511.091772 | I121: =VLOOKUP(C121,'Anexo_GL '!$B$9:$N$1882,6,FALSE) -> 3968.18645 | L121: =VLOOKUP(C121,'Anexo_GL '!$B$9:$N$1882,7,FALSE) -> 8.400623413 | N121: =VLOOKUP(C121,'Anexo_GL '!$B$9:$N$1882,8,FALSE) -> Cumple | P121: =VLOOKUP(C121,'Anexo_GL '!$B$9:$N$1882,10,FALSE) -> 1137.59846 | Q121: =VLOOKUP(C121,'Anexo_GL '!$B$9:$N$1882,11,FALSE) -> 932.54205 | R121: =VLOOKUP(C121,'Anexo_GL '!$B$9:$N$1882,12,FALSE) -> 205.05641 | S121: =VLOOKUP(C121,'Anexo_GL '!$B$9:$N$1882,13,FALSE) -> Cumple
A122: 020111 : MD DE PIRA | B122: 95 | C122: 020111 | D122: ANCASH | E122: MD DE PIRA | F122: =VLOOKUP(C122,'Anexo_GL '!$B$9:$N$1882,4,FALSE) -> 609.41807 | H122: =VLOOKUP(C122,'Anexo_GL '!$B$9:$N$1882,5,FALSE) -> 2222.598417 | I122: =VLOOKUP(C122,'Anexo_GL '!$B$9:$N$1882,6,FALSE) -> 4807.0046 | L122: =VLOOKUP(C122,'Anexo_GL '!$B$9:$N$1882,7,FALSE) -> 12.67770932 | N122: =VLOOKUP(C122,'Anexo_GL '!$B$9:$N$1882,8,FALSE) -> Cumple | P122: =VLOOKUP(C122,'Anexo_GL '!$B$9:$N$1882,10,FALSE) -> 996.64303 | Q122: =VLOOKUP(C122,'Anexo_GL '!$B$9:$N$1882,11,FALSE) -> 380.48196 | R122: =VLOOKUP(C122,'Anexo_GL '!$B$9:$N$1882,12,FALSE) -> 616.16107 | S122: =VLOOKUP(C122,'Anexo_GL '!$B$9:$N$1882,13,FALSE) -> Cumple
A123: 020112 : MD DE TARICA | B123: 96 | C123: 020112 | D123: ANCASH | E123: MD DE TARICA | F123: =VLOOKUP(C123,'Anexo_GL '!$B$9:$N$1882,4,FALSE) -> 697.35605 | H123: =VLOOKUP(C123,'Anexo_GL '!$B$9:$N$1882,5,FALSE) -> 2447.81013 | I123: =VLOOKUP(C123,'Anexo_GL '!$B$9:$N$1882,6,FALSE) -> 4200.26662 | L123: =VLOOKUP(C123,'Anexo_GL '!$B$9:$N$1882,7,FALSE) -> 16.60266152 | N123: =VLOOKUP(C123,'Anexo_GL '!$B$9:$N$1882,8,FALSE) -> Cumple | P123: =VLOOKUP(C123,'Anexo_GL '!$B$9:$N$1882,10,FALSE) -> 1045.76085 | Q123: =VLOOKUP(C123,'Anexo_GL '!$B$9:$N$1882,11,FALSE) -> 707.10047 | R123: =VLOOKUP(C123,'Anexo_GL '!$B$9:$N$1882,12,FALSE) -> 338.66038 | S123: =VLOOKUP(C123,'Anexo_GL '!$B$9:$N$1882,13,FALSE) -> Cumple
A124: 020201 : MP DE AIJA | B124: 97 | C124: 020201 | D124: ANCASH | E124: MP DE AIJA | F124: =VLOOKUP(C124,'Anexo_GL '!$B$9:$N$1882,4,FALSE) -> 130.8511 | H124: =VLOOKUP(C124,'Anexo_GL '!$B$9:$N$1882,5,FALSE) -> 2279.422695 | I124: =VLOOKUP(C124,'Anexo_GL '!$B$9:$N$1882,6,FALSE) -> 1404.19305 | L124: =VLOOKUP(C124,'Anexo_GL '!$B$9:$N$1882,7,FALSE) -> 5.74053686 | N124: =VLOOKUP(C124,'Anexo_GL '!$B$9:$N$1882,8,FALSE) -> Cumple | P124: =VLOOKUP(C124,'Anexo_GL '!$B$9:$N$1882,10,FALSE) -> 801.26005 | Q124: =VLOOKUP(C124,'Anexo_GL '!$B$9:$N$1882,11,FALSE) -> 436.36145 | R124: =VLOOKUP(C124,'Anexo_GL '!$B$9:$N$1882,12,FALSE) -> 364.8986 | S124: =VLOOKUP(C124,'Anexo_GL '!$B$9:$N$1882,13,FALSE) -> Cumple
A125: 020202 : MD DE CORIS | B125: 98 | C125: 020202 | D125: ANCASH | E125: MD DE CORIS | F125: =VLOOKUP(C125,'Anexo_GL '!$B$9:$N$1882,4,FALSE) -> 94.01809 | H125: =VLOOKUP(C125,'Anexo_GL '!$B$9:$N$1882,5,FALSE) -> 1388.46276 | I125: =VLOOKUP(C125,'Anexo_GL '!$B$9:$N$1882,6,FALSE) -> 2579.49563 | L125: =VLOOKUP(C125,'Anexo_GL '!$B$9:$N$1882,7,FALSE) -> 3.64482455 | N125: =VLOOKUP(C125,'Anexo_GL '!$B$9:$N$1882,8,FALSE) -> Cumple | P125: =VLOOKUP(C125,'Anexo_GL '!$B$9:$N$1882,10,FALSE) -> 546.2279 | Q125: =VLOOKUP(C125,'Anexo_GL '!$B$9:$N$1882,11,FALSE) -> 412.69009 | R125: =VLOOKUP(C125,'Anexo_GL '!$B$9:$N$1882,12,FALSE) -> 133.53781 | S125: =VLOOKUP(C125,'Anexo_GL '!$B$9:$N$1882,13,FALSE) -> Cumple
A126: 020203 : MD DE HUACLLAN | B126: 99 | C126: 020203 | D126: ANCASH | E126: MD DE HUACLLAN | F126: =VLOOKUP(C126,'Anexo_GL '!$B$9:$N$1882,4,FALSE) -> 42.40967 | H126: =VLOOKUP(C126,'Anexo_GL '!$B$9:$N$1882,5,FALSE) -> 717.380555 | I126: =VLOOKUP(C126,'Anexo_GL '!$B$9:$N$1882,6,FALSE) -> 760.64043 | L126: =VLOOKUP(C126,'Anexo_GL '!$B$9:$N$1882,7,FALSE) -> 5.575521406 | N126: =VLOOKUP(C126,'Anexo_GL '!$B$9:$N$1882,8,FALSE) -> Cumple | P126: =VLOOKUP(C126,'Anexo_GL '!$B$9:$N$1882,10,FALSE) -> 363.98474 | Q126: =VLOOKUP(C126,'Anexo_GL '!$B$9:$N$1882,11,FALSE) -> 217.4817 | R126: =VLOOKUP(C126,'Anexo_GL '!$B$9:$N$1882,12,FALSE) -> 146.50304 | S126: =VLOOKUP(C126,'Anexo_GL '!$B$9:$N$1882,13,FALSE) -> Cumple
A127: 020204 : MD DE LA MERCED | B127: 100 | C127: 020204 | D127: ANCASH | E127: MD DE LA MERCED | F127: =VLOOKUP(C127,'Anexo_GL '!$B$9:$N$1882,4,FALSE) -> 70.60958 | H127: =VLOOKUP(C127,'Anexo_GL '!$B$9:$N$1882,5,FALSE) -> 1673.026463 | I127: =VLOOKUP(C127,'Anexo_GL '!$B$9:$N$1882,6,FALSE) -> 2731.11341 | L127: =VLOOKUP(C127,'Anexo_GL '!$B$9:$N$1882,7,FALSE) -> 2.585377075 | N127: =VLOOKUP(C127,'Anexo_GL '!$B$9:$N$1882,8,FALSE) -> Cumple | P127: =VLOOKUP(C127,'Anexo_GL '!$B$9:$N$1882,10,FALSE) -> 655.39679 | Q127: =VLOOKUP(C127,'Anexo_GL '!$B$9:$N$1882,11,FALSE) -> 575.44609 | R127: =VLOOKUP(C127,'Anexo_GL '!$B$9:$N$1882,12,FALSE) -> 79.9507 | S127: =VLOOKUP(C127,'Anexo_GL '!$B$9:$N$1882,13,FALSE) -> Cumple
A128: 020205 : MD DE SUCCHA | B128: 101 | C128: 020205 | D128: ANCASH | E128: MD DE SUCCHA | F128: =VLOOKUP(C128,'Anexo_GL '!$B$9:$N$1882,4,FALSE) -> 43.2433 | H128: =VLOOKUP(C128,'Anexo_GL '!$B$9:$N$1882,5,FALSE) -> 853.364035 | I128: =VLOOKUP(C128,'Anexo_GL '!$B$9:$N$1882,6,FALSE) -> 782.72367 | L128: =VLOOKUP(C128,'Anexo_GL '!$B$9:$N$1882,7,FALSE) -> 5.067391902 | N128: =VLOOKUP(C128,'Anexo_GL '!$B$9:$N$1882,8,FALSE) -> Cumple | P128: =VLOOKUP(C128,'Anexo_GL '!$B$9:$N$1882,10,FALSE) -> 343.81607 | Q128: =VLOOKUP(C128,'Anexo_GL '!$B$9:$N$1882,11,FALSE) -> 212.11958 | R128: =VLOOKUP(C128,'Anexo_GL '!$B$9:$N$1882,12,FALSE) -> 131.69649 | S128: =VLOOKUP(C128,'Anexo_GL '!$B$9:$N$1882,13,FALSE) -> Cumple
A129: 020301 : MP DE ANTONIO RAYMONDI - LLAMELLIN | B129: 102 | C129: 020301 | D129: ANCASH | E129: MP DE ANTONIO RAYMONDI - LLAMELLIN | F129: =VLOOKUP(C129,'Anexo_GL '!$B$9:$N$1882,4,FALSE) -> 462.91542 | H129: =VLOOKUP(C129,'Anexo_GL '!$B$9:$N$1882,5,FALSE) -> 3333.807555 | I129: =VLOOKUP(C129,'Anexo_GL '!$B$9:$N$1882,6,FALSE) -> 2505.85749 | L129: =VLOOKUP(C129,'Anexo_GL '!$B$9:$N$1882,7,FALSE) -> 13.88548716 | N129: =VLOOKUP(C129,'Anexo_GL '!$B$9:$N$1882,8,FALSE) -> Cumple | P129: =VLOOKUP(C129,'Anexo_GL '!$B$9:$N$1882,10,FALSE) -> 2466.46675 | Q129: =VLOOKUP(C129,'Anexo_GL '!$B$9:$N$1882,11,FALSE) -> 706.08552 | R129: =VLOOKUP(C129,'Anexo_GL '!$B$9:$N$1882,12,FALSE) -> 1760.38123 | S129: =VLOOKUP(C129,'Anexo_GL '!$B$9:$N$1882,13,FALSE) -> Cumple
A130: 020302 : MD DE ACSO | B130: 103 | C130: 020302 | D130: ANCASH | E130: MD DE ACSO | F130: =VLOOKUP(C130,'Anexo_GL '!$B$9:$N$1882,4,FALSE) -> 142.96491 | H130: =VLOOKUP(C130,'Anexo_GL '!$B$9:$N$1882,5,FALSE) -> 1203.533327 | I130: =VLOOKUP(C130,'Anexo_GL '!$B$9:$N$1882,6,FALSE) -> 1711.4275 | L130: =VLOOKUP(C130,'Anexo_GL '!$B$9:$N$1882,7,FALSE) -> 8.35354755 | N130: =VLOOKUP(C130,'Anexo_GL '!$B$9:$N$1882,8,FALSE) -> Cumple | P130: =VLOOKUP(C130,'Anexo_GL '!$B$9:$N$1882,10,FALSE) -> 484.43872 | Q130: =VLOOKUP(C130,'Anexo_GL '!$B$9:$N$1882,11,FALSE) -> 286.28075 | R130: =VLOOKUP(C130,'Anexo_GL '!$B$9:$N$1882,12,FALSE) -> 198.15797 | S130: =VLOOKUP(C130,'Anexo_GL '!$B$9:$N$1882,13,FALSE) -> Cumple
A131: 020303 : MD DE CHACCHO | B131: 104 | C131: 020303 | D131: ANCASH | E131: MD DE CHACCHO | F131: =VLOOKUP(C131,'Anexo_GL '!$B$9:$N$1882,4,FALSE) -> 631.60752 | H131: =VLOOKUP(C131,'Anexo_GL '!$B$9:$N$1882,5,FALSE) -> 979.98362 | I131: =VLOOKUP(C131,'Anexo_GL '!$B$9:$N$1882,6,FALSE) -> 1573.94675 | L131: =VLOOKUP(C131,'Anexo_GL '!$B$9:$N$1882,7,FALSE) -> 40.12890017 | N131: =VLOOKUP(C131,'Anexo_GL '!$B$9:$N$1882,8,FALSE) -> Cumple | P131: =VLOOKUP(C131,'Anexo_GL '!$B$9:$N$1882,10,FALSE) -> 442.14712 | Q131: =VLOOKUP(C131,'Anexo_GL '!$B$9:$N$1882,11,FALSE) -> 196.83979 | R131: =VLOOKUP(C131,'Anexo_GL '!$B$9:$N$1882,12,FALSE) -> 245.30733 | S131: =VLOOKUP(C131,'Anexo_GL '!$B$9:$N$1882,13,FALSE) -> Cumple
A132: 020304 : MD DE CHINGAS | B132: 105 | C132: 020304 | D132: ANCASH | E132: MD DE CHINGAS | F132: =VLOOKUP(C132,'Anexo_GL '!$B$9:$N$1882,4,FALSE) -> 59.53882 | H132: =VLOOKUP(C132,'Anexo_GL '!$B$9:$N$1882,5,FALSE) -> 977.59458 | I132: =VLOOKUP(C132,'Anexo_GL '!$B$9:$N$1882,6,FALSE) -> 1531.09463 | L132: =VLOOKUP(C132,'Anexo_GL '!$B$9:$N$1882,7,FALSE) -> 3.888644035 | N132: =VLOOKUP(C132,'Anexo_GL '!$B$9:$N$1882,8,FALSE) -> Cumple | P132: =VLOOKUP(C132,'Anexo_GL '!$B$9:$N$1882,10,FALSE) -> 451.78201 | Q132: =VLOOKUP(C132,'Anexo_GL '!$B$9:$N$1882,11,FALSE) -> 302.91086 | R132: =VLOOKUP(C132,'Anexo_GL '!$B$9:$N$1882,12,FALSE) -> 148.87115 | S132: =VLOOKUP(C132,'Anexo_GL '!$B$9:$N$1882,13,FALSE) -> Cumple
A133: 020305 : MD DE MIRGAS | B133: 106 | C133: 020305 | D133: ANCASH | E133: MD DE MIRGAS | F133: =VLOOKUP(C133,'Anexo_GL '!$B$9:$N$1882,4,FALSE) -> 140.10918 | H133: =VLOOKUP(C133,'Anexo_GL '!$B$9:$N$1882,5,FALSE) -> 2666.984063 | I133: =VLOOKUP(C133,'Anexo_GL '!$B$9:$N$1882,6,FALSE) -> 5335.48871 | L133: =VLOOKUP(C133,'Anexo_GL '!$B$9:$N$1882,7,FALSE) -> 2.625985877 | N133: =VLOOKUP(C133,'Anexo_GL '!$B$9:$N$1882,8,FALSE) -> Cumple | P133: =VLOOKUP(C133,'Anexo_GL '!$B$9:$N$1882,10,FALSE) -> 1298.2496 | Q133: =VLOOKUP(C133,'Anexo_GL '!$B$9:$N$1882,11,FALSE) -> 773.87462 | R133: =VLOOKUP(C133,'Anexo_GL '!$B$9:$N$1882,12,FALSE) -> 524.37498 | S133: =VLOOKUP(C133,'Anexo_GL '!$B$9:$N$1882,13,FALSE) -> Cumple
A134: 020306 : MD DE SAN JUAN DE RONTOY | B134: 107 | C134: 020306 | D134: ANCASH | E134: MD DE SAN JUAN DE RONTOY | F134: =VLOOKUP(C134,'Anexo_GL '!$B$9:$N$1882,4,FALSE) -> 21.16596 | H134: =VLOOKUP(C134,'Anexo_GL '!$B$9:$N$1882,5,FALSE) -> 931.863935 | I134: =VLOOKUP(C134,'Anexo_GL '!$B$9:$N$1882,6,FALSE) -> 1517.35902 | L134: =VLOOKUP(C134,'Anexo_GL '!$B$9:$N$1882,7,FALSE) -> 1.394921025 | N134: =VLOOKUP(C134,'Anexo_GL '!$B$9:$N$1882,8,FALSE) -> Cumple | P134: =VLOOKUP(C134,'Anexo_GL '!$B$9:$N$1882,10,FALSE) -> 421.4548 | Q134: =VLOOKUP(C134,'Anexo_GL '!$B$9:$N$1882,11,FALSE) -> 352.03282 | R134: =VLOOKUP(C134,'Anexo_GL '!$B$9:$N$1882,12,FALSE) -> 69.42198 | S134: =VLOOKUP(C134,'Anexo_GL '!$B$9:$N$1882,13,FALSE) -> Cumple
A135: 020401 : MP DE ASUNCION - CHACAS | B135: 108 | C135: 020401 | D135: ANCASH | E135: MP DE ASUNCION - CHACAS | F135: =VLOOKUP(C135,'Anexo_GL '!$B$9:$N$1882,4,FALSE) -> 328.75527 | H135: =VLOOKUP(C135,'Anexo_GL '!$B$9:$N$1882,5,FALSE) -> 3712.537802 | I135: =VLOOKUP(C135,'Anexo_GL '!$B$9:$N$1882,6,FALSE) -> 3932.11294 | L135: =VLOOKUP(C135,'Anexo_GL '!$B$9:$N$1882,7,FALSE) -> 8.360778925 | N135: =VLOOKUP(C135,'Anexo_GL '!$B$9:$N$1882,8,FALSE) -> Cumple | P135: =VLOOKUP(C135,'Anexo_GL '!$B$9:$N$1882,10,FALSE) -> 2385.39091 | Q135: =VLOOKUP(C135,'Anexo_GL '!$B$9:$N$1882,11,FALSE) -> 840.65715 | R135: =VLOOKUP(C135,'Anexo_GL '!$B$9:$N$1882,12,FALSE) -> 1544.73376 | S135: =VLOOKUP(C135,'Anexo_GL '!$B$9:$N$1882,13,FALSE) -> Cumple
A136: 020402 : MD DE ACOCHACA | B136: 109 | C136: 020402 | D136: ANCASH | E136: MD DE ACOCHACA | F136: =VLOOKUP(C136,'Anexo_GL '!$B$9:$N$1882,4,FALSE) -> 97.02661 | H136: =VLOOKUP(C136,'Anexo_GL '!$B$9:$N$1882,5,FALSE) -> 1804.017653 | I136: =VLOOKUP(C136,'Anexo_GL '!$B$9:$N$1882,6,FALSE) -> 3146.17545 | L136: =VLOOKUP(C136,'Anexo_GL '!$B$9:$N$1882,7,FALSE) -> 3.083954202 | N136: =VLOOKUP(C136,'Anexo_GL '!$B$9:$N$1882,8,FALSE) -> Cumple | P136: =VLOOKUP(C136,'Anexo_GL '!$B$9:$N$1882,10,FALSE) -> 792.53329 | Q136: =VLOOKUP(C136,'Anexo_GL '!$B$9:$N$1882,11,FALSE) -> 660.73146 | R136: =VLOOKUP(C136,'Anexo_GL '!$B$9:$N$1882,12,FALSE) -> 131.80183 | S136: =VLOOKUP(C136,'Anexo_GL '!$B$9:$N$1882,13,FALSE) -> Cumple
A137: 020501 : MP DE BOLOGNESI - CHIQUIAN | B137: 110 | C137: 020501 | D137: ANCASH | E137: MP DE BOLOGNESI - CHIQUIAN | F137: =VLOOKUP(C137,'Anexo_GL '!$B$9:$N$1882,4,FALSE) -> 1337.50983 | H137: =VLOOKUP(C137,'Anexo_GL '!$B$9:$N$1882,5,FALSE) -> 3887.839917 | I137: =VLOOKUP(C137,'Anexo_GL '!$B$9:$N$1882,6,FALSE) -> 1885.82364 | L137: =VLOOKUP(C137,'Anexo_GL '!$B$9:$N$1882,7,FALSE) -> 34.40238946 | N137: =VLOOKUP(C137,'Anexo_GL '!$B$9:$N$1882,8,FALSE) -> Cumple | P137: =VLOOKUP(C137,'Anexo_GL '!$B$9:$N$1882,10,FALSE) -> 1656.58036 | Q137: =VLOOKUP(C137,'Anexo_GL '!$B$9:$N$1882,11,FALSE) -> 996.79098 | R137: =VLOOKUP(C137,'Anexo_GL '!$B$9:$N$1882,12,FALSE) -> 659.78938 | S137: =VLOOKUP(C137,'Anexo_GL '!$B$9:$N$1882,13,FALSE) -> Cumple
A138: 020502 : MD DE ABELARDO PARDO LAZAMETA | B138: 111 | C138: 020502 | D138: ANCASH | E138: MD DE ABELARDO PARDO LAZAMETA | F138: =VLOOKUP(C138,'Anexo_GL '!$B$9:$N$1882,4,FALSE) -> 144.80973 | H138: =VLOOKUP(C138,'Anexo_GL '!$B$9:$N$1882,5,FALSE) -> 1121.155725 | I138: =VLOOKUP(C138,'Anexo_GL '!$B$9:$N$1882,6,FALSE) -> 1531.50225 | L138: =VLOOKUP(C138,'Anexo_GL '!$B$9:$N$1882,7,FALSE) -> 9.455404326 | N138: =VLOOKUP(C138,'Anexo_GL '!$B$9:$N$1882,8,FALSE) -> Cumple | P138: =VLOOKUP(C138,'Anexo_GL '!$B$9:$N$1882,10,FALSE) -> 460.28748 | Q138: =VLOOKUP(C138,'Anexo_GL '!$B$9:$N$1882,11,FALSE) -> 202.30449 | R138: =VLOOKUP(C138,'Anexo_GL '!$B$9:$N$1882,12,FALSE) -> 257.98299 | S138: =VLOOKUP(C138,'Anexo_GL '!$B$9:$N$1882,13,FALSE) -> Cumple
A139: 020503 : MD DE ANTONIO RAYMONDI | B139: 112 | C139: 020503 | D139: ANCASH | E139: MD DE ANTONIO RAYMONDI | F139: =VLOOKUP(C139,'Anexo_GL '!$B$9:$N$1882,4,FALSE) -> 1317.40363 | H139: =VLOOKUP(C139,'Anexo_GL '!$B$9:$N$1882,5,FALSE) -> 1006.37824 | I139: =VLOOKUP(C139,'Anexo_GL '!$B$9:$N$1882,6,FALSE) -> 1021.77972 | L139: =VLOOKUP(C139,'Anexo_GL '!$B$9:$N$1882,7,FALSE) -> 128.9322546 | N139: =VLOOKUP(C139,'Anexo_GL '!$B$9:$N$1882,8,FALSE) -> No Cumple | P139: =VLOOKUP(C139,'Anexo_GL '!$B$9:$N$1882,10,FALSE) -> 438.85995 | Q139: =VLOOKUP(C139,'Anexo_GL '!$B$9:$N$1882,11,FALSE) -> 313.09452 | R139: =VLOOKUP(C139,'Anexo_GL '!$B$9:$N$1882,12,FALSE) -> 125.76543 | S139: =VLOOKUP(C139,'Anexo_GL '!$B$9:$N$1882,13,FALSE) -> Cumple
A140: 020504 : MD DE AQUIA | B140: 113 | C140: 020504 | D140: ANCASH | E140: MD DE AQUIA | F140: =VLOOKUP(C140,'Anexo_GL '!$B$9:$N$1882,4,FALSE) -> 350.51233 | H140: =VLOOKUP(C140,'Anexo_GL '!$B$9:$N$1882,5,FALSE) -> 1897.281488 | I140: =VLOOKUP(C140,'Anexo_GL '!$B$9:$N$1882,6,FALSE) -> 2521.55822 | L140: =VLOOKUP(C140,'Anexo_GL '!$B$9:$N$1882,7,FALSE) -> 13.90062411 | N140: =VLOOKUP(C140,'Anexo_GL '!$B$9:$N$1882,8,FALSE) -> Cumple | P140: =VLOOKUP(C140,'Anexo_GL '!$B$9:$N$1882,10,FALSE) -> 814.54796 | Q140: =VLOOKUP(C140,'Anexo_GL '!$B$9:$N$1882,11,FALSE) -> 244.39977 | R140: =VLOOKUP(C140,'Anexo_GL '!$B$9:$N$1882,12,FALSE) -> 570.14819 | S140: =VLOOKUP(C140,'Anexo_GL '!$B$9:$N$1882,13,FALSE) -> Cumple
A141: 020505 : MD DE CAJACAY | B141: 114 | C141: 020505 | D141: ANCASH | E141: MD DE CAJACAY | F141: =VLOOKUP(C141,'Anexo_GL '!$B$9:$N$1882,4,FALSE) -> 17.81753 | H141: =VLOOKUP(C141,'Anexo_GL '!$B$9:$N$1882,5,FALSE) -> 1175.33784 | I141: =VLOOKUP(C141,'Anexo_GL '!$B$9:$N$1882,6,FALSE) -> 1566.1308 | L141: =VLOOKUP(C141,'Anexo_GL '!$B$9:$N$1882,7,FALSE) -> 1.137678283 | N141: =VLOOKUP(C141,'Anexo_GL '!$B$9:$N$1882,8,FALSE) -> Cumple | P141: =VLOOKUP(C141,'Anexo_GL '!$B$9:$N$1882,10,FALSE) -> 537.89696 | Q141: =VLOOKUP(C141,'Anexo_GL '!$B$9:$N$1882,11,FALSE) -> 286.65222 | R141: =VLOOKUP(C141,'Anexo_GL '!$B$9:$N$1882,12,FALSE) -> 251.24474 | S141: =VLOOKUP(C141,'Anexo_GL '!$B$9:$N$1882,13,FALSE) -> Cumple
A142: 020506 : MD DE CANIS | B142: 115 | C142: 020506 | D142: ANCASH | E142: MD DE CANIS | F142: =VLOOKUP(C142,'Anexo_GL '!$B$9:$N$1882,4,FALSE) -> 133.05737 | H142: =VLOOKUP(C142,'Anexo_GL '!$B$9:$N$1882,5,FALSE) -> 941.499955 | I142: =VLOOKUP(C142,'Anexo_GL '!$B$9:$N$1882,6,FALSE) -> 1574.48507 | L142: =VLOOKUP(C142,'Anexo_GL '!$B$9:$N$1882,7,FALSE) -> 8.450849902 | N142: =VLOOKUP(C142,'Anexo_GL '!$B$9:$N$1882,8,FALSE) -> Cumple | P142: =VLOOKUP(C142,'Anexo_GL '!$B$9:$N$1882,10,FALSE) -> 469.19316 | Q142: =VLOOKUP(C142,'Anexo_GL '!$B$9:$N$1882,11,FALSE) -> 296.08669 | R142: =VLOOKUP(C142,'Anexo_GL '!$B$9:$N$1882,12,FALSE) -> 173.10647 | S142: =VLOOKUP(C142,'Anexo_GL '!$B$9:$N$1882,13,FALSE) -> Cumple
A143: 020507 : MD DE COLQUIOC | B143: 116 | C143: 020507 | D143: ANCASH | E143: MD DE COLQUIOC | F143: =VLOOKUP(C143,'Anexo_GL '!$B$9:$N$1882,4,FALSE) -> 3137.7484 | H143: =VLOOKUP(C143,'Anexo_GL '!$B$9:$N$1882,5,FALSE) -> 1813.715925 | I143: =VLOOKUP(C143,'Anexo_GL '!$B$9:$N$1882,6,FALSE) -> 3267.66657 | L143: =VLOOKUP(C143,'Anexo_GL '!$B$9:$N$1882,7,FALSE) -> 96.02413015 | N143: =VLOOKUP(C143,'Anexo_GL '!$B$9:$N$1882,8,FALSE) -> Cumple | P143: =VLOOKUP(C143,'Anexo_GL '!$B$9:$N$1882,10,FALSE) -> 1047.64256 | Q143: =VLOOKUP(C143,'Anexo_GL '!$B$9:$N$1882,11,FALSE) -> 549.18898 | R143: =VLOOKUP(C143,'Anexo_GL '!$B$9:$N$1882,12,FALSE) -> 498.45358 | S143: =VLOOKUP(C143,'Anexo_GL '!$B$9:$N$1882,13,FALSE) -> Cumple
A144: 020508 : MD DE HUALLANCA | B144: 117 | C144: 020508 | D144: ANCASH | E144: MD DE HUALLANCA | F144: =VLOOKUP(C144,'Anexo_GL '!$B$9:$N$1882,4,FALSE) -> 477.77862 | H144: =VLOOKUP(C144,'Anexo_GL '!$B$9:$N$1882,5,FALSE) -> 5409.949677 | I144: =VLOOKUP(C144,'Anexo_GL '!$B$9:$N$1882,6,FALSE) -> 8480.80374 | L144: =VLOOKUP(C144,'Anexo_GL '!$B$9:$N$1882,7,FALSE) -> 5.633647879 | N144: =VLOOKUP(C144,'Anexo_GL '!$B$9:$N$1882,8,FALSE) -> Cumple | P144: =VLOOKUP(C144,'Anexo_GL '!$B$9:$N$1882,10,FALSE) -> 3527.23406 | Q144: =VLOOKUP(C144,'Anexo_GL '!$B$9:$N$1882,11,FALSE) -> 2150.47899 | R144: =VLOOKUP(C144,'Anexo_GL '!$B$9:$N$1882,12,FALSE) -> 1376.75507 | S144: =VLOOKUP(C144,'Anexo_GL '!$B$9:$N$1882,13,FALSE) -> Cumple
A145: 020509 : MD DE HUASTA | B145: 118 | C145: 020509 | D145: ANCASH | E145: MD DE HUASTA | F145: =VLOOKUP(C145,'Anexo_GL '!$B$9:$N$1882,4,FALSE) -> 103.35924 | H145: =VLOOKUP(C145,'Anexo_GL '!$B$9:$N$1882,5,FALSE) -> 2180.54452 | I145: =VLOOKUP(C145,'Anexo_GL '!$B$9:$N$1882,6,FALSE) -> 3147.12607 | L145: =VLOOKUP(C145,'Anexo_GL '!$B$9:$N$1882,7,FALSE) -> 3.284242121 | N145: =VLOOKUP(C145,'Anexo_GL '!$B$9:$N$1882,8,FALSE) -> Cumple | P145: =VLOOKUP(C145,'Anexo_GL '!$B$9:$N$1882,10,FALSE) -> 1319.15277 | Q145: =VLOOKUP(C145,'Anexo_GL '!$B$9:$N$1882,11,FALSE) -> 287.34478 | R145: =VLOOKUP(C145,'Anexo_GL '!$B$9:$N$1882,12,FALSE) -> 1031.80799 | S145: =VLOOKUP(C145,'Anexo_GL '!$B$9:$N$1882,13,FALSE) -> Cumple
A146: 020510 : MD DE HUAYLLACAYAN | B146: 119 | C146: 020510 | D146: ANCASH | E146: MD DE HUAYLLACAYAN | F146: =VLOOKUP(C146,'Anexo_GL '!$B$9:$N$1882,4,FALSE) -> 1200.77632 | H146: =VLOOKUP(C146,'Anexo_GL '!$B$9:$N$1882,5,FALSE) -> 965.987915 | I146: =VLOOKUP(C146,'Anexo_GL '!$B$9:$N$1882,6,FALSE) -> 1260.29079 | L146: =VLOOKUP(C146,'Anexo_GL '!$B$9:$N$1882,7,FALSE) -> 95.2777192 | N146: =VLOOKUP(C146,'Anexo_GL '!$B$9:$N$1882,8,FALSE) -> Cumple | P146: =VLOOKUP(C146,'Anexo_GL '!$B$9:$N$1882,10,FALSE) -> 464.24194 | Q146: =VLOOKUP(C146,'Anexo_GL '!$B$9:$N$1882,11,FALSE) -> 243.64395 | R146: =VLOOKUP(C146,'Anexo_GL '!$B$9:$N$1882,12,FALSE) -> 220.59799 | S146: =VLOOKUP(C146,'Anexo_GL '!$B$9:$N$1882,13,FALSE) -> Cumple
A147: 020511 : MD DE LA PRIMAVERA | B147: 120 | C147: 020511 | D147: ANCASH | E147: MD DE LA PRIMAVERA | F147: =VLOOKUP(C147,'Anexo_GL '!$B$9:$N$1882,4,FALSE) -> 137.42364 | H147: =VLOOKUP(C147,'Anexo_GL '!$B$9:$N$1882,5,FALSE) -> 776.0013825 | I147: =VLOOKUP(C147,'Anexo_GL '!$B$9:$N$1882,6,FALSE) -> 842.10294 | L147: =VLOOKUP(C147,'Anexo_GL '!$B$9:$N$1882,7,FALSE) -> 16.31910227 | N147: =VLOOKUP(C147,'Anexo_GL '!$B$9:$N$1882,8,FALSE) -> Cumple | P147: =VLOOKUP(C147,'Anexo_GL '!$B$9:$N$1882,10,FALSE) -> 388.87741 | Q147: =VLOOKUP(C147,'Anexo_GL '!$B$9:$N$1882,11,FALSE) -> 200.2652 | R147: =VLOOKUP(C147,'Anexo_GL '!$B$9:$N$1882,12,FALSE) -> 188.61221 | S147: =VLOOKUP(C147,'Anexo_GL '!$B$9:$N$1882,13,FALSE) -> Cumple
A148: 020512 : MD DE MANGAS | B148: 121 | C148: 020512 | D148: ANCASH | E148: MD DE MANGAS | F148: =VLOOKUP(C148,'Anexo_GL '!$B$9:$N$1882,4,FALSE) -> 72.85339 | H148: =VLOOKUP(C148,'Anexo_GL '!$B$9:$N$1882,5,FALSE) -> 703.9806825 | I148: =VLOOKUP(C148,'Anexo_GL '!$B$9:$N$1882,6,FALSE) -> 690.20223 | L148: =VLOOKUP(C148,'Anexo_GL '!$B$9:$N$1882,7,FALSE) -> 10.34877686 | N148: =VLOOKUP(C148,'Anexo_GL '!$B$9:$N$1882,8,FALSE) -> Cumple | P148: =VLOOKUP(C148,'Anexo_GL '!$B$9:$N$1882,10,FALSE) -> 325.88866 | Q148: =VLOOKUP(C148,'Anexo_GL '!$B$9:$N$1882,11,FALSE) -> 223.81066 | R148: =VLOOKUP(C148,'Anexo_GL '!$B$9:$N$1882,12,FALSE) -> 102.078 | S148: =VLOOKUP(C148,'Anexo_GL '!$B$9:$N$1882,13,FALSE) -> Cumple
A149: 020513 : MD DE PACLLON | B149: 122 | C149: 020513 | D149: ANCASH | E149: MD DE PACLLON | F149: =VLOOKUP(C149,'Anexo_GL '!$B$9:$N$1882,4,FALSE) -> 3206.38857 | H149: =VLOOKUP(C149,'Anexo_GL '!$B$9:$N$1882,5,FALSE) -> 1357.418885 | I149: =VLOOKUP(C149,'Anexo_GL '!$B$9:$N$1882,6,FALSE) -> 1977.2477 | L149: =VLOOKUP(C149,'Anexo_GL '!$B$9:$N$1882,7,FALSE) -> 162.1642331 | N149: =VLOOKUP(C149,'Anexo_GL '!$B$9:$N$1882,8,FALSE) -> No Cumple | P149: =VLOOKUP(C149,'Anexo_GL '!$B$9:$N$1882,10,FALSE) -> 879.47218 | Q149: =VLOOKUP(C149,'Anexo_GL '!$B$9:$N$1882,11,FALSE) -> 267.59428 | R149: =VLOOKUP(C149,'Anexo_GL '!$B$9:$N$1882,12,FALSE) -> 611.8779 | S149: =VLOOKUP(C149,'Anexo_GL '!$B$9:$N$1882,13,FALSE) -> Cumple
A150: 020514 : MD DE SAN MIGUEL DE CORPANQUI | B150: 123 | C150: 020514 | D150: ANCASH | E150: MD DE SAN MIGUEL DE CORPANQUI | F150: =VLOOKUP(C150,'Anexo_GL '!$B$9:$N$1882,4,FALSE) -> 47.262 | H150: =VLOOKUP(C150,'Anexo_GL '!$B$9:$N$1882,5,FALSE) -> 801.313265 | I150: =VLOOKUP(C150,'Anexo_GL '!$B$9:$N$1882,6,FALSE) -> 1217.60979 | L150: =VLOOKUP(C150,'Anexo_GL '!$B$9:$N$1882,7,FALSE) -> 3.881539093 | N150: =VLOOKUP(C150,'Anexo_GL '!$B$9:$N$1882,8,FALSE) -> Cumple | P150: =VLOOKUP(C150,'Anexo_GL '!$B$9:$N$1882,10,FALSE) -> 411.70036 | Q150: =VLOOKUP(C150,'Anexo_GL '!$B$9:$N$1882,11,FALSE) -> 194.96887 | R150: =VLOOKUP(C150,'Anexo_GL '!$B$9:$N$1882,12,FALSE) -> 216.73149 | S150: =VLOOKUP(C150,'Anexo_GL '!$B$9:$N$1882,13,FALSE) -> Cumple
A151: 020515 : MD DE TICLLOS | B151: 124 | C151: 020515 | D151: ANCASH | E151: MD DE TICLLOS | F151: =VLOOKUP(C151,'Anexo_GL '!$B$9:$N$1882,4,FALSE) -> 22.0155 | H151: =VLOOKUP(C151,'Anexo_GL '!$B$9:$N$1882,5,FALSE) -> 884.8061025 | I151: =VLOOKUP(C151,'Anexo_GL '!$B$9:$N$1882,6,FALSE) -> 1317.84369 | L151: =VLOOKUP(C151,'Anexo_GL '!$B$9:$N$1882,7,FALSE) -> 1.670569899 | N151: =VLOOKUP(C151,'Anexo_GL '!$B$9:$N$1882,8,FALSE) -> Cumple | P151: =VLOOKUP(C151,'Anexo_GL '!$B$9:$N$1882,10,FALSE) -> 429.52061 | Q151: =VLOOKUP(C151,'Anexo_GL '!$B$9:$N$1882,11,FALSE) -> 199.75859 | R151: =VLOOKUP(C151,'Anexo_GL '!$B$9:$N$1882,12,FALSE) -> 229.76202 | S151: =VLOOKUP(C151,'Anexo_GL '!$B$9:$N$1882,13,FALSE) -> Cumple
A152: 020601 : MP DE CARHUAZ | B152: 125 | C152: 020601 | D152: ANCASH | E152: MP DE CARHUAZ | F152: =VLOOKUP(C152,'Anexo_GL '!$B$9:$N$1882,4,FALSE) -> 806.06259 | H152: =VLOOKUP(C152,'Anexo_GL '!$B$9:$N$1882,5,FALSE) -> 9815.20382 | I152: =VLOOKUP(C152,'Anexo_GL '!$B$9:$N$1882,6,FALSE) -> 10331.1638 | L152: =VLOOKUP(C152,'Anexo_GL '!$B$9:$N$1882,7,FALSE) -> 7.802243829 | N152: =VLOOKUP(C152,'Anexo_GL '!$B$9:$N$1882,8,FALSE) -> Cumple | P152: =VLOOKUP(C152,'Anexo_GL '!$B$9:$N$1882,10,FALSE) -> 4651.36143 | Q152: =VLOOKUP(C152,'Anexo_GL '!$B$9:$N$1882,11,FALSE) -> 2837.11736 | R152: =VLOOKUP(C152,'Anexo_GL '!$B$9:$N$1882,12,FALSE) -> 1814.24407 | S152: =VLOOKUP(C152,'Anexo_GL '!$B$9:$N$1882,13,FALSE) -> Cumple
A153: 020602 : MD DE ACOPAMPA | B153: 126 | C153: 020602 | D153: ANCASH | E153: MD DE ACOPAMPA | F153: =VLOOKUP(C153,'Anexo_GL '!$B$9:$N$1882,4,FALSE) -> 131.96712 | H153: =VLOOKUP(C153,'Anexo_GL '!$B$9:$N$1882,5,FALSE) -> 1047.248225 | I153: =VLOOKUP(C153,'Anexo_GL '!$B$9:$N$1882,6,FALSE) -> 1610.77634 | L153: =VLOOKUP(C153,'Anexo_GL '!$B$9:$N$1882,7,FALSE) -> 8.192764987 | N153: =VLOOKUP(C153,'Anexo_GL '!$B$9:$N$1882,8,FALSE) -> Cumple | P153: =VLOOKUP(C153,'Anexo_GL '!$B$9:$N$1882,10,FALSE) -> 154.79056 | Q153: =VLOOKUP(C153,'Anexo_GL '!$B$9:$N$1882,11,FALSE) -> 301.14374 | R153: =VLOOKUP(C153,'Anexo_GL '!$B$9:$N$1882,12,FALSE) -> -146.35318 | S153: =VLOOKUP(C153,'Anexo_GL '!$B$9:$N$1882,13,FALSE) -> No Cumple
A154: 020603 : MD DE AMASHCA | B154: 127 | C154: 020603 | D154: ANCASH | E154: MD DE AMASHCA | F154: =VLOOKUP(C154,'Anexo_GL '!$B$9:$N$1882,4,FALSE) -> 145.72941 | H154: =VLOOKUP(C154,'Anexo_GL '!$B$9:$N$1882,5,FALSE) -> 1019.489898 | I154: =VLOOKUP(C154,'Anexo_GL '!$B$9:$N$1882,6,FALSE) -> 1442.91971 | L154: =VLOOKUP(C154,'Anexo_GL '!$B$9:$N$1882,7,FALSE) -> 10.09962017 | N154: =VLOOKUP(C154,'Anexo_GL '!$B$9:$N$1882,8,FALSE) -> Cumple | P154: =VLOOKUP(C154,'Anexo_GL '!$B$9:$N$1882,10,FALSE) -> 440.44272 | Q154: =VLOOKUP(C154,'Anexo_GL '!$B$9:$N$1882,11,FALSE) -> 238.80819 | R154: =VLOOKUP(C154,'Anexo_GL '!$B$9:$N$1882,12,FALSE) -> 201.63453 | S154: =VLOOKUP(C154,'Anexo_GL '!$B$9:$N$1882,13,FALSE) -> Cumple
A155: 020604 : MD DE ANTA | B155: 128 | C155: 020604 | D155: ANCASH | E155: MD DE ANTA | F155: =VLOOKUP(C155,'Anexo_GL '!$B$9:$N$1882,4,FALSE) -> 41.30901 | H155: =VLOOKUP(C155,'Anexo_GL '!$B$9:$N$1882,5,FALSE) -> 1321.678762 | I155: =VLOOKUP(C155,'Anexo_GL '!$B$9:$N$1882,6,FALSE) -> 1940.82779 | L155: =VLOOKUP(C155,'Anexo_GL '!$B$9:$N$1882,7,FALSE) -> 2.128422223 | N155: =VLOOKUP(C155,'Anexo_GL '!$B$9:$N$1882,8,FALSE) -> Cumple | P155: =VLOOKUP(C155,'Anexo_GL '!$B$9:$N$1882,10,FALSE) -> 871.90073 | Q155: =VLOOKUP(C155,'Anexo_GL '!$B$9:$N$1882,11,FALSE) -> 406.06734 | R155: =VLOOKUP(C155,'Anexo_GL '!$B$9:$N$1882,12,FALSE) -> 465.83339 | S155: =VLOOKUP(C155,'Anexo_GL '!$B$9:$N$1882,13,FALSE) -> Cumple
A156: 020605 : MD DE ATAQUERO | B156: 129 | C156: 020605 | D156: ANCASH | E156: MD DE ATAQUERO | F156: =VLOOKUP(C156,'Anexo_GL '!$B$9:$N$1882,4,FALSE) -> 113.99691 | H156: =VLOOKUP(C156,'Anexo_GL '!$B$9:$N$1882,5,FALSE) -> 870.469645 | I156: =VLOOKUP(C156,'Anexo_GL '!$B$9:$N$1882,6,FALSE) -> 1298.23339 | L156: =VLOOKUP(C156,'Anexo_GL '!$B$9:$N$1882,7,FALSE) -> 8.780925747 | N156: =VLOOKUP(C156,'Anexo_GL '!$B$9:$N$1882,8,FALSE) -> Cumple | P156: =VLOOKUP(C156,'Anexo_GL '!$B$9:$N$1882,10,FALSE) -> 419.96969 | Q156: =VLOOKUP(C156,'Anexo_GL '!$B$9:$N$1882,11,FALSE) -> 301.97911 | R156: =VLOOKUP(C156,'Anexo_GL '!$B$9:$N$1882,12,FALSE) -> 117.99058 | S156: =VLOOKUP(C156,'Anexo_GL '!$B$9:$N$1882,13,FALSE) -> Cumple
A157: 020606 : MD DE MARCARA | B157: 130 | C157: 020606 | D157: ANCASH | E157: MD DE MARCARA | F157: =VLOOKUP(C157,'Anexo_GL '!$B$9:$N$1882,4,FALSE) -> 544.50767 | H157: =VLOOKUP(C157,'Anexo_GL '!$B$9:$N$1882,5,FALSE) -> 4280.407113 | I157: =VLOOKUP(C157,'Anexo_GL '!$B$9:$N$1882,6,FALSE) -> 7540.95889 | L157: =VLOOKUP(C157,'Anexo_GL '!$B$9:$N$1882,7,FALSE) -> 7.220668856 | N157: =VLOOKUP(C157,'Anexo_GL '!$B$9:$N$1882,8,FALSE) -> Cumple | P157: =VLOOKUP(C157,'Anexo_GL '!$B$9:$N$1882,10,FALSE) -> 2045.01108 | Q157: =VLOOKUP(C157,'Anexo_GL '!$B$9:$N$1882,11,FALSE) -> 1327.80335 | R157: =VLOOKUP(C157,'Anexo_GL '!$B$9:$N$1882,12,FALSE) -> 717.20773 | S157: =VLOOKUP(C157,'Anexo_GL '!$B$9:$N$1882,13,FALSE) -> Cumple
A158: 020607 : MD DE PARIAHUANCA | B158: 131 | C158: 020607 | D158: ANCASH | E158: MD DE PARIAHUANCA | F158: =VLOOKUP(C158,'Anexo_GL '!$B$9:$N$1882,4,FALSE) -> 47.99003 | H158: =VLOOKUP(C158,'Anexo_GL '!$B$9:$N$1882,5,FALSE) -> 1216.406598 | I158: =VLOOKUP(C158,'Anexo_GL '!$B$9:$N$1882,6,FALSE) -> 1171.64344 | L158: =VLOOKUP(C158,'Anexo_GL '!$B$9:$N$1882,7,FALSE) -> 3.945229342 | N158: =VLOOKUP(C158,'Anexo_GL '!$B$9:$N$1882,8,FALSE) -> Cumple | P158: =VLOOKUP(C158,'Anexo_GL '!$B$9:$N$1882,10,FALSE) -> 485.44888 | Q158: =VLOOKUP(C158,'Anexo_GL '!$B$9:$N$1882,11,FALSE) -> 303.8163 | R158: =VLOOKUP(C158,'Anexo_GL '!$B$9:$N$1882,12,FALSE) -> 181.63258 | S158: =VLOOKUP(C158,'Anexo_GL '!$B$9:$N$1882,13,FALSE) -> Cumple
A159: 020608 : MD DE SAN MIGUEL DE ACO | B159: 132 | C159: 020608 | D159: ANCASH | E159: MD DE SAN MIGUEL DE ACO | F159: =VLOOKUP(C159,'Anexo_GL '!$B$9:$N$1882,4,FALSE) -> 2413.77366 | H159: =VLOOKUP(C159,'Anexo_GL '!$B$9:$N$1882,5,FALSE) -> 1115.173445 | I159: =VLOOKUP(C159,'Anexo_GL '!$B$9:$N$1882,6,FALSE) -> 1563.74048 | L159: =VLOOKUP(C159,'Anexo_GL '!$B$9:$N$1882,7,FALSE) -> 154.3589675 | N159: =VLOOKUP(C159,'Anexo_GL '!$B$9:$N$1882,8,FALSE) -> No Cumple | P159: =VLOOKUP(C159,'Anexo_GL '!$B$9:$N$1882,10,FALSE) -> 418.19223 | Q159: =VLOOKUP(C159,'Anexo_GL '!$B$9:$N$1882,11,FALSE) -> 246.06378 | R159: =VLOOKUP(C159,'Anexo_GL '!$B$9:$N$1882,12,FALSE) -> 172.12845 | S159: =VLOOKUP(C159,'Anexo_GL '!$B$9:$N$1882,13,FALSE) -> Cumple
A160: 020609 : MD DE SHILLA | B160: 133 | C160: 020609 | D160: ANCASH | E160: MD DE SHILLA | F160: =VLOOKUP(C160,'Anexo_GL '!$B$9:$N$1882,4,FALSE) -> 292.17894 | H160: =VLOOKUP(C160,'Anexo_GL '!$B$9:$N$1882,5,FALSE) -> 2137.732272 | I160: =VLOOKUP(C160,'Anexo_GL '!$B$9:$N$1882,6,FALSE) -> 2362.12598 | L160: =VLOOKUP(C160,'Anexo_GL '!$B$9:$N$1882,7,FALSE) -> 12.36932079 | N160: =VLOOKUP(C160,'Anexo_GL '!$B$9:$N$1882,8,FALSE) -> Cumple | P160: =VLOOKUP(C160,'Anexo_GL '!$B$9:$N$1882,10,FALSE) -> 677.9921 | Q160: =VLOOKUP(C160,'Anexo_GL '!$B$9:$N$1882,11,FALSE) -> 366.78488 | R160: =VLOOKUP(C160,'Anexo_GL '!$B$9:$N$1882,12,FALSE) -> 311.20722 | S160: =VLOOKUP(C160,'Anexo_GL '!$B$9:$N$1882,13,FALSE) -> Cumple
A161: 020610 : MD DE TINCO | B161: 134 | C161: 020610 | D161: ANCASH | E161: MD DE TINCO | F161: =VLOOKUP(C161,'Anexo_GL '!$B$9:$N$1882,4,FALSE) -> 2328.09045 | H161: =VLOOKUP(C161,'Anexo_GL '!$B$9:$N$1882,5,FALSE) -> 1958.293787 | I161: =VLOOKUP(C161,'Anexo_GL '!$B$9:$N$1882,6,FALSE) -> 1773.37805 | L161: =VLOOKUP(C161,'Anexo_GL '!$B$9:$N$1882,7,FALSE) -> 118.8836152 | N161: =VLOOKUP(C161,'Anexo_GL '!$B$9:$N$1882,8,FALSE) -> No Cumple | P161: =VLOOKUP(C161,'Anexo_GL '!$B$9:$N$1882,10,FALSE) -> 555.67621 | Q161: =VLOOKUP(C161,'Anexo_GL '!$B$9:$N$1882,11,FALSE) -> 351.49627 | R161: =VLOOKUP(C161,'Anexo_GL '!$B$9:$N$1882,12,FALSE) -> 204.17994 | S161: =VLOOKUP(C161,'Anexo_GL '!$B$9:$N$1882,13,FALSE) -> Cumple
A162: 020611 : MD DE YUNGAR | B162: 135 | C162: 020611 | D162: ANCASH | E162: MD DE YUNGAR | F162: =VLOOKUP(C162,'Anexo_GL '!$B$9:$N$1882,4,FALSE) -> 328.12609 | H162: =VLOOKUP(C162,'Anexo_GL '!$B$9:$N$1882,5,FALSE) -> 1462.701378 | I162: =VLOOKUP(C162,'Anexo_GL '!$B$9:$N$1882,6,FALSE) -> 2333.09138 | L162: =VLOOKUP(C162,'Anexo_GL '!$B$9:$N$1882,7,FALSE) -> 14.06400507 | N162: =VLOOKUP(C162,'Anexo_GL '!$B$9:$N$1882,8,FALSE) -> Cumple | P162: =VLOOKUP(C162,'Anexo_GL '!$B$9:$N$1882,10,FALSE) -> 702.28263 | Q162: =VLOOKUP(C162,'Anexo_GL '!$B$9:$N$1882,11,FALSE) -> 495.61261 | R162: =VLOOKUP(C162,'Anexo_GL '!$B$9:$N$1882,12,FALSE) -> 206.67002 | S162: =VLOOKUP(C162,'Anexo_GL '!$B$9:$N$1882,13,FALSE) -> Cumple
A163: 020701 : MP DE CARLOS FERMIN FITZCARRALD | B163: 136 | C163: 020701 | D163: ANCASH | E163: MP DE CARLOS FERMIN FITZCARRALD | F163: =VLOOKUP(C163,'Anexo_GL '!$B$9:$N$1882,4,FALSE) -> 3430.68951 | H163: =VLOOKUP(C163,'Anexo_GL '!$B$9:$N$1882,5,FALSE) -> 10719.40675 | I163: =VLOOKUP(C163,'Anexo_GL '!$B$9:$N$1882,6,FALSE) -> 13818.47123 | L163: =VLOOKUP(C163,'Anexo_GL '!$B$9:$N$1882,7,FALSE) -> 24.82683832 | N163: =VLOOKUP(C163,'Anexo_GL '!$B$9:$N$1882,8,FALSE) -> Cumple | P163: =VLOOKUP(C163,'Anexo_GL '!$B$9:$N$1882,10,FALSE) -> 5355.95869 | Q163: =VLOOKUP(C163,'Anexo_GL '!$B$9:$N$1882,11,FALSE) -> 4059.59329 | R163: =VLOOKUP(C163,'Anexo_GL '!$B$9:$N$1882,12,FALSE) -> 1296.3654 | S163: =VLOOKUP(C163,'Anexo_GL '!$B$9:$N$1882,13,FALSE) -> Cumple
A164: 020702 : MD DE SAN NICOLAS | B164: 137 | C164: 020702 | D164: ANCASH | E164: MD DE SAN NICOLAS | F164: =VLOOKUP(C164,'Anexo_GL '!$B$9:$N$1882,4,FALSE) -> 43.9387 | H164: =VLOOKUP(C164,'Anexo_GL '!$B$9:$N$1882,5,FALSE) -> 2776.366445 | I164: =VLOOKUP(C164,'Anexo_GL '!$B$9:$N$1882,6,FALSE) -> 4020.68893 | L164: =VLOOKUP(C164,'Anexo_GL '!$B$9:$N$1882,7,FALSE) -> 1.092815206 | N164: =VLOOKUP(C164,'Anexo_GL '!$B$9:$N$1882,8,FALSE) -> Cumple | P164: =VLOOKUP(C164,'Anexo_GL '!$B$9:$N$1882,10,FALSE) -> 1285.98899 | Q164: =VLOOKUP(C164,'Anexo_GL '!$B$9:$N$1882,11,FALSE) -> 775.10594 | R164: =VLOOKUP(C164,'Anexo_GL '!$B$9:$N$1882,12,FALSE) -> 510.88305 | S164: =VLOOKUP(C164,'Anexo_GL '!$B$9:$N$1882,13,FALSE) -> Cumple
A165: 020703 : MD DE YAUYA | B165: 138 | C165: 020703 | D165: ANCASH | E165: MD DE YAUYA | F165: =VLOOKUP(C165,'Anexo_GL '!$B$9:$N$1882,4,FALSE) -> 365.77286 | H165: =VLOOKUP(C165,'Anexo_GL '!$B$9:$N$1882,5,FALSE) -> 3990.632595 | I165: =VLOOKUP(C165,'Anexo_GL '!$B$9:$N$1882,6,FALSE) -> 5928.16487 | L165: =VLOOKUP(C165,'Anexo_GL '!$B$9:$N$1882,7,FALSE) -> 6.170085819 | N165: =VLOOKUP(C165,'Anexo_GL '!$B$9:$N$1882,8,FALSE) -> Cumple | P165: =VLOOKUP(C165,'Anexo_GL '!$B$9:$N$1882,10,FALSE) -> 1985.78735 | Q165: =VLOOKUP(C165,'Anexo_GL '!$B$9:$N$1882,11,FALSE) -> 1573.76256 | R165: =VLOOKUP(C165,'Anexo_GL '!$B$9:$N$1882,12,FALSE) -> 412.02479 | S165: =VLOOKUP(C165,'Anexo_GL '!$B$9:$N$1882,13,FALSE) -> Cumple
A166: 020801 : MP DE CASMA | B166: 139 | C166: 020801 | D166: ANCASH | E166: MP DE CASMA | F166: =VLOOKUP(C166,'Anexo_GL '!$B$9:$N$1882,4,FALSE) -> 5315.67202 | H166: =VLOOKUP(C166,'Anexo_GL '!$B$9:$N$1882,5,FALSE) -> 14744.9821 | I166: =VLOOKUP(C166,'Anexo_GL '!$B$9:$N$1882,6,FALSE) -> 17529.22744 | L166: =VLOOKUP(C166,'Anexo_GL '!$B$9:$N$1882,7,FALSE) -> 30.32462234 | N166: =VLOOKUP(C166,'Anexo_GL '!$B$9:$N$1882,8,FALSE) -> Cumple | P166: =VLOOKUP(C166,'Anexo_GL '!$B$9:$N$1882,10,FALSE) -> 7454.48737 | Q166: =VLOOKUP(C166,'Anexo_GL '!$B$9:$N$1882,11,FALSE) -> 7927.22143 | R166: =VLOOKUP(C166,'Anexo_GL '!$B$9:$N$1882,12,FALSE) -> -472.73406 | S166: =VLOOKUP(C166,'Anexo_GL '!$B$9:$N$1882,13,FALSE) -> No Cumple
A167: 020802 : MD DE BUENA VISTA ALTA | B167: 140 | C167: 020802 | D167: ANCASH | E167: MD DE BUENA VISTA ALTA | F167: =VLOOKUP(C167,'Anexo_GL '!$B$9:$N$1882,4,FALSE) -> 621.88023 | H167: =VLOOKUP(C167,'Anexo_GL '!$B$9:$N$1882,5,FALSE) -> 2697.833973 | I167: =VLOOKUP(C167,'Anexo_GL '!$B$9:$N$1882,6,FALSE) -> 3690.82616 | L167: =VLOOKUP(C167,'Anexo_GL '!$B$9:$N$1882,7,FALSE) -> 16.84935034 | N167: =VLOOKUP(C167,'Anexo_GL '!$B$9:$N$1882,8,FALSE) -> Cumple | P167: =VLOOKUP(C167,'Anexo_GL '!$B$9:$N$1882,10,FALSE) -> 1060.31839 | Q167: =VLOOKUP(C167,'Anexo_GL '!$B$9:$N$1882,11,FALSE) -> 840.14059 | R167: =VLOOKUP(C167,'Anexo_GL '!$B$9:$N$1882,12,FALSE) -> 220.1778 | S167: =VLOOKUP(C167,'Anexo_GL '!$B$9:$N$1882,13,FALSE) -> Cumple
A168: 020803 : MD DE COMANDANTE NOEL | B168: 141 | C168: 020803 | D168: ANCASH | E168: MD DE COMANDANTE NOEL | F168: =VLOOKUP(C168,'Anexo_GL '!$B$9:$N$1882,4,FALSE) -> 352.66778 | H168: =VLOOKUP(C168,'Anexo_GL '!$B$9:$N$1882,5,FALSE) -> 1923.025085 | I168: =VLOOKUP(C168,'Anexo_GL '!$B$9:$N$1882,6,FALSE) -> 2255.0766 | L168: =VLOOKUP(C168,'Anexo_GL '!$B$9:$N$1882,7,FALSE) -> 15.63883817 | N168: =VLOOKUP(C168,'Anexo_GL '!$B$9:$N$1882,8,FALSE) -> Cumple | P168: =VLOOKUP(C168,'Anexo_GL '!$B$9:$N$1882,10,FALSE) -> 858.07335 | Q168: =VLOOKUP(C168,'Anexo_GL '!$B$9:$N$1882,11,FALSE) -> 847.34363 | R168: =VLOOKUP(C168,'Anexo_GL '!$B$9:$N$1882,12,FALSE) -> 10.72972 | S168: =VLOOKUP(C168,'Anexo_GL '!$B$9:$N$1882,13,FALSE) -> Cumple
A169: 020804 : MD DE YAUTAN | B169: 142 | C169: 020804 | D169: ANCASH | E169: MD DE YAUTAN | F169: =VLOOKUP(C169,'Anexo_GL '!$B$9:$N$1882,4,FALSE) -> 640.09579 | H169: =VLOOKUP(C169,'Anexo_GL '!$B$9:$N$1882,5,FALSE) -> 3315.751112 | I169: =VLOOKUP(C169,'Anexo_GL '!$B$9:$N$1882,6,FALSE) -> 5118.61422 | L169: =VLOOKUP(C169,'Anexo_GL '!$B$9:$N$1882,7,FALSE) -> 12.50525557 | N169: =VLOOKUP(C169,'Anexo_GL '!$B$9:$N$1882,8,FALSE) -> Cumple | P169: =VLOOKUP(C169,'Anexo_GL '!$B$9:$N$1882,10,FALSE) -> 1699.55032 | Q169: =VLOOKUP(C169,'Anexo_GL '!$B$9:$N$1882,11,FALSE) -> 1069.07403 | R169: =VLOOKUP(C169,'Anexo_GL '!$B$9:$N$1882,12,FALSE) -> 630.47629 | S169: =VLOOKUP(C169,'Anexo_GL '!$B$9:$N$1882,13,FALSE) -> Cumple
A170: 020901 : MP DE CORONGO | B170: 143 | C170: 020901 | D170: ANCASH | E170: MP DE CORONGO | F170: =VLOOKUP(C170,'Anexo_GL '!$B$9:$N$1882,4,FALSE) -> 190.91109 | H170: =VLOOKUP(C170,'Anexo_GL '!$B$9:$N$1882,5,FALSE) -> 2202.308228 | I170: =VLOOKUP(C170,'Anexo_GL '!$B$9:$N$1882,6,FALSE) -> 879.91157 | L170: =VLOOKUP(C170,'Anexo_GL '!$B$9:$N$1882,7,FALSE) -> 8.668681687 | N170: =VLOOKUP(C170,'Anexo_GL '!$B$9:$N$1882,8,FALSE) -> Cumple | P170: =VLOOKUP(C170,'Anexo_GL '!$B$9:$N$1882,10,FALSE) -> 642.36361 | Q170: =VLOOKUP(C170,'Anexo_GL '!$B$9:$N$1882,11,FALSE) -> 568.75575 | R170: =VLOOKUP(C170,'Anexo_GL '!$B$9:$N$1882,12,FALSE) -> 73.60786 | S170: =VLOOKUP(C170,'Anexo_GL '!$B$9:$N$1882,13,FALSE) -> Cumple
A171: 020902 : MD DE ACO | B171: 144 | C171: 020902 | D171: ANCASH | E171: MD DE ACO | F171: =VLOOKUP(C171,'Anexo_GL '!$B$9:$N$1882,4,FALSE) -> 245.25317 | H171: =VLOOKUP(C171,'Anexo_GL '!$B$9:$N$1882,5,FALSE) -> 636.998475 | I171: =VLOOKUP(C171,'Anexo_GL '!$B$9:$N$1882,6,FALSE) -> 489.86425 | L171: =VLOOKUP(C171,'Anexo_GL '!$B$9:$N$1882,7,FALSE) -> 38.50137475 | N171: =VLOOKUP(C171,'Anexo_GL '!$B$9:$N$1882,8,FALSE) -> Cumple | P171: =VLOOKUP(C171,'Anexo_GL '!$B$9:$N$1882,10,FALSE) -> 313.94357 | Q171: =VLOOKUP(C171,'Anexo_GL '!$B$9:$N$1882,11,FALSE) -> 205.9099 | R171: =VLOOKUP(C171,'Anexo_GL '!$B$9:$N$1882,12,FALSE) -> 108.03367 | S171: =VLOOKUP(C171,'Anexo_GL '!$B$9:$N$1882,13,FALSE) -> Cumple
A172: 020903 : MD DE BAMBAS | B172: 145 | C172: 020903 | D172: ANCASH | E172: MD DE BAMBAS | F172: =VLOOKUP(C172,'Anexo_GL '!$B$9:$N$1882,4,FALSE) -> 19.10507 | H172: =VLOOKUP(C172,'Anexo_GL '!$B$9:$N$1882,5,FALSE) -> 689.992205 | I172: =VLOOKUP(C172,'Anexo_GL '!$B$9:$N$1882,6,FALSE) -> 600.00081 | L172: =VLOOKUP(C172,'Anexo_GL '!$B$9:$N$1882,7,FALSE) -> 2.768882005 | N172: =VLOOKUP(C172,'Anexo_GL '!$B$9:$N$1882,8,FALSE) -> Cumple | P172: =VLOOKUP(C172,'Anexo_GL '!$B$9:$N$1882,10,FALSE) -> 364.03765 | Q172: =VLOOKUP(C172,'Anexo_GL '!$B$9:$N$1882,11,FALSE) -> 249.70155 | R172: =VLOOKUP(C172,'Anexo_GL '!$B$9:$N$1882,12,FALSE) -> 114.3361 | S172: =VLOOKUP(C172,'Anexo_GL '!$B$9:$N$1882,13,FALSE) -> Cumple
A173: 020904 : MD DE CUSCA | B173: 146 | C173: 020904 | D173: ANCASH | E173: MD DE CUSCA | F173: =VLOOKUP(C173,'Anexo_GL '!$B$9:$N$1882,4,FALSE) -> 177.34693 | H173: =VLOOKUP(C173,'Anexo_GL '!$B$9:$N$1882,5,FALSE) -> 2208.671342 | I173: =VLOOKUP(C173,'Anexo_GL '!$B$9:$N$1882,6,FALSE) -> 2519.96482 | L173: =VLOOKUP(C173,'Anexo_GL '!$B$9:$N$1882,7,FALSE) -> 7.037674835 | N173: =VLOOKUP(C173,'Anexo_GL '!$B$9:$N$1882,8,FALSE) -> Cumple | P173: =VLOOKUP(C173,'Anexo_GL '!$B$9:$N$1882,10,FALSE) -> 712.13136 | Q173: =VLOOKUP(C173,'Anexo_GL '!$B$9:$N$1882,11,FALSE) -> 611.33685 | R173: =VLOOKUP(C173,'Anexo_GL '!$B$9:$N$1882,12,FALSE) -> 100.79451 | S173: =VLOOKUP(C173,'Anexo_GL '!$B$9:$N$1882,13,FALSE) -> Cumple
A174: 020905 : MD DE LA PAMPA | B174: 147 | C174: 020905 | D174: ANCASH | E174: MD DE LA PAMPA | F174: =VLOOKUP(C174,'Anexo_GL '!$B$9:$N$1882,4,FALSE) -> 430.84545 | H174: =VLOOKUP(C174,'Anexo_GL '!$B$9:$N$1882,5,FALSE) -> 767.4201125 | I174: =VLOOKUP(C174,'Anexo_GL '!$B$9:$N$1882,6,FALSE) -> 558.11651 | L174: =VLOOKUP(C174,'Anexo_GL '!$B$9:$N$1882,7,FALSE) -> 56.1420587 | N174: =VLOOKUP(C174,'Anexo_GL '!$B$9:$N$1882,8,FALSE) -> Cumple | P174: =VLOOKUP(C174,'Anexo_GL '!$B$9:$N$1882,10,FALSE) -> 296.42158 | Q174: =VLOOKUP(C174,'Anexo_GL '!$B$9:$N$1882,11,FALSE) -> 210.57528 | R174: =VLOOKUP(C174,'Anexo_GL '!$B$9:$N$1882,12,FALSE) -> 85.8463 | S174: =VLOOKUP(C174,'Anexo_GL '!$B$9:$N$1882,13,FALSE) -> Cumple
A175: 020906 : MD DE YANAC | B175: 148 | C175: 020906 | D175: ANCASH | E175: MD DE YANAC | F175: =VLOOKUP(C175,'Anexo_GL '!$B$9:$N$1882,4,FALSE) -> 372.72209 | H175: =VLOOKUP(C175,'Anexo_GL '!$B$9:$N$1882,5,FALSE) -> 700.1225325 | I175: =VLOOKUP(C175,'Anexo_GL '!$B$9:$N$1882,6,FALSE) -> 479.38718 | L175: =VLOOKUP(C175,'Anexo_GL '!$B$9:$N$1882,7,FALSE) -> 53.23669396 | N175: =VLOOKUP(C175,'Anexo_GL '!$B$9:$N$1882,8,FALSE) -> Cumple | P175: =VLOOKUP(C175,'Anexo_GL '!$B$9:$N$1882,10,FALSE) -> 337.80335 | Q175: =VLOOKUP(C175,'Anexo_GL '!$B$9:$N$1882,11,FALSE) -> 285.09108 | R175: =VLOOKUP(C175,'Anexo_GL '!$B$9:$N$1882,12,FALSE) -> 52.71227 | S175: =VLOOKUP(C175,'Anexo_GL '!$B$9:$N$1882,13,FALSE) -> Cumple
A176: 020907 : MD DE YUPAN | B176: 149 | C176: 020907 | D176: ANCASH | E176: MD DE YUPAN | F176: =VLOOKUP(C176,'Anexo_GL '!$B$9:$N$1882,4,FALSE) -> 98.93906 | H176: =VLOOKUP(C176,'Anexo_GL '!$B$9:$N$1882,5,FALSE) -> 579.4543875 | I176: =VLOOKUP(C176,'Anexo_GL '!$B$9:$N$1882,6,FALSE) -> 413.45893 | L176: =VLOOKUP(C176,'Anexo_GL '!$B$9:$N$1882,7,FALSE) -> 17.07452081 | N176: =VLOOKUP(C176,'Anexo_GL '!$B$9:$N$1882,8,FALSE) -> Cumple | P176: =VLOOKUP(C176,'Anexo_GL '!$B$9:$N$1882,10,FALSE) -> 282.74751 | Q176: =VLOOKUP(C176,'Anexo_GL '!$B$9:$N$1882,11,FALSE) -> 170.78031 | R176: =VLOOKUP(C176,'Anexo_GL '!$B$9:$N$1882,12,FALSE) -> 111.9672 | S176: =VLOOKUP(C176,'Anexo_GL '!$B$9:$N$1882,13,FALSE) -> Cumple
A177: 021001 : MP DE HUARI | B177: 150 | C177: 021001 | D177: ANCASH | E177: MP DE HUARI | F177: =VLOOKUP(C177,'Anexo_GL '!$B$9:$N$1882,4,FALSE) -> 8925.47723 | H177: =VLOOKUP(C177,'Anexo_GL '!$B$9:$N$1882,5,FALSE) -> 22205.83406 | I177: =VLOOKUP(C177,'Anexo_GL '!$B$9:$N$1882,6,FALSE) -> 51184.25685 | L177: =VLOOKUP(C177,'Anexo_GL '!$B$9:$N$1882,7,FALSE) -> 17.43793459 | N177: =VLOOKUP(C177,'Anexo_GL '!$B$9:$N$1882,8,FALSE) -> Cumple | P177: =VLOOKUP(C177,'Anexo_GL '!$B$9:$N$1882,10,FALSE) -> 9764.34295 | Q177: =VLOOKUP(C177,'Anexo_GL '!$B$9:$N$1882,11,FALSE) -> 3664.52364 | R177: =VLOOKUP(C177,'Anexo_GL '!$B$9:$N$1882,12,FALSE) -> 6099.81931 | S177: =VLOOKUP(C177,'Anexo_GL '!$B$9:$N$1882,13,FALSE) -> Cumple
A178: 021002 : MD DE ANRA | B178: 151 | C178: 021002 | D178: ANCASH | E178: MD DE ANRA | F178: =VLOOKUP(C178,'Anexo_GL '!$B$9:$N$1882,4,FALSE) -> 800.94798 | H178: =VLOOKUP(C178,'Anexo_GL '!$B$9:$N$1882,5,FALSE) -> 3747.356465 | I178: =VLOOKUP(C178,'Anexo_GL '!$B$9:$N$1882,6,FALSE) -> 11067.0251 | L178: =VLOOKUP(C178,'Anexo_GL '!$B$9:$N$1882,7,FALSE) -> 7.237247343 | N178: =VLOOKUP(C178,'Anexo_GL '!$B$9:$N$1882,8,FALSE) -> Cumple | P178: =VLOOKUP(C178,'Anexo_GL '!$B$9:$N$1882,10,FALSE) -> 1583.17731 | Q178: =VLOOKUP(C178,'Anexo_GL '!$B$9:$N$1882,11,FALSE) -> 859.32104 | R178: =VLOOKUP(C178,'Anexo_GL '!$B$9:$N$1882,12,FALSE) -> 723.85627 | S178: =VLOOKUP(C178,'Anexo_GL '!$B$9:$N$1882,13,FALSE) -> Cumple
A179: 021003 : MD DE CAJAY | B179: 152 | C179: 021003 | D179: ANCASH | E179: MD DE CAJAY | F179: =VLOOKUP(C179,'Anexo_GL '!$B$9:$N$1882,4,FALSE) -> 654.52423 | H179: =VLOOKUP(C179,'Anexo_GL '!$B$9:$N$1882,5,FALSE) -> 5981.875783 | I179: =VLOOKUP(C179,'Anexo_GL '!$B$9:$N$1882,6,FALSE) -> 18723.1223 | L179: =VLOOKUP(C179,'Anexo_GL '!$B$9:$N$1882,7,FALSE) -> 3.495807054 | N179: =VLOOKUP(C179,'Anexo_GL '!$B$9:$N$1882,8,FALSE) -> Cumple | P179: =VLOOKUP(C179,'Anexo_GL '!$B$9:$N$1882,10,FALSE) -> 2634.01839 | Q179: =VLOOKUP(C179,'Anexo_GL '!$B$9:$N$1882,11,FALSE) -> 1247.73323 | R179: =VLOOKUP(C179,'Anexo_GL '!$B$9:$N$1882,12,FALSE) -> 1386.28516 | S179: =VLOOKUP(C179,'Anexo_GL '!$B$9:$N$1882,13,FALSE) -> Cumple
A180: 021004 : MD DE CHAVIN DE HUANTAR | B180: 153 | C180: 021004 | D180: ANCASH | E180: MD DE CHAVIN DE HUANTAR | F180: =VLOOKUP(C180,'Anexo_GL '!$B$9:$N$1882,4,FALSE) -> 4353.75247 | H180: =VLOOKUP(C180,'Anexo_GL '!$B$9:$N$1882,5,FALSE) -> 19168.11524 | I180: =VLOOKUP(C180,'Anexo_GL '!$B$9:$N$1882,6,FALSE) -> 61882.32792 | L180: =VLOOKUP(C180,'Anexo_GL '!$B$9:$N$1882,7,FALSE) -> 7.035534403 | N180: =VLOOKUP(C180,'Anexo_GL '!$B$9:$N$1882,8,FALSE) -> Cumple | P180: =VLOOKUP(C180,'Anexo_GL '!$B$9:$N$1882,10,FALSE) -> 8781.14554 | Q180: =VLOOKUP(C180,'Anexo_GL '!$B$9:$N$1882,11,FALSE) -> 3691.41298 | R180: =VLOOKUP(C180,'Anexo_GL '!$B$9:$N$1882,12,FALSE) -> 5089.73256 | S180: =VLOOKUP(C180,'Anexo_GL '!$B$9:$N$1882,13,FALSE) -> Cumple
A181: 021005 : MD DE HUACACHI | B181: 154 | C181: 021005 | D181: ANCASH | E181: MD DE HUACACHI | F181: =VLOOKUP(C181,'Anexo_GL '!$B$9:$N$1882,4,FALSE) -> 907.59755 | H181: =VLOOKUP(C181,'Anexo_GL '!$B$9:$N$1882,5,FALSE) -> 4115.317057 | I181: =VLOOKUP(C181,'Anexo_GL '!$B$9:$N$1882,6,FALSE) -> 12820.17206 | L181: =VLOOKUP(C181,'Anexo_GL '!$B$9:$N$1882,7,FALSE) -> 7.079449057 | N181: =VLOOKUP(C181,'Anexo_GL '!$B$9:$N$1882,8,FALSE) -> Cumple | P181: =VLOOKUP(C181,'Anexo_GL '!$B$9:$N$1882,10,FALSE) -> 1794.64626 | Q181: =VLOOKUP(C181,'Anexo_GL '!$B$9:$N$1882,11,FALSE) -> 739.97777 | R181: =VLOOKUP(C181,'Anexo_GL '!$B$9:$N$1882,12,FALSE) -> 1054.66849 | S181: =VLOOKUP(C181,'Anexo_GL '!$B$9:$N$1882,13,FALSE) -> Cumple
A182: 021006 : MD DE HUACCHIS | B182: 155 | C182: 021006 | D182: ANCASH | E182: MD DE HUACCHIS | F182: =VLOOKUP(C182,'Anexo_GL '!$B$9:$N$1882,4,FALSE) -> 635.74404 | H182: =VLOOKUP(C182,'Anexo_GL '!$B$9:$N$1882,5,FALSE) -> 4352.930365 | I182: =VLOOKUP(C182,'Anexo_GL '!$B$9:$N$1882,6,FALSE) -> 13395.23019 | L182: =VLOOKUP(C182,'Anexo_GL '!$B$9:$N$1882,7,FALSE) -> 4.746047892 | N182: =VLOOKUP(C182,'Anexo_GL '!$B$9:$N$1882,8,FALSE) -> Cumple | P182: =VLOOKUP(C182,'Anexo_GL '!$B$9:$N$1882,10,FALSE) -> 1950.15657 | Q182: =VLOOKUP(C182,'Anexo_GL '!$B$9:$N$1882,11,FALSE) -> 1481.07867 | R182: =VLOOKUP(C182,'Anexo_GL '!$B$9:$N$1882,12,FALSE) -> 469.0779 | S182: =VLOOKUP(C182,'Anexo_GL '!$B$9:$N$1882,13,FALSE) -> Cumple
A183: 021007 : MD DE HUACHIS | B183: 156 | C183: 021007 | D183: ANCASH | E183: MD DE HUACHIS | F183: =VLOOKUP(C183,'Anexo_GL '!$B$9:$N$1882,4,FALSE) -> 8603.6464 | H183: =VLOOKUP(C183,'Anexo_GL '!$B$9:$N$1882,5,FALSE) -> 8872.695322 | I183: =VLOOKUP(C183,'Anexo_GL '!$B$9:$N$1882,6,FALSE) -> 27416.44628 | L183: =VLOOKUP(C183,'Anexo_GL '!$B$9:$N$1882,7,FALSE) -> 31.38133335 | N183: =VLOOKUP(C183,'Anexo_GL '!$B$9:$N$1882,8,FALSE) -> Cumple | P183: =VLOOKUP(C183,'Anexo_GL '!$B$9:$N$1882,10,FALSE) -> 3856.78675 | Q183: =VLOOKUP(C183,'Anexo_GL '!$B$9:$N$1882,11,FALSE) -> 1887.33605 | R183: =VLOOKUP(C183,'Anexo_GL '!$B$9:$N$1882,12,FALSE) -> 1969.4507 | S183: =VLOOKUP(C183,'Anexo_GL '!$B$9:$N$1882,13,FALSE) -> Cumple
A184: 021008 : MD DE HUANTAR | B184: 157 | C184: 021008 | D184: ANCASH | E184: MD DE HUANTAR | F184: =VLOOKUP(C184,'Anexo_GL '!$B$9:$N$1882,4,FALSE) -> 4131.80288 | H184: =VLOOKUP(C184,'Anexo_GL '!$B$9:$N$1882,5,FALSE) -> 5382.908043 | I184: =VLOOKUP(C184,'Anexo_GL '!$B$9:$N$1882,6,FALSE) -> 17684.23848 | L184: =VLOOKUP(C184,'Anexo_GL '!$B$9:$N$1882,7,FALSE) -> 23.36432459 | N184: =VLOOKUP(C184,'Anexo_GL '!$B$9:$N$1882,8,FALSE) -> Cumple | P184: =VLOOKUP(C184,'Anexo_GL '!$B$9:$N$1882,10,FALSE) -> 2494.50672 | Q184: =VLOOKUP(C184,'Anexo_GL '!$B$9:$N$1882,11,FALSE) -> 850.53765 | R184: =VLOOKUP(C184,'Anexo_GL '!$B$9:$N$1882,12,FALSE) -> 1643.96907 | S184: =VLOOKUP(C184,'Anexo_GL '!$B$9:$N$1882,13,FALSE) -> Cumple
A185: 021009 : MD DE MASIN | B185: 158 | C185: 021009 | D185: ANCASH | E185: MD DE MASIN | F185: =VLOOKUP(C185,'Anexo_GL '!$B$9:$N$1882,4,FALSE) -> 319.29444 | H185: =VLOOKUP(C185,'Anexo_GL '!$B$9:$N$1882,5,FALSE) -> 3587.730917 | I185: =VLOOKUP(C185,'Anexo_GL '!$B$9:$N$1882,6,FALSE) -> 11556.21119 | L185: =VLOOKUP(C185,'Anexo_GL '!$B$9:$N$1882,7,FALSE) -> 2.762968197 | N185: =VLOOKUP(C185,'Anexo_GL '!$B$9:$N$1882,8,FALSE) -> Cumple | P185: =VLOOKUP(C185,'Anexo_GL '!$B$9:$N$1882,10,FALSE) -> 732.98084 | Q185: =VLOOKUP(C185,'Anexo_GL '!$B$9:$N$1882,11,FALSE) -> 597.58046 | R185: =VLOOKUP(C185,'Anexo_GL '!$B$9:$N$1882,12,FALSE) -> 135.40038 | S185: =VLOOKUP(C185,'Anexo_GL '!$B$9:$N$1882,13,FALSE) -> Cumple
A186: 021010 : MD DE PAUCAS | B186: 159 | C186: 021010 | D186: ANCASH | E186: MD DE PAUCAS | F186: =VLOOKUP(C186,'Anexo_GL '!$B$9:$N$1882,4,FALSE) -> 146.83813 | H186: =VLOOKUP(C186,'Anexo_GL '!$B$9:$N$1882,5,FALSE) -> 4280.058765 | I186: =VLOOKUP(C186,'Anexo_GL '!$B$9:$N$1882,6,FALSE) -> 13255.5815 | L186: =VLOOKUP(C186,'Anexo_GL '!$B$9:$N$1882,7,FALSE) -> 1.107745669 | N186: =VLOOKUP(C186,'Anexo_GL '!$B$9:$N$1882,8,FALSE) -> Cumple | P186: =VLOOKUP(C186,'Anexo_GL '!$B$9:$N$1882,10,FALSE) -> 1914.36427 | Q186: =VLOOKUP(C186,'Anexo_GL '!$B$9:$N$1882,11,FALSE) -> 889.74643 | R186: =VLOOKUP(C186,'Anexo_GL '!$B$9:$N$1882,12,FALSE) -> 1024.61784 | S186: =VLOOKUP(C186,'Anexo_GL '!$B$9:$N$1882,13,FALSE) -> Cumple
A187: 021011 : MD DE PONTO | B187: 160 | C187: 021011 | D187: ANCASH | E187: MD DE PONTO | F187: =VLOOKUP(C187,'Anexo_GL '!$B$9:$N$1882,4,FALSE) -> 535.32177 | H187: =VLOOKUP(C187,'Anexo_GL '!$B$9:$N$1882,5,FALSE) -> 8145.076947 | I187: =VLOOKUP(C187,'Anexo_GL '!$B$9:$N$1882,6,FALSE) -> 25922.16688 | L187: =VLOOKUP(C187,'Anexo_GL '!$B$9:$N$1882,7,FALSE) -> 2.065111966 | N187: =VLOOKUP(C187,'Anexo_GL '!$B$9:$N$1882,8,FALSE) -> Cumple | P187: =VLOOKUP(C187,'Anexo_GL '!$B$9:$N$1882,10,FALSE) -> 3600.44456 | Q187: =VLOOKUP(C187,'Anexo_GL '!$B$9:$N$1882,11,FALSE) -> 1067.95553 | R187: =VLOOKUP(C187,'Anexo_GL '!$B$9:$N$1882,12,FALSE) -> 2532.48903 | S187: =VLOOKUP(C187,'Anexo_GL '!$B$9:$N$1882,13,FALSE) -> Cumple
A188: 021012 : MD DE RAHUAPAMPA | B188: 161 | C188: 021012 | D188: ANCASH | E188: MD DE RAHUAPAMPA | F188: =VLOOKUP(C188,'Anexo_GL '!$B$9:$N$1882,4,FALSE) -> 617.42483 | H188: =VLOOKUP(C188,'Anexo_GL '!$B$9:$N$1882,5,FALSE) -> 1614.827748 | I188: =VLOOKUP(C188,'Anexo_GL '!$B$9:$N$1882,6,FALSE) -> 3861.94346 | L188: =VLOOKUP(C188,'Anexo_GL '!$B$9:$N$1882,7,FALSE) -> 15.98741246 | N188: =VLOOKUP(C188,'Anexo_GL '!$B$9:$N$1882,8,FALSE) -> Cumple | P188: =VLOOKUP(C188,'Anexo_GL '!$B$9:$N$1882,10,FALSE) -> 739.92889 | Q188: =VLOOKUP(C188,'Anexo_GL '!$B$9:$N$1882,11,FALSE) -> 327.39107 | R188: =VLOOKUP(C188,'Anexo_GL '!$B$9:$N$1882,12,FALSE) -> 412.53782 | S188: =VLOOKUP(C188,'Anexo_GL '!$B$9:$N$1882,13,FALSE) -> Cumple
A189: 021013 : MD DE RAPAYAN | B189: 162 | C189: 021013 | D189: ANCASH | E189: MD DE RAPAYAN | F189: =VLOOKUP(C189,'Anexo_GL '!$B$9:$N$1882,4,FALSE) -> 316.08874 | H189: =VLOOKUP(C189,'Anexo_GL '!$B$9:$N$1882,5,FALSE) -> 4283.10744 | I189: =VLOOKUP(C189,'Anexo_GL '!$B$9:$N$1882,6,FALSE) -> 13349.53881 | L189: =VLOOKUP(C189,'Anexo_GL '!$B$9:$N$1882,7,FALSE) -> 2.367787715 | N189: =VLOOKUP(C189,'Anexo_GL '!$B$9:$N$1882,8,FALSE) -> Cumple | P189: =VLOOKUP(C189,'Anexo_GL '!$B$9:$N$1882,10,FALSE) -> 1953.25925 | Q189: =VLOOKUP(C189,'Anexo_GL '!$B$9:$N$1882,11,FALSE) -> 1919.39989 | R189: =VLOOKUP(C189,'Anexo_GL '!$B$9:$N$1882,12,FALSE) -> 33.85936 | S189: =VLOOKUP(C189,'Anexo_GL '!$B$9:$N$1882,13,FALSE) -> Cumple
A190: 021014 : MD DE SAN MARCOS | B190: 163 | C190: 021014 | D190: ANCASH | E190: MD DE SAN MARCOS | F190: =VLOOKUP(C190,'Anexo_GL '!$B$9:$N$1882,4,FALSE) -> 9083.05786 | H190: =VLOOKUP(C190,'Anexo_GL '!$B$9:$N$1882,5,FALSE) -> 83483.64055 | I190: =VLOOKUP(C190,'Anexo_GL '!$B$9:$N$1882,6,FALSE) -> 284042.0894 | L190: =VLOOKUP(C190,'Anexo_GL '!$B$9:$N$1882,7,FALSE) -> 3.197785891 | N190: =VLOOKUP(C190,'Anexo_GL '!$B$9:$N$1882,8,FALSE) -> Cumple | P190: =VLOOKUP(C190,'Anexo_GL '!$B$9:$N$1882,10,FALSE) -> 56378.47499 | Q190: =VLOOKUP(C190,'Anexo_GL '!$B$9:$N$1882,11,FALSE) -> 7709.9491 | R190: =VLOOKUP(C190,'Anexo_GL '!$B$9:$N$1882,12,FALSE) -> 48668.52589 | S190: =VLOOKUP(C190,'Anexo_GL '!$B$9:$N$1882,13,FALSE) -> Cumple
A191: 021015 : MD DE SAN PEDRO DE CHANA | B191: 164 | C191: 021015 | D191: ANCASH | E191: MD DE SAN PEDRO DE CHANA | F191: =VLOOKUP(C191,'Anexo_GL '!$B$9:$N$1882,4,FALSE) -> 261.81825 | H191: =VLOOKUP(C191,'Anexo_GL '!$B$9:$N$1882,5,FALSE) -> 7370.346867 | I191: =VLOOKUP(C191,'Anexo_GL '!$B$9:$N$1882,6,FALSE) -> 21208.84503 | L191: =VLOOKUP(C191,'Anexo_GL '!$B$9:$N$1882,7,FALSE) -> 1.234476699 | N191: =VLOOKUP(C191,'Anexo_GL '!$B$9:$N$1882,8,FALSE) -> Cumple | P191: =VLOOKUP(C191,'Anexo_GL '!$B$9:$N$1882,10,FALSE) -> 3122.89692 | Q191: =VLOOKUP(C191,'Anexo_GL '!$B$9:$N$1882,11,FALSE) -> 1072.05729 | R191: =VLOOKUP(C191,'Anexo_GL '!$B$9:$N$1882,12,FALSE) -> 2050.83963 | S191: =VLOOKUP(C191,'Anexo_GL '!$B$9:$N$1882,13,FALSE) -> Cumple
A192: 021016 : MD DE UCO | B192: 165 | C192: 021016 | D192: ANCASH | E192: MD DE UCO | F192: =VLOOKUP(C192,'Anexo_GL '!$B$9:$N$1882,4,FALSE) -> 270.83453 | H192: =VLOOKUP(C192,'Anexo_GL '!$B$9:$N$1882,5,FALSE) -> 3377.962203 | I192: =VLOOKUP(C192,'Anexo_GL '!$B$9:$N$1882,6,FALSE) -> 10866.57469 | L192: =VLOOKUP(C192,'Anexo_GL '!$B$9:$N$1882,7,FALSE) -> 2.492363396 | N192: =VLOOKUP(C192,'Anexo_GL '!$B$9:$N$1882,8,FALSE) -> Cumple | P192: =VLOOKUP(C192,'Anexo_GL '!$B$9:$N$1882,10,FALSE) -> 692.10704 | Q192: =VLOOKUP(C192,'Anexo_GL '!$B$9:$N$1882,11,FALSE) -> 504.89711 | R192: =VLOOKUP(C192,'Anexo_GL '!$B$9:$N$1882,12,FALSE) -> 187.20993 | S192: =VLOOKUP(C192,'Anexo_GL '!$B$9:$N$1882,13,FALSE) -> Cumple
A193: 021101 : MP DE HUARMEY | B193: 166 | C193: 021101 | D193: ANCASH | E193: MP DE HUARMEY | F193: =VLOOKUP(C193,'Anexo_GL '!$B$9:$N$1882,4,FALSE) -> 25615.58292 | H193: =VLOOKUP(C193,'Anexo_GL '!$B$9:$N$1882,5,FALSE) -> 15180.38751 | I193: =VLOOKUP(C193,'Anexo_GL '!$B$9:$N$1882,6,FALSE) -> 15346.77702 | L193: =VLOOKUP(C193,'Anexo_GL '!$B$9:$N$1882,7,FALSE) -> 166.9118075 | N193: =VLOOKUP(C193,'Anexo_GL '!$B$9:$N$1882,8,FALSE) -> No Cumple | P193: =VLOOKUP(C193,'Anexo_GL '!$B$9:$N$1882,10,FALSE) -> 7320.69034 | Q193: =VLOOKUP(C193,'Anexo_GL '!$B$9:$N$1882,11,FALSE) -> 4692.76513 | R193: =VLOOKUP(C193,'Anexo_GL '!$B$9:$N$1882,12,FALSE) -> 2627.92521 | S193: =VLOOKUP(C193,'Anexo_GL '!$B$9:$N$1882,13,FALSE) -> Cumple
A194: 021102 : MD DE COCHAPETI | B194: 167 | C194: 021102 | D194: ANCASH | E194: MD DE COCHAPETI | F194: =VLOOKUP(C194,'Anexo_GL '!$B$9:$N$1882,4,FALSE) -> 9.04412 | H194: =VLOOKUP(C194,'Anexo_GL '!$B$9:$N$1882,5,FALSE) -> 750.0946525 | I194: =VLOOKUP(C194,'Anexo_GL '!$B$9:$N$1882,6,FALSE) -> 842.30999 | L194: =VLOOKUP(C194,'Anexo_GL '!$B$9:$N$1882,7,FALSE) -> 1.073728213 | N194: =VLOOKUP(C194,'Anexo_GL '!$B$9:$N$1882,8,FALSE) -> Cumple | P194: =VLOOKUP(C194,'Anexo_GL '!$B$9:$N$1882,10,FALSE) -> 320.41 | Q194: =VLOOKUP(C194,'Anexo_GL '!$B$9:$N$1882,11,FALSE) -> 219.85 | R194: =VLOOKUP(C194,'Anexo_GL '!$B$9:$N$1882,12,FALSE) -> 100.56 | S194: =VLOOKUP(C194,'Anexo_GL '!$B$9:$N$1882,13,FALSE) -> Cumple
A195: 021103 : MD DE CULEBRAS | B195: 168 | C195: 021103 | D195: ANCASH | E195: MD DE CULEBRAS | F195: =VLOOKUP(C195,'Anexo_GL '!$B$9:$N$1882,4,FALSE) -> 4690.67803 | H195: =VLOOKUP(C195,'Anexo_GL '!$B$9:$N$1882,5,FALSE) -> 2334.501362 | I195: =VLOOKUP(C195,'Anexo_GL '!$B$9:$N$1882,6,FALSE) -> 4774.25868 | L195: =VLOOKUP(C195,'Anexo_GL '!$B$9:$N$1882,7,FALSE) -> 98.24934811 | N195: =VLOOKUP(C195,'Anexo_GL '!$B$9:$N$1882,8,FALSE) -> Cumple | P195: =VLOOKUP(C195,'Anexo_GL '!$B$9:$N$1882,10,FALSE) -> 871.12213 | Q195: =VLOOKUP(C195,'Anexo_GL '!$B$9:$N$1882,11,FALSE) -> 496.57996 | R195: =VLOOKUP(C195,'Anexo_GL '!$B$9:$N$1882,12,FALSE) -> 374.54217 | S195: =VLOOKUP(C195,'Anexo_GL '!$B$9:$N$1882,13,FALSE) -> Cumple
A196: 021104 : MD DE HUAYAN | B196: 169 | C196: 021104 | D196: ANCASH | E196: MD DE HUAYAN | F196: =VLOOKUP(C196,'Anexo_GL '!$B$9:$N$1882,4,FALSE) -> 35.39465 | H196: =VLOOKUP(C196,'Anexo_GL '!$B$9:$N$1882,5,FALSE) -> 793.403885 | I196: =VLOOKUP(C196,'Anexo_GL '!$B$9:$N$1882,6,FALSE) -> 1046.45725 | L196: =VLOOKUP(C196,'Anexo_GL '!$B$9:$N$1882,7,FALSE) -> 3.382331194 | N196: =VLOOKUP(C196,'Anexo_GL '!$B$9:$N$1882,8,FALSE) -> Cumple | P196: =VLOOKUP(C196,'Anexo_GL '!$B$9:$N$1882,10,FALSE) -> 357.26679 | Q196: =VLOOKUP(C196,'Anexo_GL '!$B$9:$N$1882,11,FALSE) -> 328.64724 | R196: =VLOOKUP(C196,'Anexo_GL '!$B$9:$N$1882,12,FALSE) -> 28.61955 | S196: =VLOOKUP(C196,'Anexo_GL '!$B$9:$N$1882,13,FALSE) -> Cumple
A197: 021105 : MD DE MALVAS | B197: 170 | C197: 021105 | D197: ANCASH | E197: MD DE MALVAS | F197: =VLOOKUP(C197,'Anexo_GL '!$B$9:$N$1882,4,FALSE) -> 291.52171 | H197: =VLOOKUP(C197,'Anexo_GL '!$B$9:$N$1882,5,FALSE) -> 824.0461 | I197: =VLOOKUP(C197,'Anexo_GL '!$B$9:$N$1882,6,FALSE) -> 878.37221 | L197: =VLOOKUP(C197,'Anexo_GL '!$B$9:$N$1882,7,FALSE) -> 33.18885851 | N197: =VLOOKUP(C197,'Anexo_GL '!$B$9:$N$1882,8,FALSE) -> Cumple | P197: =VLOOKUP(C197,'Anexo_GL '!$B$9:$N$1882,10,FALSE) -> 328.66634 | Q197: =VLOOKUP(C197,'Anexo_GL '!$B$9:$N$1882,11,FALSE) -> 144.43578 | R197: =VLOOKUP(C197,'Anexo_GL '!$B$9:$N$1882,12,FALSE) -> 184.23056 | S197: =VLOOKUP(C197,'Anexo_GL '!$B$9:$N$1882,13,FALSE) -> Cumple
A198: 021201 : MP DE HUAYLAS - CARAZ | B198: 171 | C198: 021201 | D198: ANCASH | E198: MP DE HUAYLAS - CARAZ | F198: =VLOOKUP(C198,'Anexo_GL '!$B$9:$N$1882,4,FALSE) -> 1371.70586 | H198: =VLOOKUP(C198,'Anexo_GL '!$B$9:$N$1882,5,FALSE) -> 17042.57094 | I198: =VLOOKUP(C198,'Anexo_GL '!$B$9:$N$1882,6,FALSE) -> 18632.5657 | L198: =VLOOKUP(C198,'Anexo_GL '!$B$9:$N$1882,7,FALSE) -> 7.361873196 | N198: =VLOOKUP(C198,'Anexo_GL '!$B$9:$N$1882,8,FALSE) -> Cumple | P198: =VLOOKUP(C198,'Anexo_GL '!$B$9:$N$1882,10,FALSE) -> 7608.69618 | Q198: =VLOOKUP(C198,'Anexo_GL '!$B$9:$N$1882,11,FALSE) -> 4090.65626 | R198: =VLOOKUP(C198,'Anexo_GL '!$B$9:$N$1882,12,FALSE) -> 3518.03992 | S198: =VLOOKUP(C198,'Anexo_GL '!$B$9:$N$1882,13,FALSE) -> Cumple
A199: 021202 : MD DE HUALLANCA | B199: 172 | C199: 021202 | D199: ANCASH | E199: MD DE HUALLANCA | F199: =VLOOKUP(C199,'Anexo_GL '!$B$9:$N$1882,4,FALSE) -> 303.411 | H199: =VLOOKUP(C199,'Anexo_GL '!$B$9:$N$1882,5,FALSE) -> 3060.033787 | I199: =VLOOKUP(C199,'Anexo_GL '!$B$9:$N$1882,6,FALSE) -> 4066.86511 | L199: =VLOOKUP(C199,'Anexo_GL '!$B$9:$N$1882,7,FALSE) -> 7.460562172 | N199: =VLOOKUP(C199,'Anexo_GL '!$B$9:$N$1882,8,FALSE) -> Cumple | P199: =VLOOKUP(C199,'Anexo_GL '!$B$9:$N$1882,10,FALSE) -> 1912.30045 | Q199: =VLOOKUP(C199,'Anexo_GL '!$B$9:$N$1882,11,FALSE) -> 413.38775 | R199: =VLOOKUP(C199,'Anexo_GL '!$B$9:$N$1882,12,FALSE) -> 1498.9127 | S199: =VLOOKUP(C199,'Anexo_GL '!$B$9:$N$1882,13,FALSE) -> Cumple
A200: 021203 : MD DE HUATA | B200: 173 | C200: 021203 | D200: ANCASH | E200: MD DE HUATA | F200: =VLOOKUP(C200,'Anexo_GL '!$B$9:$N$1882,4,FALSE) -> 267.09388 | H200: =VLOOKUP(C200,'Anexo_GL '!$B$9:$N$1882,5,FALSE) -> 1159.022232 | I200: =VLOOKUP(C200,'Anexo_GL '!$B$9:$N$1882,6,FALSE) -> 1632.22981 | L200: =VLOOKUP(C200,'Anexo_GL '!$B$9:$N$1882,7,FALSE) -> 16.36374231 | N200: =VLOOKUP(C200,'Anexo_GL '!$B$9:$N$1882,8,FALSE) -> Cumple | P200: =VLOOKUP(C200,'Anexo_GL '!$B$9:$N$1882,10,FALSE) -> 523.33203 | Q200: =VLOOKUP(C200,'Anexo_GL '!$B$9:$N$1882,11,FALSE) -> 253.84197 | R200: =VLOOKUP(C200,'Anexo_GL '!$B$9:$N$1882,12,FALSE) -> 269.49006 | S200: =VLOOKUP(C200,'Anexo_GL '!$B$9:$N$1882,13,FALSE) -> Cumple
... 1701 more rows

Sheet Anexo_GR
B1: Anexo N° 2: Seguimiento al Cumplimiento de las Reglas Fiscales Subnacionales 2T2018
B2: Gobiernos Regionales
B5: N° | C5: UBIGEO | D5: Gobiernos Regional | E5: R1: Regla Fiscal de Saldo de Deuda Total | K5: R2: Regla Fiscal de Ahorro en Cuenta Corriente
E6: 2T2018 | K6: 2T2018
E7: S/ Miles | H7: SDT/Prom. ICT IIIT2014-IIT2018 % | I7: Cumple R1 | K7: S/ Miles | N7: Cumple R2
E8: Saldo de Deuda Total | F8: Prom. ICT IIIT2014-IIT2018 | G8: Límite Ley N° 29230 1/ | K8: Ingreso Corriente Total | L8: Gasto Corriente Total | M8: Ahorro en Cuenta Corriente
B9: 1 | C9: 010000 | D9: AMAZONAS | E9: 412749.3512 | F9: 516868.6145 | G9: 4.56198 | H9: 79.85575825 | I9: Cumple | K9: 296636.0159 | L9: 284681.1594 | M9: 11954.85642 | N9: Cumple
B10: 2 | C10: 020000 | D10: ANCASH | E10: 405725.8513 | F10: 1216363.946 | G10: 324314.3632 | H10: 33.35562951 | I10: Cumple | K10: 648584.8031 | L10: 629794.1857 | M10: 18790.61733 | N10: Cumple
B11: 3 | C11: 030000 | D11: APURIMAC | E11: 532001.8872 | F11: 658509.4012 | G11: 64571.57428 | H11: 80.7888067 | I11: Cumple | K11: 363131.9571 | L11: 335732.6117 | M11: 27399.34545 | N11: Cumple
B12: 4 | C12: 040000 | D12: AREQUIPA | E12: 1252563.996 | F12: 1174412.895 | G12: 243356.3318 | H12: 106.6544826 | I12: No Cumple | K12: 650761.1919 | L12: 571127.5942 | M12: 79633.59774 | N12: Cumple
B13: 5 | C13: 050000 | D13: AYACUCHO | E13: 547355.6087 | F13: 939117.391 | G13: 78543.27508 | H13: 58.28404563 | I13: Cumple | K13: 528333.0969 | L13: 480782.302 | M13: 47550.79496 | N13: Cumple
B14: 6 | C14: 060000 | D14: CAJAMARCA | E14: 1355475.987 | F14: 1469225.621 | G14: 136385.8685 | H14: 92.25785121 | I14: Cumple | K14: 790117.5274 | L14: 768283.2745 | M14: 21834.25285 | N14: Cumple
B15: 7 | C15: 070000 | D15: CALLAO | E15: 531067.4 | F15: 900685.6945 | G15: 683824.6884 | H15: 58.96256633 | I15: Cumple | K15: 493801.9919 | L15: 425696.0035 | M15: 68105.98834 | N15: Cumple
B16: 8 | C16: 080000 | D16: CUSCO | E16: 1033630.1 | F16: 1564399.775 | G16: 880874.3049 | H16: 66.07199236 | I16: Cumple | K16: 837518.0666 | L16: 644959.4189 | M16: 192558.6478 | N16: Cumple
B17: 9 | C17: 090000 | D17: HUANCAVELICA | E17: 219249.5946 | F17: 696926.0649 | G17: 93945.67433 | H17: 31.45951997 | I17: Cumple | K17: 380612.483 | L17: 352644.0882 | M17: 27968.39476 | N17: Cumple
B18: 10 | C18: 100000 | D18: HUANUCO | E18: 214573.9647 | F18: 759539.4211 | G18: 2148.02378 | H18: 28.25053693 | I18: Cumple | K18: 429414.8432 | L18: 408716.4791 | M18: 20698.36413 | N18: Cumple
B19: 11 | C19: 110000 | D19: ICA | E19: 220792.9684 | F19: 786346.2311 | G19: 111349.0152 | H19: 28.07834001 | I19: Cumple | K19: 424183.3318 | L19: 393399.9815 | M19: 30783.35033 | N19: Cumple
B20: 12 | C20: 120000 | D20: JUNIN | E20: 643817.113 | F20: 1201509.958 | G20: 44458.64268 | H20: 53.58400144 | I20: Cumple | K20: 689436.8368 | L20: 647130.9845 | M20: 42305.85231 | N20: Cumple
B21: 13 | C21: 130000 | D21: LA LIBERTAD | E21: 1438180.833 | F21: 1468828.7 | G21: 163627.1163 | H21: 97.91344852 | I21: Cumple | K21: 837355.5258 | L21: 758250.8786 | M21: 79104.64716 | N21: Cumple
B22: 14 | C22: 140000 | D22: LAMBAYEQUE | E22: 429580.7308 | F22: 885881.7622 | G22: 7.75708 | H22: 48.4918811 | I22: Cumple | K22: 495953.5764 | L22: 456703.6422 | M22: 39249.9342 | N22: Cumple
B23: 15 | C23: 150000 | D23: LIMA | E23: 175967.0006 | F23: 989316.1687 | G23: 123361.3261 | H23: 17.78673049 | I23: Cumple | K23: 517103.9793 | L23: 522284.4456 | M23: -5180.46634 | N23: No Cumple
B24: 16 | C24: 160000 | D24: LORETO | E24: 476398.9165 | F24: 1201934.89 | G24: 68078.28517 | H24: 39.63600028 | I24: Cumple | K24: 730048.1294 | L24: 686755.3609 | M24: 43292.76855 | N24: Cumple
B25: 17 | C25: 170000 | D25: MADRE DE DIOS | E25: 118354.2397 | F25: 193221.3102 | G25: 461.36884 | H25: 61.25320212 | I25: Cumple | K25: 105966.1962 | L25: 102055.5288 | M25: 3910.66733 | N25: Cumple
B26: 18 | C26: 180000 | D26: MOQUEGUA | E26: 372658.6443 | F26: 289298.1467 | G26: 90747.22613 | H26: 128.8147361 | I26: No Cumple | K26: 148059.8077 | L26: 140379.9433 | M26: 7679.86431 | N26: Cumple
B27: 19 | C27: 190000 | D27: PASCO | E27: 254762.8073 | F27: 344834.972 | G27: 28508.24556 | H27: 73.87963171 | I27: Cumple | K27: 192242.9171 | L27: 182396.9512 | M27: 9845.96589 | N27: Cumple
B28: 20 | C28: 200000 | D28: PIURA | E28: 1366156.284 | F28: 1445535.595 | G28: 195954.8462 | H28: 94.50865751 | I28: Cumple | K28: 801216.8436 | L28: 736346.7646 | M28: 64870.07892 | N28: Cumple
B29: 21 | C29: 210000 | D29: PUNO | E29: 1190500.784 | F29: 1267250.948 | G29: 66805.87353 | H29: 93.9435702 | I29: Cumple | K29: 695340.1033 | L29: 668822.8689 | M29: 26517.23442 | N29: Cumple
B30: 22 | C30: 220000 | D30: SAN MARTIN | E30: 542563.781 | F30: 878212.5557 | G30: 1198.14807 | H30: 61.78046276 | I30: Cumple | K30: 492647.632 | L30: 432946.203 | M30: 59701.42903 | N30: Cumple
B31: 23 | C31: 230000 | D31: TACNA | E31: 323159.2302 | F31: 405306.2592 | G31: 89307.64346 | H31: 79.73210944 | I31: Cumple | K31: 212495.9148 | L31: 192437.4846 | M31: 20058.4302 | N31: Cumple
B32: 24 | C32: 240000 | D32: TUMBES | E32: 182179.4165 | F32: 366414.5027 | G32: 72768.68037 | H32: 49.71948849 | I32: Cumple | K32: 197826.2058 | L32: 182938.4169 | M32: 14887.78895 | N32: Cumple
B33: 25 | C33: 250000 | D33: UCAYALI | E33: 334167.1936 | F33: 540559.7849 | G33: 51203.07898 | H33: 61.81872993 | I33: Cumple | K33: 336279.5794 | L33: 306272.8606 | M33: 30006.71882 | N33: Cumple
B34: 26 | C34: 260000 | D34: MM LIMA | E34: 2932.59987 | F34: 21517.37254 | G34: 7106.95294 | H34: 13.62898683 | I34: Cumple | K34: 6980.02859 | L34: 6023.8384 | M34: 956.19019 | N34: Cumple
B36: TOTAL | E36: =+SUM(E9:E34) -> 14576566.28 | G36: =+SUM(G9:G34) -> 3622912.873 | K36: =+SUM(K9:K34) -> 12302048.58 | L36: =+SUM(L9:L34) -> 11317563.27 | M36: =+SUM(M9:M34) -> 984485.314
B38: 1/ Corresponde a la suma de los flujos transferidos por concepto de Recursos Determinados provenientes de Canon, Sobrecanon, Regalías, Renta de Aduanas y Participaciones de los años 2016 y 2017, más el tope presupuestal por el mismo concepto incluido en el Presupuesto Institucional de Apertura 2018, aprobado mediante Ley N° 30693 – Ley de Presupuesto del Sector Público para el Año Fiscal 2018, informado a través de Memorando N° 179-2018-EF/50.03 por la Dirección General de Política de Presupuesto Público del Ministerio de Economía y Finanzas.
B39: Nota: En el caso de saldo de pasivos la información disponible es al 1er Trimestre 2018, deuda exigible a junio 2018 y deuda real a abril 2018.
B40: Fuente: SICON-MEF, SIAF-MEF, SUNAT, SBS y AFP.

Sheet Anexo_GL
A1: Anexo N° 2: Seguimiento al Cumplimiento de las Reglas Fiscales Subnacionales 2T2018
A2: Gobiernos Locales
A5: N° | B5: Ubigeo | C5: Departamento | D5: Municipalidad | E5: R1: Regla Fiscal de Saldo de Deuda Total | K5: R2: Regla Fiscal de Ahorro en Cuenta Corriente
E6: 2T2018 | K6: 2T2018
E7: S/ Miles | H7: SDT/Prom. ICT IIIT2014-IIT2018 ó SDT/ Lím Ley N° 29230 ó SDT/ ICT 2018 % | I7: Cumple R1 | K7: S/ Miles | N7: Cumple R2
E8: Saldo de Deuda Total | F8: Prom. ICT IIIT2014-IIT2018 ó ICT 2018 | G8: Límite Ley N° 29230 1/ | K8: Ingreso Corriente Total | L8: Gasto Corriente Total | M8: Ahorro en Cuenta Corriente
A9: 1 | B9: 010101 | C9: AMAZONAS | D9: MUNICIPALIDAD PROVINCIAL DE CHACHAPOYAS | E9: 2628.33293 | F9: 14041.66114 | G9: 0.93111 | H9: 18.71810539 | I9: Cumple | K9: 7088.89285 | L9: 5274.33761 | M9: 1814.55524 | N9: Cumple
A10: 2 | B10: 010102 | C10: AMAZONAS | D10: MUNICIPALIDAD DISTRITAL DE ASUNCION | E10: 44.98163 | F10: 693.3305475 | G10: 0.00032 | H10: 6.487761164 | I10: Cumple | K10: 215.85564 | L10: 213.37429 | M10: 2.48135 | N10: Cumple
A11: 3 | B11: 010103 | C11: AMAZONAS | D11: MUNICIPALIDAD DISTRITAL DE BALSAS | E11: 8.61174 | F11: 669.4000825 | G11: 0.02982 | H11: 1.286486247 | I11: Cumple | K11: 419.11824 | L11: 165.56178 | M11: 253.55646 | N11: Cumple
A12: 4 | B12: 010104 | C12: AMAZONAS | D12: MUNICIPALIDAD DISTRITAL DE CHETO | E12: 208.57645 | F12: 490.7131925 | G12: 0.00075 | H12: 42.50475699 | I12: Cumple | K12: 234.79965 | L12: 129.86704 | M12: 104.93261 | N12: Cumple
A13: 5 | B13: 010105 | C13: AMAZONAS | D13: MUNICIPALIDAD DISTRITAL DE CHILIQUIN | E13: 9.36822 | F13: 831.7046875 | G13: 0.0008 | H13: 1.126387784 | I13: Cumple | K13: 233.80182 | L13: 130.31821 | M13: 103.48361 | N13: Cumple
A14: 6 | B14: 010106 | C14: AMAZONAS | D14: MUNICIPALIDAD DISTRITAL DE CHUQUIBAMBA | E14: 159.6409 | F14: 583.28581 | G14: 0.00138 | H14: 27.36924116 | I14: Cumple | K14: 263.19026 | L14: 237.86468 | M14: 25.32558 | N14: Cumple
A15: 7 | B15: 010107 | C15: AMAZONAS | D15: MUNICIPALIDAD DISTRITAL DE GRANADA | E15: 244.40624 | F15: 554.949855 | G15: 0.0004 | H15: 44.04113954 | I15: Cumple | K15: 245.69872 | L15: 205.25411 | M15: 40.44461 | N15: Cumple
A16: 8 | B16: 010108 | C16: AMAZONAS | D16: MUNICIPALIDAD DISTRITAL DE HUANCAS | E16: 129.64614 | F16: 721.3720525 | G16: 0.00155 | H16: 17.97216007 | I16: Cumple | K16: 336.98263 | L16: 234.8089 | M16: 102.17373 | N16: Cumple
A17: 9 | B17: 010109 | C17: AMAZONAS | D17: MUNICIPALIDAD DISTRITAL DE JALCA GRANDE | E17: 17.35097 | F17: 1242.155137 | G17: 0.97817 | H17: 1.39684404 | I17: Cumple | K17: 614.32016 | L17: 362.9568 | M17: 251.36336 | N17: Cumple
A18: 10 | B18: 010110 | C18: AMAZONAS | D18: MUNICIPALIDAD DISTRITAL DE LEIMEBAMBA | E18: 106.86096 | F18: 991.27949 | G18: 0.00213 | H18: 10.780104 | I18: Cumple | K18: 501.337 | L18: 335.91606 | M18: 165.42094 | N18: Cumple
A19: 11 | B19: 010111 | C19: AMAZONAS | D19: MUNICIPALIDAD DISTRITAL DE LEVANTO | E19: 27.53634 | F19: 702.140895 | G19: 0.00106 | H19: 3.921768437 | I19: Cumple | K19: 273.49035 | L19: 230.7913 | M19: 42.69905 | N19: Cumple
A20: 12 | B20: 010112 | C20: AMAZONAS | D20: MUNICIPALIDAD DISTRITAL DE MAGDALENA | E20: 21.8642 | F20: 671.0857025 | G20: 0.00098 | H20: 3.258033947 | I20: Cumple | K20: 245.89523 | L20: 242.51285 | M20: 3.38238 | N20: Cumple
A21: 13 | B21: 010113 | C21: AMAZONAS | D21: MUNICIPALIDAD DISTRITAL DE MARISCAL CASTILLA | E21: 13.0493 | F21: 606.6565875 | G21: 0.00044 | H21: 2.151019254 | I21: Cumple | K21: 253.59826 | L21: 109.71954 | M21: 143.87872 | N21: Cumple
A22: 14 | B22: 010114 | C22: AMAZONAS | D22: MUNICIPALIDAD DISTRITAL DE MOLINOPAMPA | E22: 55.24168 | F22: 947.2887575 | G22: 0.00231 | H22: 5.831556594 | I22: Cumple | K22: 577.21533 | L22: 266.09919 | M22: 311.11614 | N22: Cumple
A23: 15 | B23: 010115 | C23: AMAZONAS | D23: MUNICIPALIDAD DISTRITAL DE MONTEVIDEO | E23: 15.45755 | F23: 545.9117925 | G23: 0.00074 | H23: 2.83151055 | I23: Cumple | K23: 249.04212 | L23: 209.6764 | M23: 39.36572 | N23: Cumple
A24: 16 | B24: 010116 | C24: AMAZONAS | D24: MUNICIPALIDAD DISTRITAL DE OLLEROS | E24: 331.27592 | F24: 527.4611575 | G24: 0.00036 | H24: 62.80574698 | I24: Cumple | K24: 236.58962 | L24: 163.13783 | M24: 73.45179 | N24: Cumple
A25: 17 | B25: 010117 | C25: AMAZONAS | D25: MUNICIPALIDAD DISTRITAL DE QUINJALCA | E25: 50.84225 | F25: 568.658355 | G25: 0.0009 | H25: 8.940737361 | I25: Cumple | K25: 289.42755 | L25: 120.549 | M25: 168.87855 | N25: Cumple
A26: 18 | B26: 010118 | C26: AMAZONAS | D26: MUNICIPALIDAD DISTRITAL DE SAN FRANCISCO DE DAGUAS | E26: 47.35381 | F26: 549.143075 | G26: 0.00034 | H26: 8.623219004 | I26: Cumple | K26: 244.19845 | L26: 122.70346 | M26: 121.49499 | N26: Cumple
A27: 19 | B27: 010119 | C27: AMAZONAS | D27: MUNICIPALIDAD DISTRITAL DE SAN ISIDRO DE MAYNO | E27: 17.06291 | F27: 511.3299875 | G27: 0.00088 | H27: 3.336966424 | I27: Cumple | K27: 269.01577 | L27: 102.10258 | M27: 166.91319 | N27: Cumple
A28: 20 | B28: 010120 | C28: AMAZONAS | D28: MUNICIPALIDAD DISTRITAL DE SOLOCO | E28: 933.1806 | F28: 892.15255 | G28: 0.00084 | H28: 104.5987707 | I28: No Cumple | K28: 266.47122 | L28: 132.5765 | M28: 133.89472 | N28: Cumple
A29: 21 | B29: 010121 | C29: AMAZONAS | D29: MUNICIPALIDAD DISTRITAL DE SONCHE | E29: 17.55418 | F29: 467.093525 | G29: 0.00022 | H29: 3.758172413 | I29: Cumple | K29: 228.59031 | L29: 120.61823 | M29: 107.97208 | N29: Cumple
A30: 22 | B30: 010201 | C30: AMAZONAS | D30: MUNICIPALIDAD PROVINCIAL DE BAGUA - LA PECA | E30: 1226.21239 | F30: 11842.5577 | G30: 0.79891 | H30: 10.35428681 | I30: Cumple | K30: 6270.07408 | L30: 4973.50648 | M30: 1296.5676 | N30: Cumple
A31: 23 | B31: 010202 | C31: AMAZONAS | D31: MUNICIPALIDAD DISTRITAL DE ARAMANGO | E31: 1031.92653 | F31: 3780.197648 | G31: 1.10553 | H31: 27.29821629 | I31: Cumple | K31: 1898.88526 | L31: 1062.65556 | M31: 836.2297 | N31: Cumple
A32: 24 | B32: 010203 | C32: AMAZONAS | D32: MUNICIPALIDAD DISTRITAL DE COPALLIN | E32: 398.35887 | F32: 1905.33045 | G32: 0.00088 | H32: 20.90760004 | I32: Cumple | K32: 1003.88377 | L32: 867.81751 | M32: 136.06626 | N32: Cumple
A33: 25 | B33: 010204 | C33: AMAZONAS | D33: MUNICIPALIDAD DISTRITAL DE EL PARCO | E33: 124.14113 | F33: 655.9308075 | G33: 0.00023 | H33: 18.92594898 | I33: Cumple | K33: 312.48318 | L33: 277.21169 | M33: 35.27149 | N33: Cumple
A34: 26 | B34: 010205 | C34: AMAZONAS | D34: MUNICIPALIDAD DISTRITAL DE IMAZA | E34: 6435.92796 | F34: 8081.602818 | G34: 2.1932 | H34: 79.63677633 | I34: Cumple | K34: 4457.57185 | L34: 2255.71618 | M34: 2201.85567 | N34: Cumple
A35: 27 | B35: 010206 | C35: AMAZONAS | D35: MUNICIPALIDAD DISTRITAL DE LA PECA | E35: 114.29337 | F35: 2206.427067 | G35: 0.00127 | H35: 5.1800203 | I35: Cumple | K35: 1154.86732 | L35: 755.44119 | M35: 399.42613 | N35: Cumple
A36: 28 | B36: 010301 | C36: AMAZONAS | D36: MUNICIPALIDAD PROVINCIAL DE BONGARA - JUMBILLA | E36: 1668.35319 | F36: 3138.213195 | G36: 0.00029 | H36: 53.16251913 | I36: Cumple | K36: 1515.17291 | L36: 973.46897 | M36: 541.70394 | N36: Cumple
A37: 29 | B37: 010302 | C37: AMAZONAS | D37: MUNICIPALIDAD DISTRITAL DE CHISQUILLA | E37: 21.35196 | F37: 1006.885702 | G37: 2e-05 | H37: 2.120594219 | I37: Cumple | K37: 221.8053 | L37: 286.49759 | M37: -64.69229 | N37: No Cumple
A38: 30 | B38: 010303 | C38: AMAZONAS | D38: MUNICIPALIDAD DISTRITAL DE CHURUJA | E38: 6.88126 | F38: 3631.87939 | G38: 2e-05 | H38: 0.1894682962 | I38: Cumple | K38: 244.40024 | L38: 154.26468 | M38: 90.13556 | N38: Cumple
A39: 31 | B39: 010304 | C39: AMAZONAS | D39: MUNICIPALIDAD DISTRITAL DE COROSHA | E39: 42.5049 | F39: 720.1897575 | G39: 0.00018 | H39: 5.901902875 | I39: Cumple | K39: 106.47804 | L39: 156.34806 | M39: -49.87002 | N39: No Cumple
A40: 32 | B40: 010305 | C40: AMAZONAS | D40: MUNICIPALIDAD DISTRITAL DE CUISPES | E40: 20.4596 | F40: 567.910055 | G40: 0.00012 | H40: 3.602612741 | I40: Cumple | K40: 284.83148 | L40: 125.70328 | M40: 159.1282 | N40: Cumple
A41: 33 | B41: 010306 | C41: AMAZONAS | D41: MUNICIPALIDAD DISTRITAL DE FLORIDA | E41: 273.25723 | F41: 1914.36955 | G41: 0.00122 | H41: 14.27400629 | I41: Cumple | K41: 960.58853 | L41: 837.45884 | M41: 123.12969 | N41: Cumple
A42: 34 | B42: 010307 | C42: AMAZONAS | D42: MUNICIPALIDAD DISTRITAL DE JAZAN | E42: 1086.47722 | F42: 2366.347078 | G42: 0.00078 | H42: 45.91368825 | I42: Cumple | K42: 1261.68817 | L42: 823.44634 | M42: 438.24183 | N42: Cumple
A43: 35 | B43: 010308 | C43: AMAZONAS | D43: MUNICIPALIDAD DISTRITAL DE RECTA | E43: 11.9162 | F43: 429.18529 | G43: 1e-05 | H43: 2.776469809 | I43: Cumple | K43: 217.10396 | L43: 115.7504 | M43: 101.35356 | N43: Cumple
A44: 36 | B44: 010309 | C44: AMAZONAS | D44: MUNICIPALIDAD DISTRITAL DE SAN CARLOS | E44: 68.71667 | F44: 1665.3887 | G44: 1e-05 | H44: 4.12616406 | I44: Cumple | K44: 210.99351 | L44: 131.69442 | M44: 79.29909 | N44: Cumple
A45: 37 | B45: 010310 | C45: AMAZONAS | D45: MUNICIPALIDAD DISTRITAL DE SHIPASBAMBA | E45: 13.01644 | F45: 753.01309 | G45: 0.00029 | H45: 1.72858084 | I45: Cumple | K45: 379.49585 | L45: 233.62187 | M45: 145.87398 | N45: Cumple
A46: 38 | B46: 010311 | C46: AMAZONAS | D46: MUNICIPALIDAD DISTRITAL DE VALERA | E46: 22.25288 | F46: 598.61904 | G46: 0.00021 | H46: 3.71736923 | I46: Cumple | K46: 311.2484 | L46: 184.24416 | M46: 127.00424 | N46: Cumple
A47: 39 | B47: 010312 | C47: AMAZONAS | D47: MUNICIPALIDAD DISTRITAL DE YAMBRASBAMBA | E47: 407.13243 | F47: 2488.200142 | G47: 0.00145 | H47: 16.3625274 | I47: Cumple | K47: 1228.71161 | L47: 810.06341 | M47: 418.6482 | N47: Cumple
A48: 40 | B48: 010401 | C48: AMAZONAS | D48: MUNICIPALIDAD PROVINCIAL DE CONDORCANQUI - NIEVA | E48: 1306.06279 | F48: 16552.32116 | G48: 2.38616 | H48: 7.890511412 | I48: Cumple | K48: 9256.19688 | L48: 5291.26161 | M48: 3964.93527 | N48: Cumple
A49: 41 | B49: 010402 | C49: AMAZONAS | D49: MUNICIPALIDAD DISTRITAL DE EL CENEPA | E49: 1140.39632 | F49: 4066.637915 | G49: 0.60467 | H49: 28.04273072 | I49: Cumple | K49: 2063.90369 | L49: 1498.19301 | M49: 565.71068 | N49: Cumple
A50: 42 | B50: 010403 | C50: AMAZONAS | D50: MUNICIPALIDAD DISTRITAL DE RIO SANTIAGO | E50: 2368.42343 | F50: 6927.47881 | G50: 1.03501 | H50: 34.18882244 | I50: Cumple | K50: 4574.99008 | L50: 2463.3963 | M50: 2111.59378 | N50: Cumple
A51: 43 | B51: 010501 | C51: AMAZONAS | D51: MUNICIPALIDAD PROVINCIAL DE LUYA - LAMUD | E51: 2316.46329 | F51: 6087.06507 | G51: 0.00021 | H51: 38.05550398 | I51: Cumple | K51: 3256.1599 | L51: 1221.40659 | M51: 2034.75331 | N51: Cumple
A52: 44 | B52: 010502 | C52: AMAZONAS | D52: MUNICIPALIDAD DISTRITAL DE CAMPORREDONDO | E52: 55.43512 | F52: 1987.869505 | G52: 0.00126 | H52: 2.788669974 | I52: Cumple | K52: 912.40052 | L52: 641.95013 | M52: 270.45039 | N52: Cumple
A53: 45 | B53: 010503 | C53: AMAZONAS | D53: MUNICIPALIDAD DISTRITAL DE COCABAMBA | E53: 597.52342 | F53: 952.44303 | G53: 0.00041 | H53: 62.73586988 | I53: Cumple | K53: 500.73897 | L53: 186.72086 | M53: 314.01811 | N53: Cumple
A54: 46 | B54: 010504 | C54: AMAZONAS | D54: MUNICIPALIDAD DISTRITAL DE COLCAMAR | E54: 217.84289 | F54: 689.32245 | G54: 0.00024 | H54: 31.60246558 | I54: Cumple | K54: 340.68858 | L54: 179.13715 | M54: 161.55143 | N54: Cumple
A55: 47 | B55: 010505 | C55: AMAZONAS | D55: MUNICIPALIDAD DISTRITAL DE CONILA | E55: 389.02572 | F55: 922.67554 | G55: 0.00032 | H55: 42.16278671 | I55: Cumple | K55: 337.65471 | L55: 261.90371 | M55: 75.751 | N55: Cumple
A56: 48 | B56: 010506 | C56: AMAZONAS | D56: MUNICIPALIDAD DISTRITAL DE INGUILPATA | E56: 36.79207 | F56: 552.5593175 | G56: 4e-05 | H56: 6.658483322 | I56: Cumple | K56: 242.46733 | L56: 129.40301 | M56: 113.06432 | N56: Cumple
A57: 49 | B57: 010507 | C57: AMAZONAS | D57: MUNICIPALIDAD DISTRITAL DE LONGUITA | E57: 188.17699 | F57: 597.371515 | G57: 0.00021 | H57: 31.50083077 | I57: Cumple | K57: 258.09202 | L57: 184.78788 | M57: 73.30414 | N57: Cumple
A58: 50 | B58: 010508 | C58: AMAZONAS | D58: MUNICIPALIDAD DISTRITAL DE LONYA CHICO | E58: 3.75973 | F58: 721.4358225 | G58: 8e-05 | H58: 0.521145455 | I58: Cumple | K58: 356.4821 | L58: 195.12227 | M58: 161.35983 | N58: Cumple
A59: 51 | B59: 010509 | C59: AMAZONAS | D59: MUNICIPALIDAD DISTRITAL DE LUYA | E59: 167.06604 | F59: 1253.782238 | G59: 0.00041 | H59: 13.32496466 | I59: Cumple | K59: 825.12473 | L59: 399.46635 | M59: 425.65838 | N59: Cumple
A60: 52 | B60: 010510 | C60: AMAZONAS | D60: MUNICIPALIDAD DISTRITAL DE LUYA VIEJO | E60: 47.04112 | F60: 496.69758 | G60: 6e-05 | H60: 9.470776967 | I60: Cumple | K60: 241.75956 | L60: 120.50008 | M60: 121.25948 | N60: Cumple
A61: 53 | B61: 010511 | C61: AMAZONAS | D61: MUNICIPALIDAD DISTRITAL DE MARIA | E61: 23.99311 | F61: 564.4197375 | G61: 6e-05 | H61: 4.250933907 | I61: Cumple | K61: 243.23363 | L61: 120.11408 | M61: 123.11955 | N61: Cumple
A62: 54 | B62: 010512 | C62: AMAZONAS | D62: MUNICIPALIDAD DISTRITAL DE OCALLI | E62: 107.40126 | F62: 1301.168802 | G62: 0.00082 | H62: 8.254214195 | I62: Cumple | K62: 677.09322 | L62: 344.61229 | M62: 332.48093 | N62: Cumple
A63: 55 | B63: 010513 | C63: AMAZONAS | D63: MUNICIPALIDAD DISTRITAL DE OCUMAL | E63: 73.16577 | F63: 1402.112655 | G63: 0.00078 | H63: 5.218251881 | I63: Cumple | K63: 724.25028 | L63: 332.03529 | M63: 392.21499 | N63: Cumple
A64: 56 | B64: 010514 | C64: AMAZONAS | D64: MUNICIPALIDAD DISTRITAL DE PIZUQUIA | E64: 929.17653 | F64: 2074.228627 | G64: 0.00095 | H64: 44.79624462 | I64: Cumple | K64: 1043.25627 | L64: 580.06083 | M64: 463.19544 | N64: Cumple
A65: 57 | B65: 010515 | C65: AMAZONAS | D65: MUNICIPALIDAD DISTRITAL DE PROVIDENCIA | E65: 100.71411 | F65: 623.1306325 | G65: 0.00023 | H65: 16.16259974 | I65: Cumple | K65: 266.99803 | L65: 253.91136 | M65: 13.08667 | N65: Cumple
A66: 58 | B66: 010516 | C66: AMAZONAS | D66: MUNICIPALIDAD DISTRITAL DE SAN CRISTOBAL DE OLTO | E66: 31.18566 | F66: 549.0248875 | G66: 0.00012 | H66: 5.680190591 | I66: Cumple | K66: 244.78539 | L66: 146.03757 | M66: 98.74782 | N66: Cumple
A67: 59 | B67: 010517 | C67: AMAZONAS | D67: MUNICIPALIDAD DISTRITAL DE SAN FRANCISCO DE YESO | E67: 287.57521 | F67: 520.653275 | G67: 0.00014 | H67: 55.23353522 | I67: Cumple | K67: 247.42551 | L67: 163.3427 | M67: 84.08281 | N67: Cumple
A68: 60 | B68: 010518 | C68: AMAZONAS | D68: MUNICIPALIDAD DISTRITAL DE SAN JERONIMO DE PACLAS | E68: 38.0043 | F68: 536.8402575 | G68: 0.00014 | H68: 7.079256719 | I68: Cumple | K68: 227.22231 | L68: 145.08285 | M68: 82.13946 | N68: Cumple
A69: 61 | B69: 010519 | C69: AMAZONAS | D69: MUNICIPALIDAD DISTRITAL DE SAN JUAN DE LOPECANCHA | E69: 75.66778 | F69: 650.002835 | G69: 8e-05 | H69: 11.64114615 | I69: Cumple | K69: 246.46983 | L69: 144.11131 | M69: 102.35852 | N69: Cumple
A70: 62 | B70: 010520 | C70: AMAZONAS | D70: MUNICIPALIDAD DISTRITAL DE SANTA CATALINA | E70: 49.8758 | F70: 803.84016 | G70: 0.00023 | H70: 6.204691241 | I70: Cumple | K70: 342.56467 | L70: 189.44089 | M70: 153.12378 | N70: Cumple
A71: 63 | B71: 010521 | C71: AMAZONAS | D71: MUNICIPALIDAD DISTRITAL DE SANTO TOMAS | E71: 68.32813 | F71: 1323.043272 | G71: 0.00057 | H71: 5.164466758 | I71: Cumple | K71: 641.41306 | L71: 436.22864 | M71: 205.18442 | N71: Cumple
A72: 64 | B72: 010522 | C72: AMAZONAS | D72: MUNICIPALIDAD DISTRITAL DE TINGO | E72: 33.83518 | F72: 577.68597 | G72: 0.00014 | H72: 5.857019515 | I72: Cumple | K72: 250.37397 | L72: 261.18074 | M72: -10.80677 | N72: No Cumple
A73: 65 | B73: 010523 | C73: AMAZONAS | D73: MUNICIPALIDAD DISTRITAL DE TRITA | E73: 11.70533 | F73: 506.1017825 | G73: 0.00021 | H73: 2.312841093 | I73: Cumple | K73: 244.57567 | L73: 156.11772 | M73: 88.45795 | N73: Cumple
A74: 66 | B74: 010601 | C74: AMAZONAS | D74: MUNICIPALIDAD PROVINCIAL DE RODRIGUEZ DE MENDOZA - SAN NICOLAS | E74: 5710.37363 | F74: 5696.385222 | G74: 0.00029 | H74: 100.2455664 | I74: No Cumple | K74: 1862.34473 | L74: 1470.67507 | M74: 391.66966 | N74: Cumple
A75: 67 | B75: 010602 | C75: AMAZONAS | D75: MUNICIPALIDAD DISTRITAL DE CHIRIMOTO | E75: 2094.32743 | F75: 900.40088 | G75: 0.00032 | H75: 232.5994428 | I75: No Cumple | K75: 347.83926 | L75: 269.16971 | M75: 78.66955 | N75: Cumple
A76: 68 | B76: 010603 | C76: AMAZONAS | D76: MUNICIPALIDAD DISTRITAL DE COCHAMAL | E76: 5.78632 | F76: 457.133605 | G76: 8e-05 | H76: 1.265783118 | I76: Cumple | K76: 240.95873 | L76: 139.89963 | M76: 101.0591 | N76: Cumple
A77: 69 | B77: 010604 | C77: AMAZONAS | D77: MUNICIPALIDAD DISTRITAL DE HUAMBO | E77: 167.56003 | F77: 719.320365 | G77: 0.00041 | H77: 23.29421467 | I77: Cumple | K77: 370.23128 | L77: 243.34281 | M77: 126.88847 | N77: Cumple
A78: 70 | B78: 010605 | C78: AMAZONAS | D78: MUNICIPALIDAD DISTRITAL DE LIMABAMBA | E78: 2207.95968 | F78: 964.1846825 | G78: 0.00049 | H78: 228.9975894 | I78: No Cumple | K78: 479.28549 | L78: 256.80498 | M78: 222.48051 | N78: Cumple
A79: 71 | B79: 010606 | C79: AMAZONAS | D79: MUNICIPALIDAD DISTRITAL DE LONGAR | E79: 85.53662 | F79: 546.77058 | G79: 0.00017 | H79: 15.64396899 | I79: Cumple | K79: 258.3075 | L79: 210.54613 | M79: 47.76137 | N79: Cumple
A80: 72 | B80: 010607 | C80: AMAZONAS | D80: MUNICIPALIDAD DISTRITAL DE MARISCAL BENAVIDES | E80: 797.92424 | F80: 1003.71195 | G80: 8e-05 | H80: 79.49733387 | I80: Cumple | K80: 274.64598 | L80: 164.55784 | M80: 110.08814 | N80: Cumple
A81: 73 | B81: 010608 | C81: AMAZONAS | D81: MUNICIPALIDAD DISTRITAL DE MILPUC | E81: 99.02723 | F81: 503.3148675 | G81: 0.0001 | H81: 19.67500592 | I81: Cumple | K81: 240.62976 | L81: 163.5375 | M81: 77.09226 | N81: Cumple
A82: 74 | B82: 010609 | C82: AMAZONAS | D82: MUNICIPALIDAD DISTRITAL DE OMIA | E82: 59.49447 | F82: 3952.503533 | G82: 0.0015 | H82: 1.505235087 | I82: Cumple | K82: 3087.87405 | L82: 1145.55022 | M82: 1942.32383 | N82: Cumple
A83: 75 | B83: 010610 | C83: AMAZONAS | D83: MUNICIPALIDAD DISTRITAL DE SANTA ROSA | E83: 87.53874 | F83: 509.7853 | G83: 6e-05 | H83: 17.17168777 | I83: Cumple | K83: 293.25976 | L83: 158.54743 | M83: 134.71233 | N83: Cumple
A84: 76 | B84: 010611 | C84: AMAZONAS | D84: MUNICIPALIDAD DISTRITAL DE TOTORA | E84: 83.5984 | F84: 554.2917875 | G84: 6e-05 | H84: 15.08202032 | I84: Cumple | K84: 258.97063 | L84: 128.54237 | M84: 130.42826 | N84: Cumple
A85: 77 | B85: 010612 | C85: AMAZONAS | D85: MUNICIPALIDAD DISTRITAL DE VISTA ALEGRE | E85: 618.3694 | F85: 1050.211715 | G85: 0.00061 | H85: 58.88045155 | I85: Cumple | K85: 290.15852 | L85: 207.42499 | M85: 82.73353 | N85: Cumple
A86: 78 | B86: 010701 | C86: AMAZONAS | D86: MUNICIPALIDAD PROVINCIA DE UTCUBAMBA - BAGUA GRANDE | E86: 3091.89543 | F86: 25820.08166 | G86: 0.98475 | H86: 11.97477015 | I86: Cumple | K86: 12641.15593 | L86: 5954.35917 | M86: 6686.79676 | N86: Cumple
A87: 79 | B87: 010702 | C87: AMAZONAS | D87: MUNICIPALIDAD DISTRITAL DE CAJARURO | E87: 1926.77812 | F87: 9718.152232 | G87: 0.79954 | H87: 19.82658919 | I87: Cumple | K87: 5237.61014 | L87: 2461.98413 | M87: 2775.62601 | N87: Cumple
A88: 80 | B88: 010703 | C88: AMAZONAS | D88: MUNICIPALIDAD DISTRITAL DE CUMBA | E88: 62.93849 | F88: 3205.72384 | G88: 0.00157 | H88: 1.963316029 | I88: Cumple | K88: 1571.55106 | L88: 866.27427 | M88: 705.27679 | N88: Cumple
A89: 81 | B89: 010704 | C89: AMAZONAS | D89: MUNICIPALIDAD DISTRITAL DE EL MILAGRO | E89: 594.5666 | F89: 2649.176733 | G89: 0.0009 | H89: 22.44344791 | I89: Cumple | K89: 1593.01499 | L89: 982.8664 | M89: 610.14859 | N89: Cumple
A90: 82 | B90: 010705 | C90: AMAZONAS | D90: MUNICIPALIDAD DISTRITAL DE JAMALCA | E90: 714.58139 | F90: 3450.1252 | G90: 0.00138 | H90: 20.71175243 | I90: Cumple | K90: 1573.64277 | L90: 909.75256 | M90: 663.89021 | N90: Cumple
A91: 83 | B91: 010706 | C91: AMAZONAS | D91: MUNICIPALIDAD DISTRITAL DE LONYA GRANDE | E91: 132.75884 | F91: 3365.748335 | G91: 0.00179 | H91: 3.944407804 | I91: Cumple | K91: 1889.57141 | L91: 1029.69887 | M91: 859.87254 | N91: Cumple
A92: 84 | B92: 010707 | C92: AMAZONAS | D92: MUNICIPALIDAD DISTRITAL DE YAMON | E92: 1159.3367 | F92: 1564.024548 | G92: 0.00044 | H92: 74.12522405 | I92: Cumple | K92: 706.97585 | L92: 522.01921 | M92: 184.95664 | N92: Cumple
A93: 85 | B93: 020101 | C93: ANCASH | D93: MUNICIPALIDAD PROVINCIAL DE HUARAZ | E93: 19355.3883 | F93: 32194.78489 | G93: 26591.10715 | H93: 60.11963852 | I93: Cumple | K93: 15962.57053 | L93: 13162.39664 | M93: 2800.17389 | N93: Cumple
A94: 86 | B94: 020102 | C94: ANCASH | D94: MUNICIPALIDAD DISTRITAL DE COCHABAMBA | E94: 221.52684 | F94: 1379.55233 | G94: 2558.84951 | H94: 8.657282858 | I94: Cumple | K94: 679.18955 | L94: 366.67282 | M94: 312.51673 | N94: Cumple
A95: 87 | B95: 020103 | C95: ANCASH | D95: MUNICIPALIDAD DISTRITAL DE COLCABAMBA | E95: 81.67895 | F95: 671.8305525 | G95: 773.51017 | H95: 10.55951856 | I95: Cumple | K95: 321.44751 | L95: 261.48404 | M95: 59.96347 | N95: Cumple
A96: 88 | B96: 020104 | C96: ANCASH | D96: MUNICIPALIDAD DISTRITAL DE HUANCHAY | E96: 63.71827 | F96: 1296.81631 | G96: 2226.51157 | H96: 2.861798288 | I96: Cumple | K96: 566.04489 | L96: 321.78187 | M96: 244.26302 | N96: Cumple
A97: 89 | B97: 020105 | C97: ANCASH | D97: MUNICIPALIDAD DISTRITAL DE INDEPENDENCIA | E97: 13262.03312 | F97: 23564.83238 | G97: 39138.78392 | H97: 33.88463256 | I97: Cumple | K97: 11929.82678 | L97: 5239.4929 | M97: 6690.33388 | N97: Cumple
A98: 90 | B98: 020106 | C98: ANCASH | D98: MUNICIPALIDAD DISTRITAL DE JANGAS | E98: 97.63586 | F98: 2564.556905 | G98: 6326.31549 | H98: 1.543328975 | I98: Cumple | K98: 407.4286 | L98: 609.60716 | M98: -202.17856 | N98: No Cumple
A99: 91 | B99: 020107 | C99: ANCASH | D99: MUNICIPALIDAD DISTRITAL DE LA LIBERTAD | E99: 137.44731 | F99: 1098.048403 | G99: 1153.4342 | H99: 11.91635466 | I99: Cumple | K99: 392.65939 | L99: 322.78382 | M99: 69.87557 | N99: Cumple
A100: 92 | B100: 020108 | C100: ANCASH | D100: MUNICIPALIDAD DISTRITAL DE OLLEROS | E100: 849.16845 | F100: 1093.661042 | G100: 1730.49839 | H100: 49.07074487 | I100: Cumple | K100: 510.84636 | L100: 325.18082 | M100: 185.66554 | N100: Cumple
A101: 93 | B101: 020109 | C101: ANCASH | D101: MUNICIPALIDAD DISTRITAL DE PAMPAS | E101: 7.52317 | F101: 1235.213583 | G101: 1499.92944 | H101: 0.5015682604 | I101: Cumple | K101: 403.3317 | L101: 286.28711 | M101: 117.04459 | N101: Cumple
A102: 94 | B102: 020110 | C102: ANCASH | D102: MUNICIPALIDAD DISTRITAL DE PARIACOTO | E102: 333.3524 | F102: 2511.091772 | G102: 3968.18645 | H102: 8.400623413 | I102: Cumple | K102: 1137.59846 | L102: 932.54205 | M102: 205.05641 | N102: Cumple
A103: 95 | B103: 020111 | C103: ANCASH | D103: MUNICIPALIDAD DISTRITAL DE PIRA | E103: 609.41807 | F103: 2222.598417 | G103: 4807.0046 | H103: 12.67770932 | I103: Cumple | K103: 996.64303 | L103: 380.48196 | M103: 616.16107 | N103: Cumple
A104: 96 | B104: 020112 | C104: ANCASH | D104: MUNICIPALIDAD DISTRITAL DE TARICA | E104: 697.35605 | F104: 2447.81013 | G104: 4200.26662 | H104: 16.60266152 | I104: Cumple | K104: 1045.76085 | L104: 707.10047 | M104: 338.66038 | N104: Cumple
A105: 97 | B105: 020201 | C105: ANCASH | D105: MUNICIPALIDAD PROVINCIAL DE AIJA | E105: 130.8511 | F105: 2279.422695 | G105: 1404.19305 | H105: 5.74053686 | I105: Cumple | K105: 801.26005 | L105: 436.36145 | M105: 364.8986 | N105: Cumple
A106: 98 | B106: 020202 | C106: ANCASH | D106: MUNICIPALIDAD DISTRITAL DE CORIS | E106: 94.01809 | F106: 1388.46276 | G106: 2579.49563 | H106: 3.64482455 | I106: Cumple | K106: 546.2279 | L106: 412.69009 | M106: 133.53781 | N106: Cumple
A107: 99 | B107: 020203 | C107: ANCASH | D107: MUNICIPALIDAD DISTRITAL DE HUACLLAN | E107: 42.40967 | F107: 717.380555 | G107: 760.64043 | H107: 5.575521406 | I107: Cumple | K107: 363.98474 | L107: 217.4817 | M107: 146.50304 | N107: Cumple
A108: 100 | B108: 020204 | C108: ANCASH | D108: MUNICIPALIDAD DISTRITAL DE LA MERCED | E108: 70.60958 | F108: 1673.026463 | G108: 2731.11341 | H108: 2.585377075 | I108: Cumple | K108: 655.39679 | L108: 575.44609 | M108: 79.9507 | N108: Cumple
A109: 101 | B109: 020205 | C109: ANCASH | D109: MUNICIPALIDAD DISTRITAL DE SUCCHA | E109: 43.2433 | F109: 853.364035 | G109: 782.72367 | H109: 5.067391902 | I109: Cumple | K109: 343.81607 | L109: 212.11958 | M109: 131.69649 | N109: Cumple
A110: 102 | B110: 020301 | C110: ANCASH | D110: MUNICIPALIDAD PROVINCIAL DE ANTONIO RAYMONDI - LLAMELLIN | E110: 462.91542 | F110: 3333.807555 | G110: 2505.85749 | H110: 13.88548716 | I110: Cumple | K110: 2466.46675 | L110: 706.08552 | M110: 1760.38123 | N110: Cumple
A111: 103 | B111: 020302 | C111: ANCASH | D111: MUNICIPALIDAD DISTRITAL DE ACSO | E111: 142.96491 | F111: 1203.533327 | G111: 1711.4275 | H111: 8.35354755 | I111: Cumple | K111: 484.43872 | L111: 286.28075 | M111: 198.15797 | N111: Cumple
A112: 104 | B112: 020303 | C112: ANCASH | D112: MUNICIPALIDAD DISTRITAL DE CHACCHO | E112: 631.60752 | F112: 979.98362 | G112: 1573.94675 | H112: 40.12890017 | I112: Cumple | K112: 442.14712 | L112: 196.83979 | M112: 245.30733 | N112: Cumple
A113: 105 | B113: 020304 | C113: ANCASH | D113: MUNICIPALIDAD DISTRITAL DE CHINGAS | E113: 59.53882 | F113: 977.59458 | G113: 1531.09463 | H113: 3.888644035 | I113: Cumple | K113: 451.78201 | L113: 302.91086 | M113: 148.87115 | N113: Cumple
A114: 106 | B114: 020305 | C114: ANCASH | D114: MUNICIPALIDAD DISTRITAL DE MIRGAS | E114: 140.10918 | F114: 2666.984063 | G114: 5335.48871 | H114: 2.625985877 | I114: Cumple | K114: 1298.2496 | L114: 773.87462 | M114: 524.37498 | N114: Cumple
A115: 107 | B115: 020306 | C115: ANCASH | D115: MUNICIPALIDAD DISTRITAL DE SAN JUAN DE RONTOY | E115: 21.16596 | F115: 931.863935 | G115: 1517.35902 | H115: 1.394921025 | I115: Cumple | K115: 421.4548 | L115: 352.03282 | M115: 69.42198 | N115: Cumple
A116: 108 | B116: 020401 | C116: ANCASH | D116: MUNICIPALIDAD PROVINCIAL DE ASUNCION - CHACAS | E116: 328.75527 | F116: 3712.537802 | G116: 3932.11294 | H116: 8.360778925 | I116: Cumple | K116: 2385.39091 | L116: 840.65715 | M116: 1544.73376 | N116: Cumple
A117: 109 | B117: 020402 | C117: ANCASH | D117: MUNICIPALIDAD DISTRITAL DE ACOCHACA | E117: 97.02661 | F117: 1804.017653 | G117: 3146.17545 | H117: 3.083954202 | I117: Cumple | K117: 792.53329 | L117: 660.73146 | M117: 131.80183 | N117: Cumple
A118: 110 | B118: 020501 | C118: ANCASH | D118: MUNICIPALIDAD PROVINCIAL DE BOLOGNESI - CHIQUIAN | E118: 1337.50983 | F118: 3887.839917 | G118: 1885.82364 | H118: 34.40238946 | I118: Cumple | K118: 1656.58036 | L118: 996.79098 | M118: 659.78938 | N118: Cumple
A119: 111 | B119: 020502 | C119: ANCASH | D119: MUNICIPALIDAD DISTRITAL DE ABELARDO PARDO LAZAMETA | E119: 144.80973 | F119: 1121.155725 | G119: 1531.50225 | H119: 9.455404326 | I119: Cumple | K119: 460.28748 | L119: 202.30449 | M119: 257.98299 | N119: Cumple
A120: 112 | B120: 020503 | C120: ANCASH | D120: MUNICIPALIDAD DISTRITAL DE ANTONIO RAYMONDI | E120: 1317.40363 | F120: 1006.37824 | G120: 1021.77972 | H120: 128.9322546 | I120: No Cumple | K120: 438.85995 | L120: 313.09452 | M120: 125.76543 | N120: Cumple
A121: 113 | B121: 020504 | C121: ANCASH | D121: MUNICIPALIDAD DISTRITAL DE AQUIA | E121: 350.51233 | F121: 1897.281488 | G121: 2521.55822 | H121: 13.90062411 | I121: Cumple | K121: 814.54796 | L121: 244.39977 | M121: 570.14819 | N121: Cumple
A122: 114 | B122: 020505 | C122: ANCASH | D122: MUNICIPALIDAD DISTRITAL DE CAJACAY | E122: 17.81753 | F122: 1175.33784 | G122: 1566.1308 | H122: 1.137678283 | I122: Cumple | K122: 537.89696 | L122: 286.65222 | M122: 251.24474 | N122: Cumple
A123: 115 | B123: 020506 | C123: ANCASH | D123: MUNICIPALIDAD DISTRITAL DE CANIS | E123: 133.05737 | F123: 941.499955 | G123: 1574.48507 | H123: 8.450849902 | I123: Cumple | K123: 469.19316 | L123: 296.08669 | M123: 173.10647 | N123: Cumple
A124: 116 | B124: 020507 | C124: ANCASH | D124: MUNICIPALIDAD DISTRITAL DE COLQUIOC | E124: 3137.7484 | F124: 1813.715925 | G124: 3267.66657 | H124: 96.02413015 | I124: Cumple | K124: 1047.64256 | L124: 549.18898 | M124: 498.45358 | N124: Cumple
A125: 117 | B125: 020508 | C125: ANCASH | D125: MUNICIPALIDAD DISTRITAL DE HUALLANCA | E125: 477.77862 | F125: 5409.949677 | G125: 8480.80374 | H125: 5.633647879 | I125: Cumple | K125: 3527.23406 | L125: 2150.47899 | M125: 1376.75507 | N125: Cumple
A126: 118 | B126: 020509 | C126: ANCASH | D126: MUNICIPALIDAD DISTRITAL DE HUASTA | E126: 103.35924 | F126: 2180.54452 | G126: 3147.12607 | H126: 3.284242121 | I126: Cumple | K126: 1319.15277 | L126: 287.34478 | M126: 1031.80799 | N126: Cumple
A127: 119 | B127: 020510 | C127: ANCASH | D127: MUNICIPALIDAD DISTRITAL DE HUAYLLACAYAN | E127: 1200.77632 | F127: 965.987915 | G127: 1260.29079 | H127: 95.2777192 | I127: Cumple | K127: 464.24194 | L127: 243.64395 | M127: 220.59799 | N127: Cumple
A128: 120 | B128: 020511 | C128: ANCASH | D128: MUNICIPALIDAD DISTRITAL DE LA PRIMAVERA | E128: 137.42364 | F128: 776.0013825 | G128: 842.10294 | H128: 16.31910227 | I128: Cumple | K128: 388.87741 | L128: 200.2652 | M128: 188.61221 | N128: Cumple
A129: 121 | B129: 020512 | C129: ANCASH | D129: MUNICIPALIDAD DISTRITAL DE MANGAS | E129: 72.85339 | F129: 703.9806825 | G129: 690.20223 | H129: 10.34877686 | I129: Cumple | K129: 325.88866 | L129: 223.81066 | M129: 102.078 | N129: Cumple
A130: 122 | B130: 020513 | C130: ANCASH | D130: MUNICIPALIDAD DISTRITAL DE PACLLON | E130: 3206.38857 | F130: 1357.418885 | G130: 1977.2477 | H130: 162.1642331 | I130: No Cumple | K130: 879.47218 | L130: 267.59428 | M130: 611.8779 | N130: Cumple
A131: 123 | B131: 020514 | C131: ANCASH | D131: MUNICIPALIDAD DISTRITAL DE SAN MIGUEL DE CORPANQUI | E131: 47.262 | F131: 801.313265 | G131: 1217.60979 | H131: 3.881539093 | I131: Cumple | K131: 411.70036 | L131: 194.96887 | M131: 216.73149 | N131: Cumple
A132: 124 | B132: 020515 | C132: ANCASH | D132: MUNICIPALIDAD DISTRITAL DE TICLLOS | E132: 22.0155 | F132: 884.8061025 | G132: 1317.84369 | H132: 1.670569899 | I132: Cumple | K132: 429.52061 | L132: 199.75859 | M132: 229.76202 | N132: Cumple
A133: 125 | B133: 020601 | C133: ANCASH | D133: MUNICIPALIDAD PROVINCIAL DE CARHUAZ | E133: 806.06259 | F133: 9815.20382 | G133: 10331.1638 | H133: 7.802243829 | I133: Cumple | K133: 4651.36143 | L133: 2837.11736 | M133: 1814.24407 | N133: Cumple
A134: 126 | B134: 020602 | C134: ANCASH | D134: MUNICIPALIDAD DISTRITAL DE ACOPAMPA | E134: 131.96712 | F134: 1047.248225 | G134: 1610.77634 | H134: 8.192764987 | I134: Cumple | K134: 154.79056 | L134: 301.14374 | M134: -146.35318 | N134: No Cumple
A135: 127 | B135: 020603 | C135: ANCASH | D135: MUNICIPALIDAD DISTRITAL DE AMASHCA | E135: 145.72941 | F135: 1019.489898 | G135: 1442.91971 | H135: 10.09962017 | I135: Cumple | K135: 440.44272 | L135: 238.80819 | M135: 201.63453 | N135: Cumple
A136: 128 | B136: 020604 | C136: ANCASH | D136: MUNICIPALIDAD DISTRITAL DE ANTA | E136: 41.30901 | F136: 1321.678762 | G136: 1940.82779 | H136: 2.128422223 | I136: Cumple | K136: 871.90073 | L136: 406.06734 | M136: 465.83339 | N136: Cumple
A137: 129 | B137: 020605 | C137: ANCASH | D137: MUNICIPALIDAD DISTRITAL DE ATAQUERO | E137: 113.99691 | F137: 870.469645 | G137: 1298.23339 | H137: 8.780925747 | I137: Cumple | K137: 419.96969 | L137: 301.97911 | M137: 117.99058 | N137: Cumple
A138: 130 | B138: 020606 | C138: ANCASH | D138: MUNICIPALIDAD DISTRITAL DE MARCARA | E138: 544.50767 | F138: 4280.407113 | G138: 7540.95889 | H138: 7.220668856 | I138: Cumple | K138: 2045.01108 | L138: 1327.80335 | M138: 717.20773 | N138: Cumple
A139: 131 | B139: 020607 | C139: ANCASH | D139: MUNICIPALIDAD DISTRITAL DE PARIAHUANCA | E139: 47.99003 | F139: 1216.406598 | G139: 1171.64344 | H139: 3.945229342 | I139: Cumple | K139: 485.44888 | L139: 303.8163 | M139: 181.63258 | N139: Cumple
A140: 132 | B140: 020608 | C140: ANCASH | D140: MUNICIPALIDAD DISTRITAL DE SAN MIGUEL DE ACO | E140: 2413.77366 | F140: 1115.173445 | G140: 1563.74048 | H140: 154.3589675 | I140: No Cumple | K140: 418.19223 | L140: 246.06378 | M140: 172.12845 | N140: Cumple
A141: 133 | B141: 020609 | C141: ANCASH | D141: MUNICIPALIDAD DISTRITAL DE SHILLA | E141: 292.17894 | F141: 2137.732272 | G141: 2362.12598 | H141: 12.36932079 | I141: Cumple | K141: 677.9921 | L141: 366.78488 | M141: 311.20722 | N141: Cumple
A142: 134 | B142: 020610 | C142: ANCASH | D142: MUNICIPALIDAD DISTRITAL DE TINCO | E142: 2328.09045 | F142: 1958.293787 | G142: 1773.37805 | H142: 118.8836152 | I142: No Cumple | K142: 555.67621 | L142: 351.49627 | M142: 204.17994 | N142: Cumple
A143: 135 | B143: 020611 | C143: ANCASH | D143: MUNICIPALIDAD DISTRITAL DE YUNGAR | E143: 328.12609 | F143: 1462.701378 | G143: 2333.09138 | H143: 14.06400507 | I143: Cumple | K143: 702.28263 | L143: 495.61261 | M143: 206.67002 | N143: Cumple
A144: 136 | B144: 020701 | C144: ANCASH | D144: MUNICIPALIDAD PROVINCIAL DE CARLOS FERMIN FITZCARRALD | E144: 3430.68951 | F144: 10719.40675 | G144: 13818.47123 | H144: 24.82683832 | I144: Cumple | K144: 5355.95869 | L144: 4059.59329 | M144: 1296.3654 | N144: Cumple
A145: 137 | B145: 020702 | C145: ANCASH | D145: MUNICIPALIDAD DISTRITAL DE SAN NICOLAS | E145: 43.9387 | F145: 2776.366445 | G145: 4020.68893 | H145: 1.092815206 | I145: Cumple | K145: 1285.98899 | L145: 775.10594 | M145: 510.88305 | N145: Cumple
A146: 138 | B146: 020703 | C146: ANCASH | D146: MUNICIPALIDAD DISTRITAL DE YAUYA | E146: 365.77286 | F146: 3990.632595 | G146: 5928.16487 | H146: 6.170085819 | I146: Cumple | K146: 1985.78735 | L146: 1573.76256 | M146: 412.02479 | N146: Cumple
A147: 139 | B147: 020801 | C147: ANCASH | D147: MUNICIPALIDAD PROVINCIAL DE CASMA | E147: 5315.67202 | F147: 14744.9821 | G147: 17529.22744 | H147: 30.32462234 | I147: Cumple | K147: 7454.48737 | L147: 7927.22143 | M147: -472.73406 | N147: No Cumple
A148: 140 | B148: 020802 | C148: ANCASH | D148: MUNICIPALIDAD DISTRITAL DE BUENA VISTA ALTA | E148: 621.88023 | F148: 2697.833973 | G148: 3690.82616 | H148: 16.84935034 | I148: Cumple | K148: 1060.31839 | L148: 840.14059 | M148: 220.1778 | N148: Cumple
A149: 141 | B149: 020803 | C149: ANCASH | D149: MUNICIPALIDAD DISTRITAL DE COMANDANTE NOEL | E149: 352.66778 | F149: 1923.025085 | G149: 2255.0766 | H149: 15.63883817 | I149: Cumple | K149: 858.07335 | L149: 847.34363 | M149: 10.72972 | N149: Cumple
A150: 142 | B150: 020804 | C150: ANCASH | D150: MUNICIPALIDAD DISTRITAL DE YAUTAN | E150: 640.09579 | F150: 3315.751112 | G150: 5118.61422 | H150: 12.50525557 | I150: Cumple | K150: 1699.55032 | L150: 1069.07403 | M150: 630.47629 | N150: Cumple
A151: 143 | B151: 020901 | C151: ANCASH | D151: MUNICIPALIDAD PROVINCIAL DE CORONGO | E151: 190.91109 | F151: 2202.308228 | G151: 879.91157 | H151: 8.668681687 | I151: Cumple | K151: 642.36361 | L151: 568.75575 | M151: 73.60786 | N151: Cumple
A152: 144 | B152: 020902 | C152: ANCASH | D152: MUNICIPALIDAD DISTRITAL DE ACO | E152: 245.25317 | F152: 636.998475 | G152: 489.86425 | H152: 38.50137475 | I152: Cumple | K152: 313.94357 | L152: 205.9099 | M152: 108.03367 | N152: Cumple
A153: 145 | B153: 020903 | C153: ANCASH | D153: MUNICIPALIDAD DISTRITAL DE BAMBAS | E153: 19.10507 | F153: 689.992205 | G153: 600.00081 | H153: 2.768882005 | I153: Cumple | K153: 364.03765 | L153: 249.70155 | M153: 114.3361 | N153: Cumple
A154: 146 | B154: 020904 | C154: ANCASH | D154: MUNICIPALIDAD DISTRITAL DE CUSCA | E154: 177.34693 | F154: 2208.671342 | G154: 2519.96482 | H154: 7.037674835 | I154: Cumple | K154: 712.13136 | L154: 611.33685 | M154: 100.79451 | N154: Cumple
A155: 147 | B155: 020905 | C155: ANCASH | D155: MUNICIPALIDAD DISTRITAL DE LA PAMPA | E155: 430.84545 | F155: 767.4201125 | G155: 558.11651 | H155: 56.1420587 | I155: Cumple | K155: 296.42158 | L155: 210.57528 | M155: 85.8463 | N155: Cumple
A156: 148 | B156: 020906 | C156: ANCASH | D156: MUNICIPALIDAD DISTRITAL DE YANAC | E156: 372.72209 | F156: 700.1225325 | G156: 479.38718 | H156: 53.23669396 | I156: Cumple | K156: 337.80335 | L156: 285.09108 | M156: 52.71227 | N156: Cumple
A157: 149 | B157: 020907 | C157: ANCASH | D157: MUNICIPALIDAD DISTRITAL DE YUPAN | E157: 98.93906 | F157: 579.4543875 | G157: 413.45893 | H157: 17.07452081 | I157: Cumple | K157: 282.74751 | L157: 170.78031 | M157: 111.9672 | N157: Cumple
A158: 150 | B158: 021001 | C158: ANCASH | D158: MUNICIPALIDAD PROVINCIAL DE HUARI | E158: 8925.47723 | F158: 22205.83406 | G158: 51184.25685 | H158: 17.43793459 | I158: Cumple | K158: 9764.34295 | L158: 3664.52364 | M158: 6099.81931 | N158: Cumple
A159: 151 | B159: 021002 | C159: ANCASH | D159: MUNICIPALIDAD DISTRITAL DE ANRA | E159: 800.94798 | F159: 3747.356465 | G159: 11067.0251 | H159: 7.237247343 | I159: Cumple | K159: 1583.17731 | L159: 859.32104 | M159: 723.85627 | N159: Cumple
A160: 152 | B160: 021003 | C160: ANCASH | D160: MUNICIPALIDAD DISTRITAL DE CAJAY | E160: 654.52423 | F160: 5981.875783 | G160: 18723.1223 | H160: 3.495807054 | I160: Cumple | K160: 2634.01839 | L160: 1247.73323 | M160: 1386.28516 | N160: Cumple
A161: 153 | B161: 021004 | C161: ANCASH | D161: MUNICIPALIDAD DISTRITAL DE CHAVIN DE HUANTAR | E161: 4353.75247 | F161: 19168.11524 | G161: 61882.32792 | H161: 7.035534403 | I161: Cumple | K161: 8781.14554 | L161: 3691.41298 | M161: 5089.73256 | N161: Cumple
A162: 154 | B162: 021005 | C162: ANCASH | D162: MUNICIPALIDAD DISTRITAL DE HUACACHI | E162: 907.59755 | F162: 4115.317057 | G162: 12820.17206 | H162: 7.079449057 | I162: Cumple | K162: 1794.64626 | L162: 739.97777 | M162: 1054.66849 | N162: Cumple
A163: 155 | B163: 021006 | C163: ANCASH | D163: MUNICIPALIDAD DISTRITAL DE HUACCHIS | E163: 635.74404 | F163: 4352.930365 | G163: 13395.23019 | H163: 4.746047892 | I163: Cumple | K163: 1950.15657 | L163: 1481.07867 | M163: 469.0779 | N163: Cumple
A164: 156 | B164: 021007 | C164: ANCASH | D164: MUNICIPALIDAD DISTRITAL DE HUACHIS | E164: 8603.6464 | F164: 8872.695322 | G164: 27416.44628 | H164: 31.38133335 | I164: Cumple | K164: 3856.78675 | L164: 1887.33605 | M164: 1969.4507 | N164: Cumple
A165: 157 | B165: 021008 | C165: ANCASH | D165: MUNICIPALIDAD DISTRITAL DE HUANTAR | E165: 4131.80288 | F165: 5382.908043 | G165: 17684.23848 | H165: 23.36432459 | I165: Cumple | K165: 2494.50672 | L165: 850.53765 | M165: 1643.96907 | N165: Cumple
A166: 158 | B166: 021009 | C166: ANCASH | D166: MUNICIPALIDAD DISTRITAL DE MASIN | E166: 319.29444 | F166: 3587.730917 | G166: 11556.21119 | H166: 2.762968197 | I166: Cumple | K166: 732.98084 | L166: 597.58046 | M166: 135.40038 | N166: Cumple
A167: 159 | B167: 021010 | C167: ANCASH | D167: MUNICIPALIDAD DISTRITAL DE PAUCAS | E167: 146.83813 | F167: 4280.058765 | G167: 13255.5815 | H167: 1.107745669 | I167: Cumple | K167: 1914.36427 | L167: 889.74643 | M167: 1024.61784 | N167: Cumple
A168: 160 | B168: 021011 | C168: ANCASH | D168: MUNICIPALIDAD DISTRITAL DE PONTO | E168: 535.32177 | F168: 8145.076947 | G168: 25922.16688 | H168: 2.065111966 | I168: Cumple | K168: 3600.44456 | L168: 1067.95553 | M168: 2532.48903 | N168: Cumple
A169: 161 | B169: 021012 | C169: ANCASH | D169: MUNICIPALIDAD DISTRITAL DE RAHUAPAMPA | E169: 617.42483 | F169: 1614.827748 | G169: 3861.94346 | H169: 15.98741246 | I169: Cumple | K169: 739.92889 | L169: 327.39107 | M169: 412.53782 | N169: Cumple
A170: 162 | B170: 021013 | C170: ANCASH | D170: MUNICIPALIDAD DISTRITAL DE RAPAYAN | E170: 316.08874 | F170: 4283.10744 | G170: 13349.53881 | H170: 2.367787715 | I170: Cumple | K170: 1953.25925 | L170: 1919.39989 | M170: 33.85936 | N170: Cumple
A171: 163 | B171: 021014 | C171: ANCASH | D171: MUNICIPALIDAD DISTRITAL DE SAN MARCOS | E171: 9083.05786 | F171: 83483.64055 | G171: 284042.0894 | H171: 3.197785891 | I171: Cumple | K171: 56378.47499 | L171: 7709.9491 | M171: 48668.52589 | N171: Cumple
A172: 164 | B172: 021015 | C172: ANCASH | D172: MUNICIPALIDAD DISTRITAL DE SAN PEDRO DE CHANA | E172: 261.81825 | F172: 7370.346867 | G172: 21208.84503 | H172: 1.234476699 | I172: Cumple | K172: 3122.89692 | L172: 1072.05729 | M172: 2050.83963 | N172: Cumple
A173: 165 | B173: 021016 | C173: ANCASH | D173: MUNICIPALIDAD DISTRITAL DE UCO | E173: 270.83453 | F173: 3377.962203 | G173: 10866.57469 | H173: 2.492363396 | I173: Cumple | K173: 692.10704 | L173: 504.89711 | M173: 187.20993 | N173: Cumple
A174: 166 | B174: 021101 | C174: ANCASH | D174: MUNICIPALIDAD PROVINCIAL DE HUARMEY | E174: 25615.58292 | F174: 15180.38751 | G174: 15346.77702 | H174: 166.9118075 | I174: No Cumple | K174: 7320.69034 | L174: 4692.76513 | M174: 2627.92521 | N174: Cumple
A175: 167 | B175: 021102 | C175: ANCASH | D175: MUNICIPALIDAD DISTRITAL DE COCHAPETI | E175: 9.04412 | F175: 750.0946525 | G175: 842.30999 | H175: 1.073728213 | I175: Cumple | K175: 320.41 | L175: 219.85 | M175: 100.56 | N175: Cumple
A176: 168 | B176: 021103 | C176: ANCASH | D176: MUNICIPALIDAD DISTRITAL DE CULEBRAS | E176: 4690.67803 | F176: 2334.501362 | G176: 4774.25868 | H176: 98.24934811 | I176: Cumple | K176: 871.12213 | L176: 496.57996 | M176: 374.54217 | N176: Cumple
A177: 169 | B177: 021104 | C177: ANCASH | D177: MUNICIPALIDAD DISTRITAL DE HUAYAN | E177: 35.39465 | F177: 793.403885 | G177: 1046.45725 | H177: 3.382331194 | I177: Cumple | K177: 357.26679 | L177: 328.64724 | M177: 28.61955 | N177: Cumple
A178: 170 | B178: 021105 | C178: ANCASH | D178: MUNICIPALIDAD DISTRITAL DE MALVAS | E178: 291.52171 | F178: 824.0461 | G178: 878.37221 | H178: 33.18885851 | I178: Cumple | K178: 328.66634 | L178: 144.43578 | M178: 184.23056 | N178: Cumple
A179: 171 | B179: 021201 | C179: ANCASH | D179: MUNICIPALIDAD PROVINCIAL DE HUAYLAS - CARAZ | E179: 1371.70586 | F179: 17042.57094 | G179: 18632.5657 | H179: 7.361873196 | I179: Cumple | K179: 7608.69618 | L179: 4090.65626 | M179: 3518.03992 | N179: Cumple
A180: 172 | B180: 021202 | C180: ANCASH | D180: MUNICIPALIDAD DISTRITAL DE HUALLANCA | E180: 303.411 | F180: 3060.033787 | G180: 4066.86511 | H180: 7.460562172 | I180: Cumple | K180: 1912.30045 | L180: 413.38775 | M180: 1498.9127 | N180: Cumple
A181: 173 | B181: 021203 | C181: ANCASH | D181: MUNICIPALIDAD DISTRITAL DE HUATA | E181: 267.09388 | F181: 1159.022232 | G181: 1632.22981 | H181: 16.36374231 | I181: Cumple | K181: 523.33203 | L181: 253.84197 | M181: 269.49006 | N181: Cumple
A182: 174 | B182: 021204 | C182: ANCASH | D182: MUNICIPALIDAD DISTRITAL DE HUAYLAS | E182: 328.38505 | F182: 1277.05514 | G182: 2190.22473 | H182: 14.99321259 | I182: Cumple | K182: 530.5936 | L182: 377.34024 | M182: 153.25336 | N182: Cumple
A183: 175 | B183: 021205 | C183: ANCASH | D183: MUNICIPALIDAD DISTRITAL DE MATO | E183: 463.75796 | F183: 1237.267807 | G183: 1691.01447 | H183: 27.42483688 | I183: Cumple | K183: 476.85173 | L183: 281.34726 | M183: 195.50447 | N183: Cumple
A184: 176 | B184: 021206 | C184: ANCASH | D184: MUNICIPALIDAD DISTRITAL DE PAMPAROMAS | E184: 1302.12546 | F184: 6040.73257 | G184: 11035.62183 | H184: 11.79929396 | I184: Cumple | K184: 2807.25617 | L184: 1287.65031 | M184: 1519.60586 | N184: Cumple
A185: 177 | B185: 021207 | C185: ANCASH | D185: MUNICIPALIDAD DISTRITAL DE PUEBLO LIBRE | E185: 633.55421 | F185: 4313.068145 | G185: 8072.9196 | H185: 7.847894459 | I185: Cumple | K185: 2047.00374 | L185: 725.51764 | M185: 1321.4861 | N185: Cumple
A186: 178 | B186: 021208 | C186: ANCASH | D186: MUNICIPALIDAD DISTRITAL DE SANTA CRUZ | E186: 833.92542 | F186: 3697.30301 | G186: 7408.44714 | H186: 11.25641318 | I186: Cumple | K186: 1885.48293 | L186: 903.92302 | M186: 981.55991 | N186: Cumple
A187: 179 | B187: 021209 | C187: ANCASH | D187: MUNICIPALIDAD DISTRITAL DE SANTO TORIBIO | E187: 297.97279 | F187: 1269.812443 | G187: 1529.11773 | H187: 19.48658263 | I187: Cumple | K187: 527.32554 | L187: 422.52638 | M187: 104.79916 | N187: Cumple
A188: 180 | B188: 021210 | C188: ANCASH | D188: MUNICIPALIDAD DISTRITAL DE YURACMARCA | E188: 897.86578 | F188: 2399.712417 | G188: 5253.75494 | H188: 17.08998212 | I188: Cumple | K188: 994.54065 | L188: 332.94061 | M188: 661.60004 | N188: Cumple
A189: 181 | B189: 021301 | C189: ANCASH | D189: MUNICIPALIDAD PROVINCIAL DE MARISCAL LUZURIAGA - PISCOBAMBA | E189: 2266.93243 | F189: 4388.850648 | G189: 3226.21002 | H189: 51.65207504 | I189: Cumple | K189: 2095.4881 | L189: 987.42823 | M189: 1108.05987 | N189: Cumple
A190: 182 | B190: 021302 | C190: ANCASH | D190: MUNICIPALIDAD DISTRITAL DE CASCA | E190: 55.3489 | F190: 3021.017015 | G190: 4953.48938 | H190: 1.117371932 | I190: Cumple | K190: 1445.35945 | L190: 928.44365 | M190: 516.9158 | N190: Cumple
A191: 183 | B191: 021303 | C191: ANCASH | D191: MUNICIPALIDAD DISTRITAL DE ELEAZAR GUZMAN BARRON | E191: 30.81749 | F191: 995.6544775 | G191: 1520.97865 | H191: 2.026161906 | I191: Cumple | K191: 454.2006 | L191: 415.69602 | M191: 38.50458 | N191: Cumple
A192: 184 | B192: 021304 | C192: ANCASH | D192: MUNICIPALIDAD DISTRITAL DE FIDEL OLIVAS ESCUDERO | E192: 15.60835 | F192: 1483.40439 | G192: 2351.82229 | H192: 0.6636704681 | I192: Cumple | K192: 738.90982 | L192: 414.5373 | M192: 324.37252 | N192: Cumple
A193: 185 | B193: 021305 | C193: ANCASH | D193: MUNICIPALIDAD DISTRITAL DE LLAMA | E193: 81.87392 | F193: 902.70126 | G193: 1352.66775 | H193: 6.052773861 | I193: Cumple | K193: 438.59051 | L193: 262.1494 | M193: 176.44111 | N193: Cumple
A194: 186 | B194: 021306 | C194: ANCASH | D194: MUNICIPALIDAD DISTRITAL DE LLUMPA | E194: 901.36976 | F194: 3941.48716 | G194: 6849.74367 | H194: 13.15917505 | I194: Cumple | K194: 2046.94707 | L194: 776.53801 | M194: 1270.40906 | N194: Cumple
A195: 187 | B195: 021307 | C195: ANCASH | D195: MUNICIPALIDAD DISTRITAL DE LUCMA | E195: 54.46628 | F195: 2137.155832 | G195: 3592.77429 | H195: 1.515995039 | I195: Cumple | K195: 1094.04315 | L195: 453.52232 | M195: 640.52083 | N195: Cumple
A196: 188 | B196: 021308 | C196: ANCASH | D196: MUNICIPALIDAD DISTRITAL DE MUSGA | E196: 257.97372 | F196: 872.8403675 | G196: 1115.47687 | H196: 23.12676551 | I196: Cumple | K196: 369.64087 | L196: 286.80578 | M196: 82.83509 | N196: Cumple
A197: 189 | B197: 021401 | C197: ANCASH | D197: MUNICIPALIDAD PROVINCIAL DE OCROS | E197: 511.36851 | F197: 2629.960067 | G197: 695.61069 | H197: 19.44396481 | I197: Cumple | K197: 795.26027 | L197: 448.94448 | M197: 346.31579 | N197: Cumple
A198: 190 | B198: 021402 | C198: ANCASH | D198: MUNICIPALIDAD DISTRITAL DE ACAS | E198: 44.92974 | F198: 945.6807575 | G198: 1151.92849 | H198: 3.900393157 | I198: Cumple | K198: 377.29247 | L198: 195.5723 | M198: 181.72017 | N198: Cumple
A199: 191 | B199: 021403 | C199: ANCASH | D199: MUNICIPALIDAD DISTRITAL DE CAJAMARQUILLA | E199: 20.87705 | F199: 553.012485 | G199: 283.60981 | H199: 3.77514985 | I199: Cumple | K199: 268.78591 | L199: 145.5686 | M199: 123.21731 | N199: Cumple
A200: 192 | B200: 021404 | C200: ANCASH | D200: MUNICIPALIDAD DISTRITAL DE CARHUAPAMPA | E200: 66.9058 | F200: 852.3185675 | G200: 1017.10422 | H200: 6.57806729 | I200: Cumple | K200: 375.88233 | L200: 205.49468 | M200: 170.38765 | N200: Cumple
A201: 193 | B201: 021405 | C201: ANCASH | D201: MUNICIPALIDAD DISTRITAL DE COCHAS | E201: 1017.78898 | F201: 1061.07296 | G201: 1193.18132 | H201: 85.30044537 | I201: Cumple | K201: 399.69179 | L201: 296.69963 | M201: 102.99216 | N201: Cumple
A202: 194 | B202: 021406 | C202: ANCASH | D202: MUNICIPALIDAD DISTRITAL DE CONGAS | E202: 11.668 | F202: 845.2439625 | G202: 1226.88148 | H202: 0.9510291084 | I202: Cumple | K202: 386.49961 | L202: 216.53444 | M202: 169.96517 | N202: Cumple
... 1684 more rows

Sheet DPTO (hidden)
A1: -------------------- | B1: CODI_DEP | C1: DESC_DEP
A2: 01:AMAZONAS | B2: 01 | C2: AMAZONAS
A3: 02:ANCASH | B3: 02 | C3: ANCASH
A4: 03:APURIMAC | B4: 03 | C4: APURIMAC
A5: 04:AREQUIPA | B5: 04 | C5: AREQUIPA
A6: 05:AYACUCHO | B6: 05 | C6: AYACUCHO
A7: 06:CAJAMARCA | B7: 06 | C7: CAJAMARCA
A8: 07:PROV CONSTIT DEL CALLAO | B8: 07 | C8: PROV CONSTIT DEL CALLAO
A9: 08:CUSCO | B9: 08 | C9: CUSCO
A10: 09:HUANCAVELICA | B10: 09 | C10: HUANCAVELICA
A11: 10:HUANUCO | B11: 10 | C11: HUANUCO
A12: 11:ICA | B12: 11 | C12: ICA
A13: 12:JUNIN | B13: 12 | C13: JUNIN
A14: 13:LA LIBERTAD | B14: 13 | C14: LA LIBERTAD
A15: 14:LAMBAYEQUE | B15: 14 | C15: LAMBAYEQUE
A16: 15:LIMA | B16: 15 | C16: LIMA
A17: 16:LORETO | B17: 16 | C17: LORETO
A18: 17:MADRE DE DIOS | B18: 17 | C18: MADRE DE DIOS
A19: 18:MOQUEGUA | B19: 18 | C19: MOQUEGUA
A20: 19:PASCO | B20: 19 | C20: PASCO
A21: 20:PIURA | B21: 20 | C21: PIURA
A22: 21:PUNO | B22: 21 | C22: PUNO
A23: 22:SAN MARTIN | B23: 22 | C23: SAN MARTIN
A24: 23:TACNA | B24: 23 | C24: TACNA
A25: 24:TUMBES | B25: 24 | C25: TUMBES
A26: 25:UCAYALI | B26: 25 | C26: UCAYALI

Sheet PROV (hidden)
A1: PROV | B1: CODI_DEP | C1: CODI_PRO | D1: DESC_PRO
A2: 0101:CHACHAPOYAS | B2: 01 | C2: 01 | D2: CHACHAPOYAS
A3: 0102:BAGUA | B3: 01 | C3: 02 | D3: BAGUA
A4: 0103:BONGARA | B4: 01 | C4: 03 | D4: BONGARA
A5: 0104:CONDORCANQUI | B5: 01 | C5: 04 | D5: CONDORCANQUI
A6: 0105:LUYA | B6: 01 | C6: 05 | D6: LUYA
A7: 0106:RODRIGUEZ DE MENDOZA | B7: 01 | C7: 06 | D7: RODRIGUEZ DE MENDOZA
A8: 0107:UCTUBAMBA | B8: 01 | C8: 07 | D8: UCTUBAMBA
A9: 0201:HUARAZ | B9: 02 | C9: 01 | D9: HUARAZ
A10: 0202:AIJA | B10: 02 | C10: 02 | D10: AIJA
A11: 0203:ANTONIO RAIMONDI | B11: 02 | C11: 03 | D11: ANTONIO RAIMONDI
A12: 0204:ASUNCION | B12: 02 | C12: 04 | D12: ASUNCION
A13: 0205:BOLOGNESI | B13: 02 | C13: 05 | D13: BOLOGNESI
A14: 0206:CARHUAZ | B14: 02 | C14: 06 | D14: CARHUAZ
A15: 0207:CARLOS FERMIN FITZCARRALD | B15: 02 | C15: 07 | D15: CARLOS FERMIN FITZCARRALD
A16: 0208:CASMA | B16: 02 | C16: 08 | D16: CASMA
A17: 0209:CORONGO | B17: 02 | C17: 09 | D17: CORONGO
A18: 0210:HUARI | B18: 02 | C18: 10 | D18: HUARI
A19: 0211:HUARMEY | B19: 02 | C19: 11 | D19: HUARMEY
A20: 0212:HUAYLAS | B20: 02 | C20: 12 | D20: HUAYLAS
A21: 0213:MARISCAL LUZURIAGA | B21: 02 | C21: 13 | D21: MARISCAL LUZURIAGA
A22: 0214:OCROS | B22: 02 | C22: 14 | D22: OCROS
A23: 0215:PALLASCA | B23: 02 | C23: 15 | D23: PALLASCA
A24: 0216:POMABAMBA | B24: 02 | C24: 16 | D24: POMABAMBA
A25: 0217:RECUAY | B25: 02 | C25: 17 | D25: RECUAY
A26: 0218:SANTA | B26: 02 | C26: 18 | D26: SANTA
A27: 0219:SIHUAS | B27: 02 | C27: 19 | D27: SIHUAS
A28: 0220:YUNGAY | B28: 02 | C28: 20 | D28: YUNGAY
A29: 0301:ABANCAY | B29: 03 | C29: 01 | D29: ABANCAY
A30: 0302:ANDAHUAYLAS | B30: 03 | C30: 02 | D30: ANDAHUAYLAS
A31: 0303:ANTABAMBA | B31: 03 | C31: 03 | D31: ANTABAMBA
A32: 0304:AYMARAES | B32: 03 | C32: 04 | D32: AYMARAES
A33: 0305:COTABAMBA | B33: 03 | C33: 05 | D33: COTABAMBA
A34: 0306:CHINCHEROS | B34: 03 | C34: 06 | D34: CHINCHEROS
A35: 0307:GRAU | B35: 03 | C35: 07 | D35: GRAU
A36: 0401:AREQUIPA | B36: 04 | C36: 01 | D36: AREQUIPA
A37: 0402:CAMANA | B37: 04 | C37: 02 | D37: CAMANA
A38: 0403:CARAVELI | B38: 04 | C38: 03 | D38: CARAVELI
A39: 0404:CASTILLA | B39: 04 | C39: 04 | D39: CASTILLA
A40: 0405:CAYLLOMA | B40: 04 | C40: 05 | D40: CAYLLOMA
A41: 0406:CONDESUYOS | B41: 04 | C41: 06 | D41: CONDESUYOS
A42: 0407:ISLAY | B42: 04 | C42: 07 | D42: ISLAY
A43: 0408:LA UNION | B43: 04 | C43: 08 | D43: LA UNION
A44: 0501:HUAMANGA | B44: 05 | C44: 01 | D44: HUAMANGA
A45: 0502:CANGALLO | B45: 05 | C45: 02 | D45: CANGALLO
A46: 0503:HUANCA SANCOS | B46: 05 | C46: 03 | D46: HUANCA SANCOS
A47: 0504:HUANTA | B47: 05 | C47: 04 | D47: HUANTA
A48: 0505:LA MAR | B48: 05 | C48: 05 | D48: LA MAR
A49: 0506:LUCANAS | B49: 05 | C49: 06 | D49: LUCANAS
A50: 0507:PARINACOCHAS | B50: 05 | C50: 07 | D50: PARINACOCHAS
A51: 0508:PAUCAR DEL SARA SARA | B51: 05 | C51: 08 | D51: PAUCAR DEL SARA SARA
A52: 0509:SUCRE | B52: 05 | C52: 09 | D52: SUCRE
A53: 0510:VICTOR FAJARDO | B53: 05 | C53: 10 | D53: VICTOR FAJARDO
A54: 0511:VILCASHUAMAN | B54: 05 | C54: 11 | D54: VILCASHUAMAN
A55: 0601:CAJAMARCA | B55: 06 | C55: 01 | D55: CAJAMARCA
A56: 0602:CAJABAMBA | B56: 06 | C56: 02 | D56: CAJABAMBA
A57: 0603:CELENDIN | B57: 06 | C57: 03 | D57: CELENDIN
A58: 0604:CHOTA | B58: 06 | C58: 04 | D58: CHOTA
A59: 0605:CONTUMAZA | B59: 06 | C59: 05 | D59: CONTUMAZA
A60: 0606:CUTERVO | B60: 06 | C60: 06 | D60: CUTERVO
A61: 0607:HUALGAYOC | B61: 06 | C61: 07 | D61: HUALGAYOC
A62: 0608:JAEN | B62: 06 | C62: 08 | D62: JAEN
A63: 0609:SAN IGNACIO | B63: 06 | C63: 09 | D63: SAN IGNACIO
A64: 0610:SAN MARCOS | B64: 06 | C64: 10 | D64: SAN MARCOS
A65: 0611:SAN MIGUEL | B65: 06 | C65: 11 | D65: SAN MIGUEL
A66: 0612:SAN PABLO | B66: 06 | C66: 12 | D66: SAN PABLO
A67: 0613:SANTA CRUZ | B67: 06 | C67: 13 | D67: SANTA CRUZ
A68: 0701:PROV. CALLAO | B68: 07 | C68: 01 | D68: PROV. CALLAO
A69: 0801:CUSCO | B69: 08 | C69: 01 | D69: CUSCO
A70: 0802:ACOMAYO | B70: 08 | C70: 02 | D70: ACOMAYO
A71: 0803:ANTA | B71: 08 | C71: 03 | D71: ANTA
A72: 0804:CALCA | B72: 08 | C72: 04 | D72: CALCA
A73: 0805:CANAS | B73: 08 | C73: 05 | D73: CANAS
A74: 0806:CANCHIS | B74: 08 | C74: 06 | D74: CANCHIS
A75: 0807:CHUMBIVILCAS | B75: 08 | C75: 07 | D75: CHUMBIVILCAS
A76: 0808:ESPINAR | B76: 08 | C76: 08 | D76: ESPINAR
A77: 0809:LA CONVENCION | B77: 08 | C77: 09 | D77: LA CONVENCION
A78: 0810:PARURO | B78: 08 | C78: 10 | D78: PARURO
A79: 0811:PAUCARTAMBO | B79: 08 | C79: 11 | D79: PAUCARTAMBO
A80: 0812:QUISPICANCHIS | B80: 08 | C80: 12 | D80: QUISPICANCHIS
A81: 0813:URUBAMBA | B81: 08 | C81: 13 | D81: URUBAMBA
A82: 0901:HUANCAVELICA | B82: 09 | C82: 01 | D82: HUANCAVELICA
A83: 0902:ACOBAMBA | B83: 09 | C83: 02 | D83: ACOBAMBA
A84: 0903:ANGARAES | B84: 09 | C84: 03 | D84: ANGARAES
A85: 0904:CASTROVIRREYNA | B85: 09 | C85: 04 | D85: CASTROVIRREYNA
A86: 0905:CHURCAMPA | B86: 09 | C86: 05 | D86: CHURCAMPA
A87: 0906:HUAYTARA | B87: 09 | C87: 06 | D87: HUAYTARA
A88: 0907:TAYACAJA | B88: 09 | C88: 07 | D88: TAYACAJA
A89: 1001:HUANUCO | B89: 10 | C89: 01 | D89: HUANUCO
A90: 1002:AMBO | B90: 10 | C90: 02 | D90: AMBO
A91: 1003:DOS DE MAYO | B91: 10 | C91: 03 | D91: DOS DE MAYO
A92: 1004:HUACAYBAMBA | B92: 10 | C92: 04 | D92: HUACAYBAMBA
A93: 1005:HUAMALIES | B93: 10 | C93: 05 | D93: HUAMALIES
A94: 1006:LEONCIO PRADO | B94: 10 | C94: 06 | D94: LEONCIO PRADO
A95: 1007:MARANON | B95: 10 | C95: 07 | D95: MARANON
A96: 1008:PACHITEA | B96: 10 | C96: 08 | D96: PACHITEA
A97: 1009:PUERTO INCA | B97: 10 | C97: 09 | D97: PUERTO INCA
A98: 1010:LAURICOCHA | B98: 10 | C98: 10 | D98: LAURICOCHA
A99: 1011:YAROWILCA | B99: 10 | C99: 11 | D99: YAROWILCA
A100: 1101:ICA | B100: 11 | C100: 01 | D100: ICA
A101: 1102:CHINCHA | B101: 11 | C101: 02 | D101: CHINCHA
A102: 1103:NAZCA | B102: 11 | C102: 03 | D102: NAZCA
A103: 1104:PALPA | B103: 11 | C103: 04 | D103: PALPA
A104: 1105:PISCO | B104: 11 | C104: 05 | D104: PISCO
A105: 1201:HUANCAYO | B105: 12 | C105: 01 | D105: HUANCAYO
A106: 1202:CONCEPCION | B106: 12 | C106: 02 | D106: CONCEPCION
A107: 1203:CHANCHAMAYO | B107: 12 | C107: 03 | D107: CHANCHAMAYO
A108: 1204:JAUJA | B108: 12 | C108: 04 | D108: JAUJA
A109: 1205:JUNIN | B109: 12 | C109: 05 | D109: JUNIN
A110: 1206:SATIPO | B110: 12 | C110: 06 | D110: SATIPO
A111: 1207:TARMA | B111: 12 | C111: 07 | D111: TARMA
A112: 1208:YAULI | B112: 12 | C112: 08 | D112: YAULI
A113: 1209:CHUPACA | B113: 12 | C113: 09 | D113: CHUPACA
A114: 1301:TRUJILLO | B114: 13 | C114: 01 | D114: TRUJILLO
A115: 1302:ASCOPE | B115: 13 | C115: 02 | D115: ASCOPE
A116: 1303:BOLIVAR | B116: 13 | C116: 03 | D116: BOLIVAR
A117: 1304:CHEPEN | B117: 13 | C117: 04 | D117: CHEPEN
A118: 1305:JULCAN | B118: 13 | C118: 05 | D118: JULCAN
A119: 1306:OTUZCO | B119: 13 | C119: 06 | D119: OTUZCO
A120: 1307:PACASMAYO | B120: 13 | C120: 07 | D120: PACASMAYO
A121: 1308:PATAZ | B121: 13 | C121: 08 | D121: PATAZ
A122: 1309:SANCHEZ CARRION | B122: 13 | C122: 09 | D122: SANCHEZ CARRION
A123: 1310:SANTIAGO DE CHUCO | B123: 13 | C123: 10 | D123: SANTIAGO DE CHUCO
A124: 1311:GRAN CHIMU | B124: 13 | C124: 11 | D124: GRAN CHIMU
A125: 1312:VIRU | B125: 13 | C125: 12 | D125: VIRU
A126: 1401:CHICLAYO | B126: 14 | C126: 01 | D126: CHICLAYO
A127: 1402:FERRENAFE | B127: 14 | C127: 02 | D127: FERRENAFE
A128: 1403:LAMBAYEQUE | B128: 14 | C128: 03 | D128: LAMBAYEQUE
A129: 1501:LIMA | B129: 15 | C129: 01 | D129: LIMA
A130: 1502:BARRANCA | B130: 15 | C130: 02 | D130: BARRANCA
A131: 1503:CAJATAMBO | B131: 15 | C131: 03 | D131: CAJATAMBO
A132: 1504:CANTA | B132: 15 | C132: 04 | D132: CANTA
A133: 1505:CAÑETE | B133: 15 | C133: 05 | D133: CAÑETE
A134: 1506:HUARAL | B134: 15 | C134: 06 | D134: HUARAL
A135: 1507:HUAROCHIRI | B135: 15 | C135: 07 | D135: HUAROCHIRI
A136: 1508:HUAURA | B136: 15 | C136: 08 | D136: HUAURA
A137: 1509:OYON | B137: 15 | C137: 09 | D137: OYON
A138: 1510:YAUYOS | B138: 15 | C138: 10 | D138: YAUYOS
A139: 1601:MAYNAS | B139: 16 | C139: 01 | D139: MAYNAS
A140: 1602:ALTO AMAZONAS | B140: 16 | C140: 02 | D140: ALTO AMAZONAS
A141: 1603:LORETO | B141: 16 | C141: 03 | D141: LORETO
A142: 1604:RAMON CASTILLA | B142: 16 | C142: 04 | D142: RAMON CASTILLA
A143: 1605:REQUENA | B143: 16 | C143: 05 | D143: REQUENA
A144: 1606:UCAYALI | B144: 16 | C144: 06 | D144: UCAYALI
A145: 1607:DATEM DEL MARAÑON | B145: 16 | C145: 07 | D145: DATEM DEL MARAÑON
A146: 1608:PUTUMAYO | B146: 16 | C146: 08 | D146: PUTUMAYO
A147: 1701:TAMBOPATA | B147: 17 | C147: 01 | D147: TAMBOPATA
A148: 1702:MANU | B148: 17 | C148: 02 | D148: MANU
A149: 1703:TAHUAMANU | B149: 17 | C149: 03 | D149: TAHUAMANU
A150: 1801:MARISCAL NIETO | B150: 18 | C150: 01 | D150: MARISCAL NIETO
A151: 1802:GENERAL SANCHEZ CERRO | B151: 18 | C151: 02 | D151: GENERAL SANCHEZ CERRO
A152: 1803:ILO | B152: 18 | C152: 03 | D152: ILO
A153: 1901:PASCO | B153: 19 | C153: 01 | D153: PASCO
A154: 1902:DANIEL A. CARRION | B154: 19 | C154: 02 | D154: DANIEL A. CARRION
A155: 1903:OXAPAMPA | B155: 19 | C155: 03 | D155: OXAPAMPA
A156: 2001:PIURA | B156: 20 | C156: 01 | D156: PIURA
A157: 2002:AYABACA | B157: 20 | C157: 02 | D157: AYABACA
A158: 2003:HUANCABAMBA | B158: 20 | C158: 03 | D158: HUANCABAMBA
A159: 2004:MORROPON | B159: 20 | C159: 04 | D159: MORROPON
A160: 2005:PAITA | B160: 20 | C160: 05 | D160: PAITA
A161: 2006:SULLANA | B161: 20 | C161: 06 | D161: SULLANA
A162: 2007:TALARA | B162: 20 | C162: 07 | D162: TALARA
A163: 2008:SECHURA | B163: 20 | C163: 08 | D163: SECHURA
A164: 2101:PUNO | B164: 21 | C164: 01 | D164: PUNO
A165: 2102:AZANGARO | B165: 21 | C165: 02 | D165: AZANGARO
A166: 2103:CARABAYA | B166: 21 | C166: 03 | D166: CARABAYA
A167: 2104:CHUCUITO | B167: 21 | C167: 04 | D167: CHUCUITO
A168: 2105:EL COLLAO | B168: 21 | C168: 05 | D168: EL COLLAO
A169: 2106:HUANCANE | B169: 21 | C169: 06 | D169: HUANCANE
A170: 2107:LAMPA | B170: 21 | C170: 07 | D170: LAMPA
A171: 2108:MELGAR | B171: 21 | C171: 08 | D171: MELGAR
A172: 2109:MOHO | B172: 21 | C172: 09 | D172: MOHO
A173: 2110:SAN ANTONIO DE PUTINA | B173: 21 | C173: 10 | D173: SAN ANTONIO DE PUTINA
A174: 2111:SAN ROMAN | B174: 21 | C174: 11 | D174: SAN ROMAN
A175: 2112:SANDIA | B175: 21 | C175: 12 | D175: SANDIA
A176: 2113:YUNGUYO | B176: 21 | C176: 13 | D176: YUNGUYO
A177: 2201:MOYOBAMBA | B177: 22 | C177: 01 | D177: MOYOBAMBA
A178: 2202:BELLAVISTA | B178: 22 | C178: 02 | D178: BELLAVISTA
A179: 2203:EL DORADO | B179: 22 | C179: 03 | D179: EL DORADO
A180: 2204:HUALLAGA | B180: 22 | C180: 04 | D180: HUALLAGA
A181: 2205:LAMAS | B181: 22 | C181: 05 | D181: LAMAS
A182: 2206:MARISCAL CACERES | B182: 22 | C182: 06 | D182: MARISCAL CACERES
A183: 2207:PICOTA | B183: 22 | C183: 07 | D183: PICOTA
A184: 2208:RIOJA | B184: 22 | C184: 08 | D184: RIOJA
A185: 2209:SAN MARTIN | B185: 22 | C185: 09 | D185: SAN MARTIN
A186: 2210:TOCACHE | B186: 22 | C186: 10 | D186: TOCACHE
A187: 2301:TACNA | B187: 23 | C187: 01 | D187: TACNA
A188: 2302:CANDARAVE | B188: 23 | C188: 02 | D188: CANDARAVE
A189: 2303:JORGE BASADRE | B189: 23 | C189: 03 | D189: JORGE BASADRE
A190: 2304:TARATA | B190: 23 | C190: 04 | D190: TARATA
A191: 2401:TUMBES | B191: 24 | C191: 01 | D191: TUMBES
A192: 2402:CONTRALMIRANTE VILLAR | B192: 24 | C192: 02 | D192: CONTRALMIRANTE VILLAR
A193: 2403:ZARUMILLA | B193: 24 | C193: 03 | D193: ZARUMILLA
A194: 2501:CORONEL PORTILLO | B194: 25 | C194: 01 | D194: CORONEL PORTILLO
A195: 2502:ATALAYA | B195: 25 | C195: 02 | D195: ATALAYA
A196: 2503:PADRE ABAD | B196: 25 | C196: 03 | D196: PADRE ABAD
A197: 2504:PURUS | B197: 25 | C197: 04 | D197: PURUS

Sheet ENTIDAD (hidden)
A1: ENTIDADES
A2: 010000 : GOBIERNO REGIONAL DE AMAZONAS
A3: 020000 : GOBIERNO REGIONAL DE ANCASH
A4: 030000 : GOBIERNO REGIONAL DE APURIMAC
A5: 040000 : GOBIERNO REGIONAL DE AREQUIPA
A6: 050000 : GOBIERNO REGIONAL DE AYACUCHO
A7: 060000 : GOBIERNO REGIONAL DE CAJAMARCA
A8: 070000 : GOBIERNO REGIONAL DEL CALLAO
A9: 080000 : GOBIERNO REGIONAL DE CUSCO
A10: 090000 : GOBIERNO REGIONAL DE HUANCAVELICA
A11: 100000 : GOBIERNO REGIONAL DE HUANUCO
A12: 110000 : GOBIERNO REGIONAL DE ICA
A13: 120000 : GOBIERNO REGIONAL DE JUNIN
A14: 130000 : GOBIERNO REGIONAL DE LA LIBERTAD
A15: 140000 : GOBIERNO REGIONAL DE LAMBAYEQUE
A16: 150000 : GOBIERNO REGIONAL DE LIMA
A17: 160000 : GOBIERNO REGIONAL DE LORETO
A18: 170000 : GOBIERNO REGIONAL DE MADRE DE DIOS
A19: 180000 : GOBIERNO REGIONAL DE MOQUEGUA
A20: 190000 : GOBIERNO REGIONAL DE PASCO
A21: 200000 : GOBIERNO REGIONAL DE PIURA
A22: 210000 : GOBIERNO REGIONAL DE PUNO
A23: 220000 : GOBIERNO REGIONAL DE SAN MARTIN
A24: 230000 : GOBIERNO REGIONAL DE TACNA
A25: 240000 : GOBIERNO REGIONAL DE TUMBES
A26: 250000 : GOBIERNO REGIONAL DE UCAYALI
A27: 260000 : REGION LIMA METROPOLITANA
A28: 010101 : MP DE CHACHAPOYAS
A29: 010102 : MD DE ASUNCION
A30: 010103 : MD DE BALSAS
A31: 010104 : MD DE CHETO
A32: 010105 : MD DE CHILIQUIN
A33: 010106 : MD DE CHUQUIBAMBA
A34: 010107 : MD DE GRANADA
A35: 010108 : MD DE HUANCAS
A36: 010109 : MD DE JALCA GRANDE
A37: 010110 : MD DE LEIMEBAMBA
A38: 010111 : MD DE LEVANTO
A39: 010112 : MD DE MAGDALENA
A40: 010113 : MD DE MARISCAL CASTILLA
A41: 010114 : MD DE MOLINOPAMPA
A42: 010115 : MD DE MONTEVIDEO
A43: 010116 : MD DE OLLEROS
A44: 010117 : MD DE QUINJALCA
A45: 010118 : MD DE SAN FRANCISCO DE DAGUAS
A46: 010119 : MD DE SAN ISIDRO DE MAYNO
A47: 010120 : MD DE SOLOCO
A48: 010121 : MD DE SONCHE
A49: 010201 : MP DE BAGUA - LA PECA
A50: 010202 : MD DE ARAMANGO
A51: 010203 : MD DE COPALLIN
A52: 010204 : MD DE EL PARCO
A53: 010205 : MD DE IMAZA
A54: 010206 : MD DE LA PECA
A55: 010301 : MP DE BONGARA - JUMBILLA
A56: 010302 : MD DE CHISQUILLA
A57: 010303 : MD DE CHURUJA
A58: 010304 : MD DE COROSHA
A59: 010305 : MD DE CUISPES
A60: 010306 : MD DE FLORIDA
A61: 010307 : MD DE JAZAN
A62: 010308 : MD DE RECTA
A63: 010309 : MD DE SAN CARLOS
A64: 010310 : MD DE SHIPASBAMBA
A65: 010311 : MD DE VALERA
A66: 010312 : MD DE YAMBRASBAMBA
A67: 010401 : MP DE CONDORCANQUI - NIEVA
A68: 010402 : MD DE EL CENEPA
A69: 010403 : MD DE RIO SANTIAGO
A70: 010501 : MP DE LUYA - LAMUD
A71: 010502 : MD DE CAMPORREDONDO
A72: 010503 : MD DE COCABAMBA
A73: 010504 : MD DE COLCAMAR
A74: 010505 : MD DE CONILA
A75: 010506 : MD DE INGUILPATA
A76: 010507 : MD DE LONGUITA
A77: 010508 : MD DE LONYA CHICO
A78: 010509 : MD DE LUYA
A79: 010510 : MD DE LUYA VIEJO
A80: 010511 : MD DE MARIA
A81: 010512 : MD DE OCALLI
A82: 010513 : MD DE OCUMAL
A83: 010514 : MD DE PIZUQUIA
A84: 010515 : MD DE PROVIDENCIA
A85: 010516 : MD DE SAN CRISTOBAL DE OLTO
A86: 010517 : MD DE SAN FRANCISCO DE YESO
A87: 010518 : MD DE SAN JERONIMO DE PACLAS
A88: 010519 : MD DE SAN JUAN DE LOPECANCHA
A89: 010520 : MD DE SANTA CATALINA
A90: 010521 : MD DE SANTO TOMAS
A91: 010522 : MD DE TINGO
A92: 010523 : MD DE TRITA
A93: 010601 : MP DE RODRIGUEZ DE MENDOZA - SAN NICOLAS
A94: 010602 : MD DE CHIRIMOTO
A95: 010603 : MD DE COCHAMAL
A96: 010604 : MD DE HUAMBO
A97: 010605 : MD DE LIMABAMBA
A98: 010606 : MD DE LONGAR
A99: 010607 : MD DE MARISCAL BENAVIDES
A100: 010608 : MD DE MILPUC
A101: 010609 : MD DE OMIA
A102: 010610 : MD DE SANTA ROSA
A103: 010611 : MD DE TOTORA
A104: 010612 : MD DE VISTA ALEGRE
A105: 010701 : MP DE UTCUBAMBA - BAGUA GRANDE
A106: 010702 : MD DE CAJARURO
A107: 010703 : MD DE CUMBA
A108: 010704 : MD DE EL MILAGRO
A109: 010705 : MD DE JAMALCA
A110: 010706 : MD DE LONYA GRANDE
A111: 010707 : MD DE YAMON
A112: 020101 : MP DE HUARAZ
A113: 020102 : MD DE COCHABAMBA
A114: 020103 : MD DE COLCABAMBA
A115: 020104 : MD DE HUANCHAY
A116: 020105 : MD DE INDEPENDENCIA
A117: 020106 : MD DE JANGAS
A118: 020107 : MD DE LA LIBERTAD
A119: 020108 : MD DE OLLEROS
A120: 020109 : MD DE PAMPAS
A121: 020110 : MD DE PARIACOTO
A122: 020111 : MD DE PIRA
A123: 020112 : MD DE TARICA
A124: 020201 : MP DE AIJA
A125: 020202 : MD DE CORIS
A126: 020203 : MD DE HUACLLAN
A127: 020204 : MD DE LA MERCED
A128: 020205 : MD DE SUCCHA
A129: 020301 : MP DE ANTONIO RAYMONDI - LLAMELLIN
A130: 020302 : MD DE ACSO
A131: 020303 : MD DE CHACCHO
A132: 020304 : MD DE CHINGAS
A133: 020305 : MD DE MIRGAS
A134: 020306 : MD DE SAN JUAN DE RONTOY
A135: 020401 : MP DE ASUNCION - CHACAS
A136: 020402 : MD DE ACOCHACA
A137: 020501 : MP DE BOLOGNESI - CHIQUIAN
A138: 020502 : MD DE ABELARDO PARDO LAZAMETA
A139: 020503 : MD DE ANTONIO RAYMONDI
A140: 020504 : MD DE AQUIA
A141: 020505 : MD DE CAJACAY
A142: 020506 : MD DE CANIS
A143: 020507 : MD DE COLQUIOC
A144: 020508 : MD DE HUALLANCA
A145: 020509 : MD DE HUASTA
A146: 020510 : MD DE HUAYLLACAYAN
A147: 020511 : MD DE LA PRIMAVERA
A148: 020512 : MD DE MANGAS
A149: 020513 : MD DE PACLLON
A150: 020514 : MD DE SAN MIGUEL DE CORPANQUI
A151: 020515 : MD DE TICLLOS
A152: 020601 : MP DE CARHUAZ
A153: 020602 : MD DE ACOPAMPA
A154: 020603 : MD DE AMASHCA
A155: 020604 : MD DE ANTA
A156: 020605 : MD DE ATAQUERO
A157: 020606 : MD DE MARCARA
A158: 020607 : MD DE PARIAHUANCA
A159: 020608 : MD DE SAN MIGUEL DE ACO
A160: 020609 : MD DE SHILLA
A161: 020610 : MD DE TINCO
A162: 020611 : MD DE YUNGAR
A163: 020701 : MP DE CARLOS FERMIN FITZCARRALD
A164: 020702 : MD DE SAN NICOLAS
A165: 020703 : MD DE YAUYA
A166: 020801 : MP DE CASMA
A167: 020802 : MD DE BUENA VISTA ALTA
A168: 020803 : MD DE COMANDANTE NOEL
A169: 020804 : MD DE YAUTAN
A170: 020901 : MP DE CORONGO
A171: 020902 : MD DE ACO
A172: 020903 : MD DE BAMBAS
A173: 020904 : MD DE CUSCA
A174: 020905 : MD DE LA PAMPA
A175: 020906 : MD DE YANAC
A176: 020907 : MD DE YUPAN
A177: 021001 : MP DE HUARI
A178: 021002 : MD DE ANRA
A179: 021003 : MD DE CAJAY
A180: 021004 : MD DE CHAVIN DE HUANTAR
A181: 021005 : MD DE HUACACHI
A182: 021006 : MD DE HUACCHIS
A183: 021007 : MD DE HUACHIS
A184: 021008 : MD DE HUANTAR
A185: 021009 : MD DE MASIN
A186: 021010 : MD DE PAUCAS
A187: 021011 : MD DE PONTO
A188: 021012 : MD DE RAHUAPAMPA
A189: 021013 : MD DE RAPAYAN
A190: 021014 : MD DE SAN MARCOS
A191: 021015 : MD DE SAN PEDRO DE CHANA
A192: 021016 : MD DE UCO
A193: 021101 : MP DE HUARMEY
A194: 021102 : MD DE COCHAPETI
A195: 021103 : MD DE CULEBRAS
A196: 021104 : MD DE HUAYAN
A197: 021105 : MD DE MALVAS
A198: 021201 : MP DE HUAYLAS - CARAZ
A199: 021202 : MD DE HUALLANCA
A200: 021203 : MD DE HUATA
... 1701 more rows

Sheet GRS (hidden)
A1: -----------------------------------------------
A2: 010000 : GOBIERNO REGIONAL DE AMAZONAS
A3: 020000 : GOBIERNO REGIONAL DE ANCASH
A4: 030000 : GOBIERNO REGIONAL DE APURIMAC
A5: 040000 : GOBIERNO REGIONAL DE AREQUIPA
A6: 050000 : GOBIERNO REGIONAL DE AYACUCHO
A7: 060000 : GOBIERNO REGIONAL DE CAJAMARCA
A8: 070000 : GOBIERNO REGIONAL DEL CALLAO
A9: 080000 : GOBIERNO REGIONAL DE CUSCO
A10: 090000 : GOBIERNO REGIONAL DE HUANCAVELICA
A11: 100000 : GOBIERNO REGIONAL DE HUANUCO
A12: 110000 : GOBIERNO REGIONAL DE ICA
A13: 120000 : GOBIERNO REGIONAL DE JUNIN
A14: 130000 : GOBIERNO REGIONAL DE LA LIBERTAD
A15: 140000 : GOBIERNO REGIONAL DE LAMBAYEQUE
A16: 150000 : GOBIERNO REGIONAL DE LIMA
A17: 160000 : GOBIERNO REGIONAL DE LORETO
A18: 170000 : GOBIERNO REGIONAL DE MADRE DE DIOS
A19: 180000 : GOBIERNO REGIONAL DE MOQUEGUA
A20: 190000 : GOBIERNO REGIONAL DE PASCO
A21: 200000 : GOBIERNO REGIONAL DE PIURA
A22: 210000 : GOBIERNO REGIONAL DE PUNO
A23: 220000 : GOBIERNO REGIONAL DE SAN MARTIN
A24: 230000 : GOBIERNO REGIONAL DE TACNA
A25: 240000 : GOBIERNO REGIONAL DE TUMBES
A26: 250000 : GOBIERNO REGIONAL DE UCAYALI
A27: 260000 : REGION LIMA METROPOLITANA

Sheet TIPOGOB (hidden)
A1: TIPOGOB
A2: Gobiernos Locales
A3: Gobiernos Regionales
A6: No Cumple
A7: Si Cumple
